{"text_format":"1","workbook":"xlsx","n_sheets":6,"sheets":["1.LISEZ-MOI","2.GRILLE DE RECUEIL","3.RAPPORT STANDARD","4.RAPPORT COURT","5. ANALYSE APPROFONDIE","listes déroulantes (masqué)"],"not_rendered":{"charts":15,"images":28,"macros":1,"external_links":1,"defined_names":5,"comments":0,"pivot_tables":0},"unopened":[],"bounds":{"document_bytes":16777216,"sheet_cells":100000,"rows_first":2000,"rows_last":500,"rows_between":2000,"halvings":0,"cell_chars":16384,"cell_head_chars":4096},"cells_cut":0,"cells_raw":0,"read":"whole","date_system":"1900"}

{"sheet":"1.LISEZ-MOI","index":0,"n_rows":47,"n_cols":6,"rows_kept":47,"cut":false,"hidden":false,"merged":[[6,0,7,1],[5,0,5,1],[36,4,37,4],[38,2,38,3],[39,2,39,3],[27,2,27,3],[28,2,28,3],[29,2,29,3],[30,2,30,3],[31,2,31,3],[33,2,33,3],[34,2,34,3],[35,2,35,3],[36,0,37,0],[36,1,37,1],[36,2,37,3],[0,0,1,1],[0,2,0,3],[1,2,1,3],[2,0,2,1],[2,2,2,4],[3,0,4,1],[3,3,3,4],[4,3,4,4],[41,2,41,3],[42,2,42,3],[8,0,8,1],[8,2,8,3],[20,2,20,3],[9,0,9,4],[10,2,10,3],[11,2,11,3],[12,2,12,3],[13,2,13,3],[14,0,14,4],[15,2,15,3],[5,2,7,4],[43,2,43,3],[44,2,44,3],[45,2,45,3],[46,2,46,3],[16,2,16,3],[17,2,17,3],[18,2,18,3],[19,2,19,3],[32,2,32,3],[21,2,21,3],[22,2,22,3],[23,2,23,3],[24,2,24,3],[25,2,25,3],[26,0,26,4],[40,0,40,4]]}
[null,null,"LISEZ-MOI Quick ÉVAL Antibio"]
[null,null,"MODALITÉS DE REMPLISSAGE DE LA GRILLE\nVersion Mai 2026"]
["OBJECTIF",null,"Evaluer la documentation et la pertinence des antibiothérapies prescrites en se basant sur le référentiel de l'établissement"]
["MÉTHODOLOGIE",null,"Critères d'inclusion :","Tout patient hospitalisé bénéficiant d'une antibiothérapie correspondant à une situation clinique incluse dans le référentiel de l'établissement de santé"]
[null,null,"Critères d'exclusion :","Situation clinique non incluse dans le référentiel de l'établissement de santé"]
[null,null,"Cette version de l'outil Quick ÉVAL Antibio est une version téléchargeable et à utiliser sur votre application de bureau \"Excel\".\nLors de l'ouverture du document, veillez à \"Activer le contenu\" et \"Activer les modifications\" dans le bandeau qui apparaît en haut de votre document. Si vous ne le faites pas, le fichier risque de perdre ses fonctionnalités.\n\nVeuillez vous référer au Guide méthodologique pour plus de détails."]
["IMPORTANT\nAVANT DE DÉMARRER"]
[]
["ITEM",null,"COMMENT RÉPONDRE ?",null,"IMPORTANCE"]
["GÉNÉRALITÉS"]
[1,"Type de service","Choisir dans le menu déroulant le type de service dans lequel est réalisé l'audit.",null,"conseillé"]
[2,"Service","Indiquer le service dans lequel est réalisé l'audit (texte libre).",null,"optionnel"]
[3,"Age du patient","Indiquer l'âge du patient (texte libre, nombres uniquement).\nSi une infection est votre unité d'évaluation, et que vous évaluez plusieurs infections d'un même patient, merci de ne remplir cette colonne qu'une seule fois par patient.",null,"optionnel"]
[4,"Sexe du patient","Indiquer le sexe du patient : masculin (M) ou féminin (F).\nSi une infection est votre unité d'évaluation, et que vous évaluez plusieurs infections d'un même patient, merci de ne remplir cette colonne qu'une seule fois par patient.",null,"obligatoire","Indispensable pour calculer le nombre de patients inclus et générer les rapports."]
["ÉVALUATION A J1"]
[5,"Indication de l'antibiothérapie tracée dans le dossier","Indiquer Oui si l'indication de l'antibiothérapie est tracée dans le dossier à J1 du début de l'antibiothérapie ou Non si l'indication n'est pas tracée dans le dossier à J1 du début de l'antibiothérapie.",null,"conseillé"]
[6,"Catégorie d'infection suspectée","Choisir dans le menu déroulant la catégorie d'infection suspectée (infection pulmonaire, cutanée, urinaire etc.).",null,"optionnel"]
[7,"Antibiotique prescrit","Choisir dans le menu déroulant la molécule antibiotique ou antifongique prescrite (en DCI).",null,"optionnel"]
[8,"Voie d'administration","Indiquer la voie d'administration choisie pour la molécule antibiotique utilisée : intra-veineuse (IV), per os (PO), sous-cutanée (SC), intra-musculaire (IM).",null,"optionnel"]
[9,"Si bi antibiothérapie : antibiotique associé","Choisir dans le menu déroulant la molécule antibiotique associée en cas de bi antibiothérapie (en DCI).",null,"optionnel"]
[10,"Voie d'administration n°2","Indiquer la voie d'administration choisie pour la molécule antibiotique utilisée en association : intra-veineuse (IV), per os (PO), sous-cutanée (SC), intra-musculaire (IM).",null,"optionnel"]
[11,"Si tri antibiothérapie : antibiotique associé","Choisir dans le menu déroulant la molécule antibiotique associée en cas de tri antibiothérapie (en DCI).",null,"optionnel"]
[12,"Voie d'administration n°3","Indiquer la voie d'administration choisie pour la molécule antibiotique utilisée en association : intra-veineuse (IV), per os (PO), sous-cutanée (SC), intra-musculaire (IM).",null,"optionnel"]
[13,"Caractère utile ou non (indiqué ou non) de l'antibiothérapie, après évaluation de la démarche diagnostique","Indiquer Oui si le fait de prescrire un antibiotique est jugé indiqué (il est utile de prescrire une antibiothérapie) à J1 après évaluation de la démarche diagnostique (clinique, biologique, microbiologique, imagerie) par le référent en antibiothérapie par exemple, et Non si elle ne parait pas utile, ou Inapplicable en cas de données manquantes ou de manque d'expertise clinique pour pouvoir répondre.",null,"conseillé"]
[14,"Choix des molécules antibiotiques approprié","Indiquer Oui si le choix de la ou de toutes les molécule(s) antibiotique(s) est conforme au référentiel de l'établissement ou adapté à la documentation microbiologique ou sur avis du référent en antibiothérapie (=appropriée), Non si le choix diffère des situations citées (=non appropriée), ou Inapplicable en cas de données manquantes pour pouvoir répondre.",null,"conseillé"]
[15,"Choix des voies d’administration approprié","Indiquer Oui si la voie d'administration de la ou de toutes les molécule(s) antibiotique(s) est conforme au référentiel de l'établissement ou adaptée à la documentation microbiologique ou sur avis du référent en antibiothérapie compte tenu de l'indication (=appropriée), Non si la voie d'administration n'est pas appropriée, ou Inapplicable en cas de données manquantes pour pouvoir répondre.",null,"conseillé"]
["ÉVALUATION A J2-J4"]
[16,"Réévaluation tracée dans le dossier","Indiquer Oui, totale si la réévaluation de l'antibiothérapie à J2-J4 est tracée dans le dossier avec documentation du diagnostic et choix de molécule et voie d'administration et durée, Oui, partielle si au moins l'un de ces critères est manquant, Non si la réévaluation n'a pas été retrouvée dans le dossier. Autrement, indiquer Inapplicable (ex : traitement interrompu avant J2-J4).",null,"conseillé"]
[17,"Catégorie d'infection suspectée à J2-J4","Choisir dans le menu déroulant la catégorie d'infection suspectée (infection pulmonaire, cutanée, urinaire etc.).",null,"optionnel"]
[18,"Antibiotique prescrit à J2-J4","Choisir dans le menu déroulant la molécule antibiotique utilisée en relais en tapant les premières lettres (en DCI).",null,"optionnel"]
[19,"Voie d'administration","Indiquer la voie d'administration choisie pour la molécule antibiotique utilisée : intra-veineuse (IV), per os (PO), sous-cutanée (SC), intra-musculaire (IM).",null,"optionnel"]
[20,"Si bi antibiothérapie : antibiotique associé","Choisir dans le menu déroulant la molécule antibiotique associée en cas de bi antibiothérapie (en DCI).",null,"optionnel"]
[21,"Voie d'administration n°2","Indiquer la voie d'administration choisie pour la molécule antibiotique associée : intra-veineuse (IV), per os (PO), sous-cutanée (SC), intra-musculaire (IM).",null,"optionnel"]
[22,"Si tri antibiothérapie : antibiotique associé","Choisir dans le menu déroulant la molécule antibiotique associée en cas de tri antibiothérapie (en DCI).",null,"optionnel"]
[23,"Voie d'administration n°3","Indiquer la voie d'administration choisie pour la molécule antibiotique associée : intra-veineuse (IV), per os (PO), sous-cutanée (SC), intra-musculaire (IM).",null,"optionnel"]
[24,"Caractère utile ou non (indiqué ou non) de la poursuite de l'antibiothérapie, après évaluation de la démarche diagnostique","Indiquer Oui si la poursuite de l'antibiothérapie est jugée indiquée (il est utile de continuer une antibiothérapie) à J2-J4 après évaluation de la démarche diagnostique (clinique, biologique, microbiologique, imagerie) par le référent en antibiothérapie par exemple, et Non si elle ne parait pas utile, ou Inapplicable en cas de données manquantes (ex : traitement interrompu avant J2-J4) ou de manque d'expertise clinique pour pouvoir répondre.",null,"conseillé"]
[25,"Choix des molécules antibiotiques approprié","Indiquer Oui si le choix de la ou de toutes les molécule(s) antibiotique(s) est conforme au référentiel de l'établissement ou adapté à la documentation microbiologique ou sur avis du référent en antibiothérapie (=appropriée), Non si le choix diffère des situations citées (=non appropriée), ou Inapplicable en cas de données manquantes (ex : traitement interrompu avant J2-J4) pour pouvoir répondre.",null,"conseillé"]
[]
[26,"Choix des voies d’administration approprié","Indiquer Oui si la voie d'administration de la ou de toutes les molécule(s) antibiotique(s) est conforme au référentiel de l'établissement ou adaptée à la documentation microbiologique ou sur avis du référent en antibiothérapie compte tenu de l'indication (=appropriée), Non si la voie d'administration n'est pas appropriée, ou Inapplicable en cas de données manquantes (ex : traitement interrompu avant J2-J4) pour pouvoir répondre.",null,"conseillé"]
[27,"Durée prévue lors la réévaluation à J2-J4 appropriée","Indiquer Oui si la durée de traitement prévue est conforme au référentiel de l'établissement ou adaptée à la documentation microbiologique ou sur avis du référent en antibiothérapie compte tenu de l'indication (=appropriée), Non si la durée de traitement prévue n'est pas appropriée, ou Inapplicable en cas de données manquantes (ex : traitement interrompu avant J2-J4) pour pouvoir répondre.",null,"conseillé"]
["ÉVALUATION COMPLÉMENTAIRE"]
[28,"Analyse pharmaceutique réalisée","Indiquer Oui si une analyse pharmaceutique de l'antibiothérapie a été réalisée, Non si aucune donnée concernant la réalisation d'une analyse pharmaceutique n'a été retrouvée. Autrement, indiquer Inapplicable (ex : traitement interrompu avant J2-J4).",null,"optionnel"]
[29,"Intervention pharmaceutique réalisée en cas de prescription inappropriée","Indiquer Oui si une intervention pharmaceutique a été réalisée en cas de prescription inappropriée, Non si elle n'a pas été effectuée. Autrement, indiquer Inapplicable (ex : prescription appropriée ne nécessitant pas d'intervention pharmaceutique).",null,"optionnel"]
[30,"Intervention pharmaceutique acceptée ","Si la réponse à l'item 29 était Oui :\n> Indiquer Oui si l'intervention pharmaceutique a été acceptée\n> Indiquer Non si elle n'a pas été acceptée.\n> Indiquer Inapplicable autrement (ex : si vous ne disposez pas de l'information)\nSi la réponse à l'item 29 était Non ou Inapplicable :\nLe champ passe automatiquement en Inapplicable, vous n'avez rien à remplir.",null,"optionnel"]
[31,"Date de début d'antibiothérapie\n(JJ/MM/AAAA)","Indiquer la date d'initiation de l'antibiothérapie au format JJ/MM/AAAA.\nCet item se remplit de manière conjointe avec le suivant. Ne les remplissez que si vous disposez des dates de début et de fin. Autrement, laissez les deux cases vides (cela empêche sinon le calcul de toutes vos autres durées)",null,"conseillé"]
[32,"Date de fin d'antibiothérapie\n(JJ/MM/AAAA)","Indiquer la date de fin de l'antibiothérapie au format JJ/MM/AAAA. Si l'antibiothérapie est en cours, indiquer la date de fin prévisionnelle.\nCet item se remplit de manière conjointe avec le précédent. Ne les remplissez que si vous disposez des dates de début et de fin. Autrement, laissez les deux cases vides (cela empêche sinon le calcul de toutes vos autres durées)",null,"conseillé"]
[33,"Justification d’un traitement de plus de 7 jours dans le dossier","Indiquer Oui s'il existe une justification dans le dossier du patient expliquant le traitement de plus de 7 jours, Non si aucune justification n'a été retrouvée concernant la durée de plus de 7 jours. Autrement, indiquer Inapplicable (ex : durée calculée dans la colonne précédente est < ou =7 jours).",null,"conseillé"]

{"sheet":"2.GRILLE DE RECUEIL","index":1,"n_rows":106,"n_cols":35,"rows_kept":106,"cut":false,"hidden":false,"merged":[[4,32,4,33],[0,9,1,12],[3,16,3,27],[3,28,3,34],[3,1,3,4],[3,5,3,15],[1,0,1,1]]}
[null,null,"Établissement :",null,"Nom de l'évaluateur :",null,"Nom du référentiel utilisé :",null,null,"Merci de compléter les champs ci-contre pour pré-remplir vos rapports automatisés."]
["Version Mai 2026",null,"Date de l'évaluation :",null,"Fonction de l'évaluateur :"]
[]
[null,"GÉNÉRALITÉS",null,null,null,"ÉVALUATION A J 1",null,null,null,null,null,null,null,null,null,null,"ÉVALUATION A J2  - J4",null,null,null,null,null,null,null,null,null,null,null,"ÉVALUATION COMPLÉMENTAIRE"]
[null,{"$f":"0+1","v":1},{"$f":"B5+1","v":2},3,4,5,6,7,8,9,10,11,12,13,14,15,16,17,18,19,20,21,22,23,24,25,26,27,28,29,{"$f":"AD5+1","v":30},{"$f":"AE5+1","v":31},32,null,{"$f":"AG5+1","v":33}]
[null,"Type de service","Service","Age du patient","Sexe du patient","Indication de l'antibiothérapie tracée dans le dossier","Catégorie d'infection suspectée","Antibiotique prescrit à J1","J1\nVoie d'administration","Si bi-antibiothérapie : antibiotique associé","J1\nVoie d'administration n°2","Si tri-antibiothérapie : antibiotique associé ","J1\nVoie d'administration n°3","Caractère utile ou non (indiqué ou non) de l'antibiothérapie, après évaluation de la démarche diagnostique","Choix des molécules antibiotiques approprié","Choix des voies d’administration approprié","Réévaluation tracée dans le dossier","Catégorie d'infection suspectée à J2-J4","Antibiotique prescrit à J2-J4","J2-J4\nVoie d'administration","Si bi-antibiothérapie : antibiotique associé ","J2-J4\nVoie d'administration n°2","Si tri-antibiothérapie : antibiotique associé","J2-J4\nVoie d'administration n°3","Caractère utile ou non (indiqué ou non) de la poursuite de l'antibiothérapie, après évaluation de la démarche diagnostique","J2-J4\nChoix des molécules antibiotiques approprié","J2-J4\nChoix des voies d’administration approprié","Durée prévue lors la réévaluation à J2-J4 appropriée","Analyse pharmaceutique réalisée","Intervention pharmaceutique réalisée en cas de prescription inappropriée","Intervention pharmaceutique acceptée","Date de début d'antibiothérapie\n(JJ/MM/AAAA)","Date de fin d'antibiothérapie\n(JJ/MM/AAAA)","Durée calculée en jours\nVerrouillé","Justification d'un traitement de plus de 7 jours"]
[1,null,null,null,null,null,null,null,null,null,null,null,null,null,null,null,null,null,null,null,null,null,null,null,null,null,null,null,null,null,null,null,null,{"$f":"DATEDIF(Tableau14[[#This Row],[Date de début d''antibiothérapie\n(JJ/MM/AAAA)]],Tableau14[[#This Row],[Date de fin d''antibiothérapie\n(JJ/MM/AAAA)]],\"d\")","v":0}]
[{"$f":"A7+1","v":2},null,null,null,null,null,null,null,null,null,null,null,null,null,null,null,null,null,null,null,null,null,null,null,null,null,null,null,null,null,null,null,null,{"$f":"DATEDIF(Tableau14[[#This Row],[Date de début d''antibiothérapie\n(JJ/MM/AAAA)]],Tableau14[[#This Row],[Date de fin d''antibiothérapie\n(JJ/MM/AAAA)]],\"d\")","v":0}]
[{"$f":"A8+1","v":3},null,null,null,null,null,null,null,null,null,null,null,null,null,null,null,null,null,null,null,null,null,null,null,null,null,null,null,null,null,null,null,null,{"$f":"DATEDIF(Tableau14[[#This Row],[Date de début d''antibiothérapie\n(JJ/MM/AAAA)]],Tableau14[[#This Row],[Date de fin d''antibiothérapie\n(JJ/MM/AAAA)]],\"d\")","v":0}]
[4,null,null,null,null,null,null,null,null,null,null,null,null,null,null,null,null,null,null,null,null,null,null,null,null,null,null,null,null,null,null,null,null,{"$f":"DATEDIF(Tableau14[[#This Row],[Date de début d''antibiothérapie\n(JJ/MM/AAAA)]],Tableau14[[#This Row],[Date de fin d''antibiothérapie\n(JJ/MM/AAAA)]],\"d\")","v":0}]
[5,null,null,null,null,null,null,null,null,null,null,null,null,null,null,null,null,null,null,null,null,null,null,null,null,null,null,null,null,null,null,null,null,{"$f":"DATEDIF(Tableau14[[#This Row],[Date de début d''antibiothérapie\n(JJ/MM/AAAA)]],Tableau14[[#This Row],[Date de fin d''antibiothérapie\n(JJ/MM/AAAA)]],\"d\")","v":0}]
[6,null,null,null,null,null,null,null,null,null,null,null,null,null,null,null,null,null,null,null,null,null,null,null,null,null,null,null,null,null,null,null,null,{"$f":"DATEDIF(Tableau14[[#This Row],[Date de début d''antibiothérapie\n(JJ/MM/AAAA)]],Tableau14[[#This Row],[Date de fin d''antibiothérapie\n(JJ/MM/AAAA)]],\"d\")","v":0}]
[7,null,null,null,null,null,null,null,null,null,null,null,null,null,null,null,null,null,null,null,null,null,null,null,null,null,null,null,null,null,null,null,null,{"$f":"DATEDIF(Tableau14[[#This Row],[Date de début d''antibiothérapie\n(JJ/MM/AAAA)]],Tableau14[[#This Row],[Date de fin d''antibiothérapie\n(JJ/MM/AAAA)]],\"d\")","v":0}]
[8,null,null,null,null,null,null,null,null,null,null,null,null,null,null,null,null,null,null,null,null,null,null,null,null,null,null,null,null,null,null,null,null,{"$f":"DATEDIF(Tableau14[[#This Row],[Date de début d''antibiothérapie\n(JJ/MM/AAAA)]],Tableau14[[#This Row],[Date de fin d''antibiothérapie\n(JJ/MM/AAAA)]],\"d\")","v":0}]
[9,null,null,null,null,null,null,null,null,null,null,null,null,null,null,null,null,null,null,null,null,null,null,null,null,null,null,null,null,null,null,null,null,{"$f":"DATEDIF(Tableau14[[#This Row],[Date de début d''antibiothérapie\n(JJ/MM/AAAA)]],Tableau14[[#This Row],[Date de fin d''antibiothérapie\n(JJ/MM/AAAA)]],\"d\")","v":0}]
[10,null,null,null,null,null,null,null,null,null,null,null,null,null,null,null,null,null,null,null,null,null,null,null,null,null,null,null,null,null,null,null,null,{"$f":"DATEDIF(Tableau14[[#This Row],[Date de début d''antibiothérapie\n(JJ/MM/AAAA)]],Tableau14[[#This Row],[Date de fin d''antibiothérapie\n(JJ/MM/AAAA)]],\"d\")","v":0}]
[11,null,null,null,null,null,null,null,null,null,null,null,null,null,null,null,null,null,null,null,null,null,null,null,null,null,null,null,null,null,null,null,null,{"$f":"DATEDIF(Tableau14[[#This Row],[Date de début d''antibiothérapie\n(JJ/MM/AAAA)]],Tableau14[[#This Row],[Date de fin d''antibiothérapie\n(JJ/MM/AAAA)]],\"d\")","v":0}]
[12,null,null,null,null,null,null,null,null,null,null,null,null,null,null,null,null,null,null,null,null,null,null,null,null,null,null,null,null,null,null,null,null,{"$f":"DATEDIF(Tableau14[[#This Row],[Date de début d''antibiothérapie\n(JJ/MM/AAAA)]],Tableau14[[#This Row],[Date de fin d''antibiothérapie\n(JJ/MM/AAAA)]],\"d\")","v":0}]
[13,null,null,null,null,null,null,null,null,null,null,null,null,null,null,null,null,null,null,null,null,null,null,null,null,null,null,null,null,null,null,null,null,{"$f":"DATEDIF(Tableau14[[#This Row],[Date de début d''antibiothérapie\n(JJ/MM/AAAA)]],Tableau14[[#This Row],[Date de fin d''antibiothérapie\n(JJ/MM/AAAA)]],\"d\")","v":0}]
[14,null,null,null,null,null,null,null,null,null,null,null,null,null,null,null,null,null,null,null,null,null,null,null,null,null,null,null,null,null,null,null,null,{"$f":"DATEDIF(Tableau14[[#This Row],[Date de début d''antibiothérapie\n(JJ/MM/AAAA)]],Tableau14[[#This Row],[Date de fin d''antibiothérapie\n(JJ/MM/AAAA)]],\"d\")","v":0}]
[15,null,null,null,null,null,null,null,null,null,null,null,null,null,null,null,null,null,null,null,null,null,null,null,null,null,null,null,null,null,null,null,null,{"$f":"DATEDIF(Tableau14[[#This Row],[Date de début d''antibiothérapie\n(JJ/MM/AAAA)]],Tableau14[[#This Row],[Date de fin d''antibiothérapie\n(JJ/MM/AAAA)]],\"d\")","v":0}]
[16,null,null,null,null,null,null,null,null,null,null,null,null,null,null,null,null,null,null,null,null,null,null,null,null,null,null,null,null,null,null,null,null,{"$f":"DATEDIF(Tableau14[[#This Row],[Date de début d''antibiothérapie\n(JJ/MM/AAAA)]],Tableau14[[#This Row],[Date de fin d''antibiothérapie\n(JJ/MM/AAAA)]],\"d\")","v":0}]
[17,null,null,null,null,null,null,null,null,null,null,null,null,null,null,null,null,null,null,null,null,null,null,null,null,null,null,null,null,null,null,null,null,{"$f":"DATEDIF(Tableau14[[#This Row],[Date de début d''antibiothérapie\n(JJ/MM/AAAA)]],Tableau14[[#This Row],[Date de fin d''antibiothérapie\n(JJ/MM/AAAA)]],\"d\")","v":0}]
[18,null,null,null,null,null,null,null,null,null,null,null,null,null,null,null,null,null,null,null,null,null,null,null,null,null,null,null,null,null,null,null,null,{"$f":"DATEDIF(Tableau14[[#This Row],[Date de début d''antibiothérapie\n(JJ/MM/AAAA)]],Tableau14[[#This Row],[Date de fin d''antibiothérapie\n(JJ/MM/AAAA)]],\"d\")","v":0}]
[19,null,null,null,null,null,null,null,null,null,null,null,null,null,null,null,null,null,null,null,null,null,null,null,null,null,null,null,null,null,null,null,null,{"$f":"DATEDIF(Tableau14[[#This Row],[Date de début d''antibiothérapie\n(JJ/MM/AAAA)]],Tableau14[[#This Row],[Date de fin d''antibiothérapie\n(JJ/MM/AAAA)]],\"d\")","v":0}]
[20,null,null,null,null,null,null,null,null,null,null,null,null,null,null,null,null,null,null,null,null,null,null,null,null,null,null,null,null,null,null,null,null,{"$f":"DATEDIF(Tableau14[[#This Row],[Date de début d''antibiothérapie\n(JJ/MM/AAAA)]],Tableau14[[#This Row],[Date de fin d''antibiothérapie\n(JJ/MM/AAAA)]],\"d\")","v":0}]
[21,null,null,null,null,null,null,null,null,null,null,null,null,null,null,null,null,null,null,null,null,null,null,null,null,null,null,null,null,null,null,null,null,{"$f":"DATEDIF(Tableau14[[#This Row],[Date de début d''antibiothérapie\n(JJ/MM/AAAA)]],Tableau14[[#This Row],[Date de fin d''antibiothérapie\n(JJ/MM/AAAA)]],\"d\")","v":0}]
[22,null,null,null,null,null,null,null,null,null,null,null,null,null,null,null,null,null,null,null,null,null,null,null,null,null,null,null,null,null,null,null,null,{"$f":"DATEDIF(Tableau14[[#This Row],[Date de début d''antibiothérapie\n(JJ/MM/AAAA)]],Tableau14[[#This Row],[Date de fin d''antibiothérapie\n(JJ/MM/AAAA)]],\"d\")","v":0}]
[23,null,null,null,null,null,null,null,null,null,null,null,null,null,null,null,null,null,null,null,null,null,null,null,null,null,null,null,null,null,null,null,null,{"$f":"DATEDIF(Tableau14[[#This Row],[Date de début d''antibiothérapie\n(JJ/MM/AAAA)]],Tableau14[[#This Row],[Date de fin d''antibiothérapie\n(JJ/MM/AAAA)]],\"d\")","v":0}]
[24,null,null,null,null,null,null,null,null,null,null,null,null,null,null,null,null,null,null,null,null,null,null,null,null,null,null,null,null,null,null,null,null,{"$f":"DATEDIF(Tableau14[[#This Row],[Date de début d''antibiothérapie\n(JJ/MM/AAAA)]],Tableau14[[#This Row],[Date de fin d''antibiothérapie\n(JJ/MM/AAAA)]],\"d\")","v":0}]
[25,null,null,null,null,null,null,null,null,null,null,null,null,null,null,null,null,null,null,null,null,null,null,null,null,null,null,null,null,null,null,null,null,{"$f":"DATEDIF(Tableau14[[#This Row],[Date de début d''antibiothérapie\n(JJ/MM/AAAA)]],Tableau14[[#This Row],[Date de fin d''antibiothérapie\n(JJ/MM/AAAA)]],\"d\")","v":0}]
[26,null,null,null,null,null,null,null,null,null,null,null,null,null,null,null,null,null,null,null,null,null,null,null,null,null,null,null,null,null,null,null,null,{"$f":"DATEDIF(Tableau14[[#This Row],[Date de début d''antibiothérapie\n(JJ/MM/AAAA)]],Tableau14[[#This Row],[Date de fin d''antibiothérapie\n(JJ/MM/AAAA)]],\"d\")","v":0}]
[27,null,null,null,null,null,null,null,null,null,null,null,null,null,null,null,null,null,null,null,null,null,null,null,null,null,null,null,null,null,null,null,null,{"$f":"DATEDIF(Tableau14[[#This Row],[Date de début d''antibiothérapie\n(JJ/MM/AAAA)]],Tableau14[[#This Row],[Date de fin d''antibiothérapie\n(JJ/MM/AAAA)]],\"d\")","v":0}]
[28,null,null,null,null,null,null,null,null,null,null,null,null,null,null,null,null,null,null,null,null,null,null,null,null,null,null,null,null,null,null,null,null,{"$f":"DATEDIF(Tableau14[[#This Row],[Date de début d''antibiothérapie\n(JJ/MM/AAAA)]],Tableau14[[#This Row],[Date de fin d''antibiothérapie\n(JJ/MM/AAAA)]],\"d\")","v":0}]
[29,null,null,null,null,null,null,null,null,null,null,null,null,null,null,null,null,null,null,null,null,null,null,null,null,null,null,null,null,null,null,null,null,{"$f":"DATEDIF(Tableau14[[#This Row],[Date de début d''antibiothérapie\n(JJ/MM/AAAA)]],Tableau14[[#This Row],[Date de fin d''antibiothérapie\n(JJ/MM/AAAA)]],\"d\")","v":0}]
[30,null,null,null,null,null,null,null,null,null,null,null,null,null,null,null,null,null,null,null,null,null,null,null,null,null,null,null,null,null,null,null,null,{"$f":"DATEDIF(Tableau14[[#This Row],[Date de début d''antibiothérapie\n(JJ/MM/AAAA)]],Tableau14[[#This Row],[Date de fin d''antibiothérapie\n(JJ/MM/AAAA)]],\"d\")","v":0}]
[31,null,null,null,null,null,null,null,null,null,null,null,null,null,null,null,null,null,null,null,null,null,null,null,null,null,null,null,null,null,null,null,null,{"$f":"DATEDIF(Tableau14[[#This Row],[Date de début d''antibiothérapie\n(JJ/MM/AAAA)]],Tableau14[[#This Row],[Date de fin d''antibiothérapie\n(JJ/MM/AAAA)]],\"d\")","v":0}]
[32,null,null,null,null,null,null,null,null,null,null,null,null,null,null,null,null,null,null,null,null,null,null,null,null,null,null,null,null,null,null,null,null,{"$f":"DATEDIF(Tableau14[[#This Row],[Date de début d''antibiothérapie\n(JJ/MM/AAAA)]],Tableau14[[#This Row],[Date de fin d''antibiothérapie\n(JJ/MM/AAAA)]],\"d\")","v":0}]
[33,null,null,null,null,null,null,null,null,null,null,null,null,null,null,null,null,null,null,null,null,null,null,null,null,null,null,null,null,null,null,null,null,{"$f":"DATEDIF(Tableau14[[#This Row],[Date de début d''antibiothérapie\n(JJ/MM/AAAA)]],Tableau14[[#This Row],[Date de fin d''antibiothérapie\n(JJ/MM/AAAA)]],\"d\")","v":0}]
[34,null,null,null,null,null,null,null,null,null,null,null,null,null,null,null,null,null,null,null,null,null,null,null,null,null,null,null,null,null,null,null,null,{"$f":"DATEDIF(Tableau14[[#This Row],[Date de début d''antibiothérapie\n(JJ/MM/AAAA)]],Tableau14[[#This Row],[Date de fin d''antibiothérapie\n(JJ/MM/AAAA)]],\"d\")","v":0}]
[35,null,null,null,null,null,null,null,null,null,null,null,null,null,null,null,null,null,null,null,null,null,null,null,null,null,null,null,null,null,null,null,null,{"$f":"DATEDIF(Tableau14[[#This Row],[Date de début d''antibiothérapie\n(JJ/MM/AAAA)]],Tableau14[[#This Row],[Date de fin d''antibiothérapie\n(JJ/MM/AAAA)]],\"d\")","v":0}]
[36,null,null,null,null,null,null,null,null,null,null,null,null,null,null,null,null,null,null,null,null,null,null,null,null,null,null,null,null,null,null,null,null,{"$f":"DATEDIF(Tableau14[[#This Row],[Date de début d''antibiothérapie\n(JJ/MM/AAAA)]],Tableau14[[#This Row],[Date de fin d''antibiothérapie\n(JJ/MM/AAAA)]],\"d\")","v":0}]
[37,null,null,null,null,null,null,null,null,null,null,null,null,null,null,null,null,null,null,null,null,null,null,null,null,null,null,null,null,null,null,null,null,{"$f":"DATEDIF(Tableau14[[#This Row],[Date de début d''antibiothérapie\n(JJ/MM/AAAA)]],Tableau14[[#This Row],[Date de fin d''antibiothérapie\n(JJ/MM/AAAA)]],\"d\")","v":0}]
[38,null,null,null,null,null,null,null,null,null,null,null,null,null,null,null,null,null,null,null,null,null,null,null,null,null,null,null,null,null,null,null,null,{"$f":"DATEDIF(Tableau14[[#This Row],[Date de début d''antibiothérapie\n(JJ/MM/AAAA)]],Tableau14[[#This Row],[Date de fin d''antibiothérapie\n(JJ/MM/AAAA)]],\"d\")","v":0}]
[39,null,null,null,null,null,null,null,null,null,null,null,null,null,null,null,null,null,null,null,null,null,null,null,null,null,null,null,null,null,null,null,null,{"$f":"DATEDIF(Tableau14[[#This Row],[Date de début d''antibiothérapie\n(JJ/MM/AAAA)]],Tableau14[[#This Row],[Date de fin d''antibiothérapie\n(JJ/MM/AAAA)]],\"d\")","v":0}]
[40,null,null,null,null,null,null,null,null,null,null,null,null,null,null,null,null,null,null,null,null,null,null,null,null,null,null,null,null,null,null,null,null,{"$f":"DATEDIF(Tableau14[[#This Row],[Date de début d''antibiothérapie\n(JJ/MM/AAAA)]],Tableau14[[#This Row],[Date de fin d''antibiothérapie\n(JJ/MM/AAAA)]],\"d\")","v":0}]
[41,null,null,null,null,null,null,null,null,null,null,null,null,null,null,null,null,null,null,null,null,null,null,null,null,null,null,null,null,null,null,null,null,{"$f":"DATEDIF(Tableau14[[#This Row],[Date de début d''antibiothérapie\n(JJ/MM/AAAA)]],Tableau14[[#This Row],[Date de fin d''antibiothérapie\n(JJ/MM/AAAA)]],\"d\")","v":0}]
[42,null,null,null,null,null,null,null,null,null,null,null,null,null,null,null,null,null,null,null,null,null,null,null,null,null,null,null,null,null,null,null,null,{"$f":"DATEDIF(Tableau14[[#This Row],[Date de début d''antibiothérapie\n(JJ/MM/AAAA)]],Tableau14[[#This Row],[Date de fin d''antibiothérapie\n(JJ/MM/AAAA)]],\"d\")","v":0}]
[43,null,null,null,null,null,null,null,null,null,null,null,null,null,null,null,null,null,null,null,null,null,null,null,null,null,null,null,null,null,null,null,null,{"$f":"DATEDIF(Tableau14[[#This Row],[Date de début d''antibiothérapie\n(JJ/MM/AAAA)]],Tableau14[[#This Row],[Date de fin d''antibiothérapie\n(JJ/MM/AAAA)]],\"d\")","v":0}]
[44,null,null,null,null,null,null,null,null,null,null,null,null,null,null,null,null,null,null,null,null,null,null,null,null,null,null,null,null,null,null,null,null,{"$f":"DATEDIF(Tableau14[[#This Row],[Date de début d''antibiothérapie\n(JJ/MM/AAAA)]],Tableau14[[#This Row],[Date de fin d''antibiothérapie\n(JJ/MM/AAAA)]],\"d\")","v":0}]
[45,null,null,null,null,null,null,null,null,null,null,null,null,null,null,null,null,null,null,null,null,null,null,null,null,null,null,null,null,null,null,null,null,{"$f":"DATEDIF(Tableau14[[#This Row],[Date de début d''antibiothérapie\n(JJ/MM/AAAA)]],Tableau14[[#This Row],[Date de fin d''antibiothérapie\n(JJ/MM/AAAA)]],\"d\")","v":0}]
[46,null,null,null,null,null,null,null,null,null,null,null,null,null,null,null,null,null,null,null,null,null,null,null,null,null,null,null,null,null,null,null,null,{"$f":"DATEDIF(Tableau14[[#This Row],[Date de début d''antibiothérapie\n(JJ/MM/AAAA)]],Tableau14[[#This Row],[Date de fin d''antibiothérapie\n(JJ/MM/AAAA)]],\"d\")","v":0}]
[47,null,null,null,null,null,null,null,null,null,null,null,null,null,null,null,null,null,null,null,null,null,null,null,null,null,null,null,null,null,null,null,null,{"$f":"DATEDIF(Tableau14[[#This Row],[Date de début d''antibiothérapie\n(JJ/MM/AAAA)]],Tableau14[[#This Row],[Date de fin d''antibiothérapie\n(JJ/MM/AAAA)]],\"d\")","v":0}]
[48,null,null,null,null,null,null,null,null,null,null,null,null,null,null,null,null,null,null,null,null,null,null,null,null,null,null,null,null,null,null,null,null,{"$f":"DATEDIF(Tableau14[[#This Row],[Date de début d''antibiothérapie\n(JJ/MM/AAAA)]],Tableau14[[#This Row],[Date de fin d''antibiothérapie\n(JJ/MM/AAAA)]],\"d\")","v":0}]
[49,null,null,null,null,null,null,null,null,null,null,null,null,null,null,null,null,null,null,null,null,null,null,null,null,null,null,null,null,null,null,null,null,{"$f":"DATEDIF(Tableau14[[#This Row],[Date de début d''antibiothérapie\n(JJ/MM/AAAA)]],Tableau14[[#This Row],[Date de fin d''antibiothérapie\n(JJ/MM/AAAA)]],\"d\")","v":0}]
[50,null,null,null,null,null,null,null,null,null,null,null,null,null,null,null,null,null,null,null,null,null,null,null,null,null,null,null,null,null,null,null,null,{"$f":"DATEDIF(Tableau14[[#This Row],[Date de début d''antibiothérapie\n(JJ/MM/AAAA)]],Tableau14[[#This Row],[Date de fin d''antibiothérapie\n(JJ/MM/AAAA)]],\"d\")","v":0}]
[51,null,null,null,null,null,null,null,null,null,null,null,null,null,null,null,null,null,null,null,null,null,null,null,null,null,null,null,null,null,null,null,null,{"$f":"DATEDIF(Tableau14[[#This Row],[Date de début d''antibiothérapie\n(JJ/MM/AAAA)]],Tableau14[[#This Row],[Date de fin d''antibiothérapie\n(JJ/MM/AAAA)]],\"d\")","v":0}]
[52,null,null,null,null,null,null,null,null,null,null,null,null,null,null,null,null,null,null,null,null,null,null,null,null,null,null,null,null,null,null,null,null,{"$f":"DATEDIF(Tableau14[[#This Row],[Date de début d''antibiothérapie\n(JJ/MM/AAAA)]],Tableau14[[#This Row],[Date de fin d''antibiothérapie\n(JJ/MM/AAAA)]],\"d\")","v":0}]
[53,null,null,null,null,null,null,null,null,null,null,null,null,null,null,null,null,null,null,null,null,null,null,null,null,null,null,null,null,null,null,null,null,{"$f":"DATEDIF(Tableau14[[#This Row],[Date de début d''antibiothérapie\n(JJ/MM/AAAA)]],Tableau14[[#This Row],[Date de fin d''antibiothérapie\n(JJ/MM/AAAA)]],\"d\")","v":0}]
[54,null,null,null,null,null,null,null,null,null,null,null,null,null,null,null,null,null,null,null,null,null,null,null,null,null,null,null,null,null,null,null,null,{"$f":"DATEDIF(Tableau14[[#This Row],[Date de début d''antibiothérapie\n(JJ/MM/AAAA)]],Tableau14[[#This Row],[Date de fin d''antibiothérapie\n(JJ/MM/AAAA)]],\"d\")","v":0}]
[55,null,null,null,null,null,null,null,null,null,null,null,null,null,null,null,null,null,null,null,null,null,null,null,null,null,null,null,null,null,null,null,null,{"$f":"DATEDIF(Tableau14[[#This Row],[Date de début d''antibiothérapie\n(JJ/MM/AAAA)]],Tableau14[[#This Row],[Date de fin d''antibiothérapie\n(JJ/MM/AAAA)]],\"d\")","v":0}]
[56,null,null,null,null,null,null,null,null,null,null,null,null,null,null,null,null,null,null,null,null,null,null,null,null,null,null,null,null,null,null,null,null,{"$f":"DATEDIF(Tableau14[[#This Row],[Date de début d''antibiothérapie\n(JJ/MM/AAAA)]],Tableau14[[#This Row],[Date de fin d''antibiothérapie\n(JJ/MM/AAAA)]],\"d\")","v":0}]
[57,null,null,null,null,null,null,null,null,null,null,null,null,null,null,null,null,null,null,null,null,null,null,null,null,null,null,null,null,null,null,null,null,{"$f":"DATEDIF(Tableau14[[#This Row],[Date de début d''antibiothérapie\n(JJ/MM/AAAA)]],Tableau14[[#This Row],[Date de fin d''antibiothérapie\n(JJ/MM/AAAA)]],\"d\")","v":0}]
[58,null,null,null,null,null,null,null,null,null,null,null,null,null,null,null,null,null,null,null,null,null,null,null,null,null,null,null,null,null,null,null,null,{"$f":"DATEDIF(Tableau14[[#This Row],[Date de début d''antibiothérapie\n(JJ/MM/AAAA)]],Tableau14[[#This Row],[Date de fin d''antibiothérapie\n(JJ/MM/AAAA)]],\"d\")","v":0}]
[59,null,null,null,null,null,null,null,null,null,null,null,null,null,null,null,null,null,null,null,null,null,null,null,null,null,null,null,null,null,null,null,null,{"$f":"DATEDIF(Tableau14[[#This Row],[Date de début d''antibiothérapie\n(JJ/MM/AAAA)]],Tableau14[[#This Row],[Date de fin d''antibiothérapie\n(JJ/MM/AAAA)]],\"d\")","v":0}]
[60,null,null,null,null,null,null,null,null,null,null,null,null,null,null,null,null,null,null,null,null,null,null,null,null,null,null,null,null,null,null,null,null,{"$f":"DATEDIF(Tableau14[[#This Row],[Date de début d''antibiothérapie\n(JJ/MM/AAAA)]],Tableau14[[#This Row],[Date de fin d''antibiothérapie\n(JJ/MM/AAAA)]],\"d\")","v":0}]
[61,null,null,null,null,null,null,null,null,null,null,null,null,null,null,null,null,null,null,null,null,null,null,null,null,null,null,null,null,null,null,null,null,{"$f":"DATEDIF(Tableau14[[#This Row],[Date de début d''antibiothérapie\n(JJ/MM/AAAA)]],Tableau14[[#This Row],[Date de fin d''antibiothérapie\n(JJ/MM/AAAA)]],\"d\")","v":0}]
[62,null,null,null,null,null,null,null,null,null,null,null,null,null,null,null,null,null,null,null,null,null,null,null,null,null,null,null,null,null,null,null,null,{"$f":"DATEDIF(Tableau14[[#This Row],[Date de début d''antibiothérapie\n(JJ/MM/AAAA)]],Tableau14[[#This Row],[Date de fin d''antibiothérapie\n(JJ/MM/AAAA)]],\"d\")","v":0}]
[63,null,null,null,null,null,null,null,null,null,null,null,null,null,null,null,null,null,null,null,null,null,null,null,null,null,null,null,null,null,null,null,null,{"$f":"DATEDIF(Tableau14[[#This Row],[Date de début d''antibiothérapie\n(JJ/MM/AAAA)]],Tableau14[[#This Row],[Date de fin d''antibiothérapie\n(JJ/MM/AAAA)]],\"d\")","v":0}]
[64,null,null,null,null,null,null,null,null,null,null,null,null,null,null,null,null,null,null,null,null,null,null,null,null,null,null,null,null,null,null,null,null,{"$f":"DATEDIF(Tableau14[[#This Row],[Date de début d''antibiothérapie\n(JJ/MM/AAAA)]],Tableau14[[#This Row],[Date de fin d''antibiothérapie\n(JJ/MM/AAAA)]],\"d\")","v":0}]
[65,null,null,null,null,null,null,null,null,null,null,null,null,null,null,null,null,null,null,null,null,null,null,null,null,null,null,null,null,null,null,null,null,{"$f":"DATEDIF(Tableau14[[#This Row],[Date de début d''antibiothérapie\n(JJ/MM/AAAA)]],Tableau14[[#This Row],[Date de fin d''antibiothérapie\n(JJ/MM/AAAA)]],\"d\")","v":0}]
[66,null,null,null,null,null,null,null,null,null,null,null,null,null,null,null,null,null,null,null,null,null,null,null,null,null,null,null,null,null,null,null,null,{"$f":"DATEDIF(Tableau14[[#This Row],[Date de début d''antibiothérapie\n(JJ/MM/AAAA)]],Tableau14[[#This Row],[Date de fin d''antibiothérapie\n(JJ/MM/AAAA)]],\"d\")","v":0}]
[{"$f":"A72+1","v":67},null,null,null,null,null,null,null,null,null,null,null,null,null,null,null,null,null,null,null,null,null,null,null,null,null,null,null,null,null,null,null,null,{"$f":"DATEDIF(Tableau14[[#This Row],[Date de début d''antibiothérapie\n(JJ/MM/AAAA)]],Tableau14[[#This Row],[Date de fin d''antibiothérapie\n(JJ/MM/AAAA)]],\"d\")","v":0}]
[68,null,null,null,null,null,null,null,null,null,null,null,null,null,null,null,null,null,null,null,null,null,null,null,null,null,null,null,null,null,null,null,null,{"$f":"DATEDIF(Tableau14[[#This Row],[Date de début d''antibiothérapie\n(JJ/MM/AAAA)]],Tableau14[[#This Row],[Date de fin d''antibiothérapie\n(JJ/MM/AAAA)]],\"d\")","v":0}]
[69,null,null,null,null,null,null,null,null,null,null,null,null,null,null,null,null,null,null,null,null,null,null,null,null,null,null,null,null,null,null,null,null,{"$f":"DATEDIF(Tableau14[[#This Row],[Date de début d''antibiothérapie\n(JJ/MM/AAAA)]],Tableau14[[#This Row],[Date de fin d''antibiothérapie\n(JJ/MM/AAAA)]],\"d\")","v":0}]
[70,null,null,null,null,null,null,null,null,null,null,null,null,null,null,null,null,null,null,null,null,null,null,null,null,null,null,null,null,null,null,null,null,{"$f":"DATEDIF(Tableau14[[#This Row],[Date de début d''antibiothérapie\n(JJ/MM/AAAA)]],Tableau14[[#This Row],[Date de fin d''antibiothérapie\n(JJ/MM/AAAA)]],\"d\")","v":0}]
[71,null,null,null,null,null,null,null,null,null,null,null,null,null,null,null,null,null,null,null,null,null,null,null,null,null,null,null,null,null,null,null,null,{"$f":"DATEDIF(Tableau14[[#This Row],[Date de début d''antibiothérapie\n(JJ/MM/AAAA)]],Tableau14[[#This Row],[Date de fin d''antibiothérapie\n(JJ/MM/AAAA)]],\"d\")","v":0}]
[72,null,null,null,null,null,null,null,null,null,null,null,null,null,null,null,null,null,null,null,null,null,null,null,null,null,null,null,null,null,null,null,null,{"$f":"DATEDIF(Tableau14[[#This Row],[Date de début d''antibiothérapie\n(JJ/MM/AAAA)]],Tableau14[[#This Row],[Date de fin d''antibiothérapie\n(JJ/MM/AAAA)]],\"d\")","v":0}]
[73,null,null,null,null,null,null,null,null,null,null,null,null,null,null,null,null,null,null,null,null,null,null,null,null,null,null,null,null,null,null,null,null,{"$f":"DATEDIF(Tableau14[[#This Row],[Date de début d''antibiothérapie\n(JJ/MM/AAAA)]],Tableau14[[#This Row],[Date de fin d''antibiothérapie\n(JJ/MM/AAAA)]],\"d\")","v":0}]
[74,null,null,null,null,null,null,null,null,null,null,null,null,null,null,null,null,null,null,null,null,null,null,null,null,null,null,null,null,null,null,null,null,{"$f":"DATEDIF(Tableau14[[#This Row],[Date de début d''antibiothérapie\n(JJ/MM/AAAA)]],Tableau14[[#This Row],[Date de fin d''antibiothérapie\n(JJ/MM/AAAA)]],\"d\")","v":0}]
[75,null,null,null,null,null,null,null,null,null,null,null,null,null,null,null,null,null,null,null,null,null,null,null,null,null,null,null,null,null,null,null,null,{"$f":"DATEDIF(Tableau14[[#This Row],[Date de début d''antibiothérapie\n(JJ/MM/AAAA)]],Tableau14[[#This Row],[Date de fin d''antibiothérapie\n(JJ/MM/AAAA)]],\"d\")","v":0}]
[76,null,null,null,null,null,null,null,null,null,null,null,null,null,null,null,null,null,null,null,null,null,null,null,null,null,null,null,null,null,null,null,null,{"$f":"DATEDIF(Tableau14[[#This Row],[Date de début d''antibiothérapie\n(JJ/MM/AAAA)]],Tableau14[[#This Row],[Date de fin d''antibiothérapie\n(JJ/MM/AAAA)]],\"d\")","v":0}]
[77,null,null,null,null,null,null,null,null,null,null,null,null,null,null,null,null,null,null,null,null,null,null,null,null,null,null,null,null,null,null,null,null,{"$f":"DATEDIF(Tableau14[[#This Row],[Date de début d''antibiothérapie\n(JJ/MM/AAAA)]],Tableau14[[#This Row],[Date de fin d''antibiothérapie\n(JJ/MM/AAAA)]],\"d\")","v":0}]
[78,null,null,null,null,null,null,null,null,null,null,null,null,null,null,null,null,null,null,null,null,null,null,null,null,null,null,null,null,null,null,null,null,{"$f":"DATEDIF(Tableau14[[#This Row],[Date de début d''antibiothérapie\n(JJ/MM/AAAA)]],Tableau14[[#This Row],[Date de fin d''antibiothérapie\n(JJ/MM/AAAA)]],\"d\")","v":0}]
[79,null,null,null,null,null,null,null,null,null,null,null,null,null,null,null,null,null,null,null,null,null,null,null,null,null,null,null,null,null,null,null,null,{"$f":"DATEDIF(Tableau14[[#This Row],[Date de début d''antibiothérapie\n(JJ/MM/AAAA)]],Tableau14[[#This Row],[Date de fin d''antibiothérapie\n(JJ/MM/AAAA)]],\"d\")","v":0}]
[80,null,null,null,null,null,null,null,null,null,null,null,null,null,null,null,null,null,null,null,null,null,null,null,null,null,null,null,null,null,null,null,null,{"$f":"DATEDIF(Tableau14[[#This Row],[Date de début d''antibiothérapie\n(JJ/MM/AAAA)]],Tableau14[[#This Row],[Date de fin d''antibiothérapie\n(JJ/MM/AAAA)]],\"d\")","v":0}]
[81,null,null,null,null,null,null,null,null,null,null,null,null,null,null,null,null,null,null,null,null,null,null,null,null,null,null,null,null,null,null,null,null,{"$f":"DATEDIF(Tableau14[[#This Row],[Date de début d''antibiothérapie\n(JJ/MM/AAAA)]],Tableau14[[#This Row],[Date de fin d''antibiothérapie\n(JJ/MM/AAAA)]],\"d\")","v":0}]
[82,null,null,null,null,null,null,null,null,null,null,null,null,null,null,null,null,null,null,null,null,null,null,null,null,null,null,null,null,null,null,null,null,{"$f":"DATEDIF(Tableau14[[#This Row],[Date de début d''antibiothérapie\n(JJ/MM/AAAA)]],Tableau14[[#This Row],[Date de fin d''antibiothérapie\n(JJ/MM/AAAA)]],\"d\")","v":0}]
[83,null,null,null,null,null,null,null,null,null,null,null,null,null,null,null,null,null,null,null,null,null,null,null,null,null,null,null,null,null,null,null,null,{"$f":"DATEDIF(Tableau14[[#This Row],[Date de début d''antibiothérapie\n(JJ/MM/AAAA)]],Tableau14[[#This Row],[Date de fin d''antibiothérapie\n(JJ/MM/AAAA)]],\"d\")","v":0}]
[84,null,null,null,null,null,null,null,null,null,null,null,null,null,null,null,null,null,null,null,null,null,null,null,null,null,null,null,null,null,null,null,null,{"$f":"DATEDIF(Tableau14[[#This Row],[Date de début d''antibiothérapie\n(JJ/MM/AAAA)]],Tableau14[[#This Row],[Date de fin d''antibiothérapie\n(JJ/MM/AAAA)]],\"d\")","v":0}]
[85,null,null,null,null,null,null,null,null,null,null,null,null,null,null,null,null,null,null,null,null,null,null,null,null,null,null,null,null,null,null,null,null,{"$f":"DATEDIF(Tableau14[[#This Row],[Date de début d''antibiothérapie\n(JJ/MM/AAAA)]],Tableau14[[#This Row],[Date de fin d''antibiothérapie\n(JJ/MM/AAAA)]],\"d\")","v":0}]
[86,null,null,null,null,null,null,null,null,null,null,null,null,null,null,null,null,null,null,null,null,null,null,null,null,null,null,null,null,null,null,null,null,{"$f":"DATEDIF(Tableau14[[#This Row],[Date de début d''antibiothérapie\n(JJ/MM/AAAA)]],Tableau14[[#This Row],[Date de fin d''antibiothérapie\n(JJ/MM/AAAA)]],\"d\")","v":0}]
[87,null,null,null,null,null,null,null,null,null,null,null,null,null,null,null,null,null,null,null,null,null,null,null,null,null,null,null,null,null,null,null,null,{"$f":"DATEDIF(Tableau14[[#This Row],[Date de début d''antibiothérapie\n(JJ/MM/AAAA)]],Tableau14[[#This Row],[Date de fin d''antibiothérapie\n(JJ/MM/AAAA)]],\"d\")","v":0}]
[88,null,null,null,null,null,null,null,null,null,null,null,null,null,null,null,null,null,null,null,null,null,null,null,null,null,null,null,null,null,null,null,null,{"$f":"DATEDIF(Tableau14[[#This Row],[Date de début d''antibiothérapie\n(JJ/MM/AAAA)]],Tableau14[[#This Row],[Date de fin d''antibiothérapie\n(JJ/MM/AAAA)]],\"d\")","v":0}]
[89,null,null,null,null,null,null,null,null,null,null,null,null,null,null,null,null,null,null,null,null,null,null,null,null,null,null,null,null,null,null,null,null,{"$f":"DATEDIF(Tableau14[[#This Row],[Date de début d''antibiothérapie\n(JJ/MM/AAAA)]],Tableau14[[#This Row],[Date de fin d''antibiothérapie\n(JJ/MM/AAAA)]],\"d\")","v":0}]
[90,null,null,null,null,null,null,null,null,null,null,null,null,null,null,null,null,null,null,null,null,null,null,null,null,null,null,null,null,null,null,null,null,{"$f":"DATEDIF(Tableau14[[#This Row],[Date de début d''antibiothérapie\n(JJ/MM/AAAA)]],Tableau14[[#This Row],[Date de fin d''antibiothérapie\n(JJ/MM/AAAA)]],\"d\")","v":0}]
[91,null,null,null,null,null,null,null,null,null,null,null,null,null,null,null,null,null,null,null,null,null,null,null,null,null,null,null,null,null,null,null,null,{"$f":"DATEDIF(Tableau14[[#This Row],[Date de début d''antibiothérapie\n(JJ/MM/AAAA)]],Tableau14[[#This Row],[Date de fin d''antibiothérapie\n(JJ/MM/AAAA)]],\"d\")","v":0}]
[92,null,null,null,null,null,null,null,null,null,null,null,null,null,null,null,null,null,null,null,null,null,null,null,null,null,null,null,null,null,null,null,null,{"$f":"DATEDIF(Tableau14[[#This Row],[Date de début d''antibiothérapie\n(JJ/MM/AAAA)]],Tableau14[[#This Row],[Date de fin d''antibiothérapie\n(JJ/MM/AAAA)]],\"d\")","v":0}]
[93,null,null,null,null,null,null,null,null,null,null,null,null,null,null,null,null,null,null,null,null,null,null,null,null,null,null,null,null,null,null,null,null,{"$f":"DATEDIF(Tableau14[[#This Row],[Date de début d''antibiothérapie\n(JJ/MM/AAAA)]],Tableau14[[#This Row],[Date de fin d''antibiothérapie\n(JJ/MM/AAAA)]],\"d\")","v":0}]
[94,null,null,null,null,null,null,null,null,null,null,null,null,null,null,null,null,null,null,null,null,null,null,null,null,null,null,null,null,null,null,null,null,{"$f":"DATEDIF(Tableau14[[#This Row],[Date de début d''antibiothérapie\n(JJ/MM/AAAA)]],Tableau14[[#This Row],[Date de fin d''antibiothérapie\n(JJ/MM/AAAA)]],\"d\")","v":0}]
[95,null,null,null,null,null,null,null,null,null,null,null,null,null,null,null,null,null,null,null,null,null,null,null,null,null,null,null,null,null,null,null,null,{"$f":"DATEDIF(Tableau14[[#This Row],[Date de début d''antibiothérapie\n(JJ/MM/AAAA)]],Tableau14[[#This Row],[Date de fin d''antibiothérapie\n(JJ/MM/AAAA)]],\"d\")","v":0}]
[96,null,null,null,null,null,null,null,null,null,null,null,null,null,null,null,null,null,null,null,null,null,null,null,null,null,null,null,null,null,null,null,null,{"$f":"DATEDIF(Tableau14[[#This Row],[Date de début d''antibiothérapie\n(JJ/MM/AAAA)]],Tableau14[[#This Row],[Date de fin d''antibiothérapie\n(JJ/MM/AAAA)]],\"d\")","v":0}]
[97,null,null,null,null,null,null,null,null,null,null,null,null,null,null,null,null,null,null,null,null,null,null,null,null,null,null,null,null,null,null,null,null,{"$f":"DATEDIF(Tableau14[[#This Row],[Date de début d''antibiothérapie\n(JJ/MM/AAAA)]],Tableau14[[#This Row],[Date de fin d''antibiothérapie\n(JJ/MM/AAAA)]],\"d\")","v":0}]
[98,null,null,null,null,null,null,null,null,null,null,null,null,null,null,null,null,null,null,null,null,null,null,null,null,null,null,null,null,null,null,null,null,{"$f":"DATEDIF(Tableau14[[#This Row],[Date de début d''antibiothérapie\n(JJ/MM/AAAA)]],Tableau14[[#This Row],[Date de fin d''antibiothérapie\n(JJ/MM/AAAA)]],\"d\")","v":0}]
[99,null,null,null,null,null,null,null,null,null,null,null,null,null,null,null,null,null,null,null,null,null,null,null,null,null,null,null,null,null,null,null,null,{"$f":"DATEDIF(Tableau14[[#This Row],[Date de début d''antibiothérapie\n(JJ/MM/AAAA)]],Tableau14[[#This Row],[Date de fin d''antibiothérapie\n(JJ/MM/AAAA)]],\"d\")","v":0}]
[{"$f":"A105+1","v":100},null,null,null,null,null,null,null,null,null,null,null,null,null,null,null,null,null,null,null,null,null,null,null,null,null,null,null,null,null,null,null,null,{"$f":"DATEDIF(Tableau14[[#This Row],[Date de début d''antibiothérapie\n(JJ/MM/AAAA)]],Tableau14[[#This Row],[Date de fin d''antibiothérapie\n(JJ/MM/AAAA)]],\"d\")","v":0}]

{"sheet":"3.RAPPORT STANDARD","index":2,"n_rows":154,"n_cols":12,"rows_kept":154,"cut":false,"hidden":false,"merged":[[119,2,119,11],[120,2,120,11],[121,2,121,11],[124,10,124,11],[102,3,102,11],[98,2,98,5],[96,8,96,11],[98,8,98,11],[56,1,56,11],[100,2,100,11],[150,1,150,2],[125,2,125,9],[128,2,128,9],[144,1,145,5],[124,2,124,9],[147,1,147,2],[149,1,149,2],[146,3,147,3],[146,4,147,4],[148,1,148,2],[130,2,130,9],[135,2,135,9],[136,2,136,9],[129,2,129,9],[137,2,137,9],[138,2,138,9],[139,2,139,9],[13,7,13,8],[13,10,14,10],[14,7,14,8],[50,2,50,5],[52,2,52,5],[50,8,50,11],[52,8,52,11],[16,1,16,11],[126,10,126,11],[128,10,128,11],[127,10,127,11],[54,3,54,11],[116,1,116,3],[137,10,137,11],[96,2,96,5],[0,1,0,2],[1,1,1,2],[3,1,3,2],[0,3,1,7],[3,3,3,6],[5,1,5,11],[13,11,14,11],[10,1,10,2],[10,4,10,5],[9,7,9,8],[12,1,12,6],[13,5,13,6],[14,5,14,6],[12,7,12,11],[7,5,7,11],[10,7,10,8],[9,1,9,6],[3,9,3,10],[153,1,153,11],[154,1,161,11],[104,1,104,11],[118,1,118,11],[132,10,132,11],[123,1,123,11],[125,10,125,11],[126,2,126,9],[127,2,127,9],[151,8,151,9],[151,10,151,11],[141,2,141,9],[141,10,141,11],[137,1,141,1],[143,1,143,11],[140,2,140,9],[129,10,129,11],[130,1,136,1],[124,1,129,1],[136,10,136,11],[130,10,130,11],[133,2,133,9],[134,2,134,9],[131,2,131,9],[132,2,132,9],[131,10,131,11],[133,10,133,11],[134,10,134,11],[135,10,135,11],[138,10,138,11],[139,10,139,11]]}
[null,null,null,"RAPPORT STANDARD  \nDocumentation et pertinence de la prescription d'antibiothérapies par rapport au référentiel de l'établissement de santé"]
[]
[null," "]
[null,"Etablissement :",null,{"$f":"'2.GRILLE DE RECUEIL'!D1","v":0},null,null,null,null,"Date :",{"$f":"'2.GRILLE DE RECUEIL'!D2","v":"00:00:00"}]
[null," "]
[null,"TYPOLOGIE DES PATIENTS"]
[]
[null,{"$f":"COUNTIF('2.GRILLE DE RECUEIL'!$E:$E,\"M\")+COUNTIF('2.GRILLE DE RECUEIL'!$E:$E,\"F\")","v":0},"patients évalués",null,{"$f":"COUNTIF('2.GRILLE DE RECUEIL'!$F:$F,\"Oui\")+COUNTIF('2.GRILLE DE RECUEIL'!$F:$F,\"Non\")","v":0},"infections évaluées (possiblement ≠ du nombre de patients selon l'unité d'évaluation choisie)"]
[]
[null,"Nombre de lignes évaluées (patient ou infection) par type de service :",null,null,null,null,null,"Chirurgie :",null,{"$f":"COUNTIF('2.GRILLE DE RECUEIL'!$B:$B,\"Chirurgie\")","v":0},"Médecine :",{"$f":"COUNTIF('2.GRILLE DE RECUEIL'!$B:$B,\"Médecine\")","v":0}]
[null,"Réanimation :",null,{"$f":"COUNTIF('2.GRILLE DE RECUEIL'!$B:$B,\"Réanimation\")","v":0},"Urgences :",null,{"$f":"COUNTIF('2.GRILLE DE RECUEIL'!$B:$B,\"Urgences\")","v":0},"Onco-hématologie :",null,{"$f":"COUNTIF('2.GRILLE DE RECUEIL'!$B:$B,\"Onco-hématologie\")","v":0},"Autre :",{"$f":"COUNTIF('2.GRILLE DE RECUEIL'!$B:$B,\"Autre\")","v":0}]
[]
[null,"Sexe des patients",null,null,null,null,null,"Age des patients"]
[null,{"$f":"COUNTIF('2.GRILLE DE RECUEIL'!$E:$E,\"F\")","v":0},"femme(s)","soit",{"$f":"B14/B8","v":{"$error":"#DIV/0!"}},"des patients",null,"Mini :",null,{"$f":"MIN(Tableau14[Age du patient])","v":0},"Moyen :",{"$f":"AVERAGE(Tableau14[Age du patient])","v":{"$error":"#DIV/0!"}}]
[null,{"$f":"COUNTIF('2.GRILLE DE RECUEIL'!$E:$E,\"M\")","v":0},"homme(s)","soit",{"$f":"B15/B8","v":{"$error":"#DIV/0!"}},"des patients",null,"Maxi :",null,{"$f":"MAX(Tableau14[Age du patient])","v":0}]
[]
[null,"ÉVALUATION AU JOUR 1"]
[]
[]
[]
[]
[]
[]
[]
[]
[]
[]
[]
[]
[]
[]
[]
[]
[]
[]
[]
[]
[]
[]
[]
[]
[]
[]
[]
[]
[]
[]
[]
[]
[]
[null,{"$f":"'5. ANALYSE APPROFONDIE'!J170","v":{"$error":"#DIV/0!"}},"d'antibiotiques administrés par voie orale à J1",null,null,null,null,{"$f":"'5. ANALYSE APPROFONDIE'!J184","v":{"$error":"#DIV/0!"}},"de prescriptions avec toutes les molécules appropriées à J1"]
[null,"parmi les dossiers applicables",null,null,null,null,null,"parmi les dossiers applicables"]
[null,{"$f":"'5. ANALYSE APPROFONDIE'!J178","v":{"$error":"#DIV/0!"}},"de prescriptions \"utiles\" après évaluation de la démarche diagnostique à J1",null,null,null,null,{"$f":"'5. ANALYSE APPROFONDIE'!J190","v":{"$error":"#DIV/0!"}},"de prescriptions avec toutes les voies d'administration appropriées à J1"]
[null,"parmi les dossiers applicables",null,null,null,null,null,"parmi les dossiers applicables"]
[null,null,{"$f":"'5. ANALYSE APPROFONDIE'!J196","v":{"$error":"#DIV/0!"}},"de prescriptions appropriées (molécule + voie d'administration) à J1"]
[null,null,"parmi les dossiers applicables"]
[null,"ÉVALUATION AUX JOURS 2 - 4"]
[]
[]
[]
[]
[]
[]
[]
[]
[]
[]
[]
[]
[]
[]
[]
[]
[]
[]
[]
[]
[]
[]
[]
[]
[]
[]
[]
[]
[]
[]
[]
[]
[]
[]
[]
[]
[]
[]
[]
[null,{"$f":"'5. ANALYSE APPROFONDIE'!J363","v":{"$error":"#DIV/0!"}},"d'antibiotiques administrés par voie orale à J2-J4",null,null,null,null,{"$f":"'5. ANALYSE APPROFONDIE'!J377","v":{"$error":"#DIV/0!"}},"de prescriptions avec toutes les molécules appropriées à J2-J4"]
[null,"parmi les dossiers applicables",null,null,null,null,null,"parmi les dossiers applicables"]
[null,{"$f":"'5. ANALYSE APPROFONDIE'!J371","v":{"$error":"#DIV/0!"}},"de poursuites de l'antibiothérapie \"utiles\" après évaluation de la démarche diagnostique à J2-J4",null,null,null,null,{"$f":"'5. ANALYSE APPROFONDIE'!J383","v":{"$error":"#DIV/0!"}},"de prescriptions avec toutes les voies d'administration appropriées à J2-J4"]
[null,"parmi les dossiers applicables",null,null,null,null,null,"parmi les dossiers applicables"]
[null,{"$f":"'5. ANALYSE APPROFONDIE'!J395","v":{"$error":"#DIV/0!"}},"de prescriptions dont la durée de traitement prévue à la réévaluation est appropriée à J2-J4"]
[null,"parmi les dossiers applicables"]
[null,null,{"$f":"'5. ANALYSE APPROFONDIE'!J395","v":{"$error":"#DIV/0!"}},"de prescriptions appropriées (molécule + voie d'administration + durée) à J2 - J4"]
[null,null,"parmi les dossiers applicables"]
[null,"ÉVALUATION COMPLÉMENTAIRE"]
[]
[]
[]
[]
[]
[]
[]
[]
[]
[]
[]
[null,"Durée moyenne de traitement :",null,null,{"$f":"'5. ANALYSE APPROFONDIE'!D422","v":{"$error":"#DIV/0!"}},"jours","Min : ",{"$f":"'5. ANALYSE APPROFONDIE'!D424","v":0},"jours","Max :",{"$f":"'5. ANALYSE APPROFONDIE'!D423","v":0},"jours"]
[]
[null,"ANALYSE PHARMACEUTIQUE"]
[null,{"$f":"'5. ANALYSE APPROFONDIE'!J401","v":{"$error":"#DIV/0!"}},"de prescriptions pour lesquelles une analyse pharmaceutique est réalisée"]
[null,{"$f":"'5. ANALYSE APPROFONDIE'!J407","v":{"$error":"#DIV/0!"}},"d'interventions pharmaceutiques réalisées en cas de prescription inappropriée"]
[null,{"$f":"'5. ANALYSE APPROFONDIE'!J413","v":{"$error":"#DIV/0!"}},"d'interventions pharmaceutiques acceptées lorsqu'elle sont réalisées"]
[null,"parmi les dossiers applicables"]
[null,"RÉCAPITULATIF ANALYSE GLOBALE"]
[null,"J1","Indication de l'antibiothérapie tracée",null,null,null,null,null,null,null,{"$f":"'5. ANALYSE APPROFONDIE'!J11","v":{"$error":"#DIV/0!"}}]
[null,null,"Antibiotiques administrés par voie orale\nparmi les dossiers applicables",null,null,null,null,null,null,null,{"$f":"'5. ANALYSE APPROFONDIE'!J170","v":{"$error":"#DIV/0!"}}]
[null,null,"Prescriptions \"utiles\" après évaluation de la démarche diagnostique\nparmi les dossiers applicables",null,null,null,null,null,null,null,{"$f":"'5. ANALYSE APPROFONDIE'!J178","v":{"$error":"#DIV/0!"}}]
[null,null,"Toutes les molécules appropriées\nparmi les dossiers applicables",null,null,null,null,null,null,null,{"$f":"'5. ANALYSE APPROFONDIE'!J184","v":{"$error":"#DIV/0!"}}]
[null,null,"Toutes les voies d'administration appropriées\nparmi les dossiers applicables",null,null,null,null,null,null,null,{"$f":"'5. ANALYSE APPROFONDIE'!J190","v":{"$error":"#DIV/0!"}}]
[null,null,"Prescriptions appropriées (molécule + voie d'administration)\nparmi les dossiers applicables",null,null,null,null,null,null,null,{"$f":"'5. ANALYSE APPROFONDIE'!J196","v":{"$error":"#DIV/0!"}}]
[null,"J2-J4","Réévaluation de l'antibiothérapie tracée\nparmi les dossiers applicables",null,null,null,null,null,null,null,{"$f":"'5. ANALYSE APPROFONDIE'!J202","v":{"$error":"#DIV/0!"}}]
[null,null,"Antibiotiques administrés par voie orale\nparmi les dossiers applicables",null,null,null,null,null,null,null,{"$f":"'5. ANALYSE APPROFONDIE'!J363","v":{"$error":"#DIV/0!"}}]
[null,null,"Poursuite de l'antibiothérapie \"utile\" après évaluation de la démarche diagnostique\nparmi les dossiers applicables",null,null,null,null,null,null,null,{"$f":"'5. ANALYSE APPROFONDIE'!J371","v":{"$error":"#DIV/0!"}}]
[null,null,"Toutes les molécules appropriées\nparmi les dossiers applicables",null,null,null,null,null,null,null,{"$f":"'5. ANALYSE APPROFONDIE'!J377","v":{"$error":"#DIV/0!"}}]
[null,null,"Toutes les voies d'administration appropriées\nparmi les dossiers applicables",null,null,null,null,null,null,null,{"$f":"'5. ANALYSE APPROFONDIE'!J383","v":{"$error":"#DIV/0!"}}]
[null,null,"Durée de traitement prévue à la réévaluation appropriée\nparmi les dossiers applicables",null,null,null,null,null,null,null,{"$f":"'5. ANALYSE APPROFONDIE'!J389","v":{"$error":"#DIV/0!"}}]
[null,null,"Prescriptions appropriées (molécule + voie d'administration + durée)\nparmi les dossiers applicables",null,null,null,null,null,null,null,{"$f":"'5. ANALYSE APPROFONDIE'!J395","v":{"$error":"#DIV/0!"}}]
[null,"Evaluation complémentaire","Analyse pharmaceutique réalisée\nparmi les dossiers applicables",null,null,null,null,null,null,null,{"$f":"'5. ANALYSE APPROFONDIE'!J401","v":{"$error":"#DIV/0!"}}]
[null,null,"Intervention pharmaceutique réalisée en cas de prescription inappropriée\nparmi les dossiers applicables",null,null,null,null,null,null,null,{"$f":"'5. ANALYSE APPROFONDIE'!J407","v":{"$error":"#DIV/0!"}}]
[null,null,"Intervention pharmaceutique acceptée lorsqu'elle est réalisée\nparmi les dossiers applicables",null,null,null,null,null,null,null,{"$f":"'5. ANALYSE APPROFONDIE'!J413","v":{"$error":"#DIV/0!"}}]
[null,null,"Durée moyenne de traitement",null,null,null,null,null,null,null,{"$f":"'5. ANALYSE APPROFONDIE'!D422","v":{"$error":"#DIV/0!"}},"jours"]
[null,null,"Justification pour les traitements de plus de 7 jours \nparmi les dossiers applicables",null,null,null,null,null,null,null,{"$f":"'5. ANALYSE APPROFONDIE'!J429","v":{"$error":"#DIV/0!"}}]
[]
[null,"ÉVOLUTION TEMPORELLE"]
[null,"Renseignez ci-dessous les 2 derniers pourcentages obtenus (N-1 et N-2) avant ceux que vous venez d'obtenir pour vous comparer dans le temps."]
[]
[null,null,null,"N-2","N-1","Valeur du"]
[null,null,null,null,null,{"$f":"'2.GRILLE DE RECUEIL'!D2","v":"00:00:00"}]
[null,"Indication de l'antibiothérapie tracée",null,null,null,{"$f":"'5. ANALYSE APPROFONDIE'!J11","v":{"$error":"#DIV/0!"}}]
[null,"Réévaluation de l'antibiothérapie tracée",null,null,null,{"$f":"'5. ANALYSE APPROFONDIE'!J202","v":{"$error":"#DIV/0!"}}]
[null,"Justification pour les traitements de plus de 7 jours ",null,null,null,{"$f":"'5. ANALYSE APPROFONDIE'!J429","v":{"$error":"#DIV/0!"}}]
[null,null,null,null,null,null,null,"      N-2","             N-1",null,"Valeur actuelle"]
[]
[null,"MESSAGES-CLÉS DE L'ÉVALUATEUR - RÉSULTATS ET SUITES A DONNER"]

{"sheet":"4.RAPPORT COURT","index":3,"n_rows":76,"n_cols":12,"rows_kept":76,"cut":false,"hidden":false,"merged":[[3,9,3,10],[30,8,30,11],[32,8,32,11],[34,8,34,11],[51,1,55,1],[48,1,48,3],[51,2,51,9],[51,10,51,11],[53,2,53,9],[53,10,53,11],[36,1,36,11],[50,1,50,11],[16,8,16,11],[18,8,18,11],[20,8,20,11],[22,8,22,11],[75,1,75,11],[72,1,72,2],[73,8,73,9],[73,10,73,11],[0,9,1,11],[71,1,71,2],[65,1,65,11],[66,1,67,5],[68,3,69,3],[68,4,69,4],[69,1,69,2],[70,1,70,2],[52,2,52,9],[52,10,52,11],[24,1,24,11],[28,8,28,11],[26,8,26,11],[0,1,0,2],[0,3,1,7],[1,1,1,2],[3,1,3,2],[3,3,3,6],[5,1,5,11],[10,1,10,2],[10,4,10,5],[14,1,14,11],[11,7,11,8],[11,10,12,10],[11,11,12,11],[12,7,12,8],[11,1,11,2],[11,4,11,5],[12,1,12,2],[12,4,12,5],[7,5,7,11],[9,1,9,6],[9,7,10,11],[59,2,59,9],[59,10,59,11],[57,2,57,9],[57,10,57,11],[58,2,58,9],[58,10,58,11],[76,1,81,11],[54,2,54,9],[54,10,54,11],[55,2,55,9],[55,10,55,11],[56,2,56,9],[56,10,56,11],[62,2,62,9],[63,2,63,9],[63,10,63,11],[62,1,63,1],[60,2,60,9],[60,10,60,11],[61,2,61,9],[61,10,61,11],[56,1,61,1]]}
[null,null,null,"RAPPORT COURT \n(champs conseillés uniquement)\nDocumentation et pertinence de la prescription d'antibiothérapies par rapport au référentiel de l'établissement de santé"]
[]
[null," "]
[null,"Etablissement :",null,{"$f":"'2.GRILLE DE RECUEIL'!D1","v":0},null,null,null,null,"Date :",{"$f":"'2.GRILLE DE RECUEIL'!D2","v":"00:00:00"}]
[null," "]
[null,"TYPOLOGIE DES PATIENTS"]
[]
[null,{"$f":"COUNTIF('2.GRILLE DE RECUEIL'!$E:$E,\"M\")+COUNTIF('2.GRILLE DE RECUEIL'!$E:$E,\"F\")","v":0},"patients évalués",null,{"$f":"COUNTIF('2.GRILLE DE RECUEIL'!$F:$F,\"Oui\")+COUNTIF('2.GRILLE DE RECUEIL'!$F:$F,\"Non\")","v":0},"infections évaluées (possiblement ≠ du nombre de patients selon l'unité d'évaluation choisie)"]
[]
[null,"Nombre de lignes évaluées (patient ou infection) par type de service :",null,null,null,null,null,"Age des patients"]
[null,"Réanimation :",null,{"$f":"COUNTIF('2.GRILLE DE RECUEIL'!$B:$B,\"Réanimation\")","v":0},"Urgences :",null,{"$f":"COUNTIF('2.GRILLE DE RECUEIL'!$B:$B,\"Urgences\")","v":0}]
[null,"Chirurgie :",null,{"$f":"COUNTIF('2.GRILLE DE RECUEIL'!$B:$B,\"Chirurgie\")","v":0},"Médecine :",null,{"$f":"COUNTIF('2.GRILLE DE RECUEIL'!$B:$B,\"Médecine\")","v":0},"Mini :",null,{"$f":"MIN(Tableau14[Age du patient])","v":0},"Moyen :",{"$f":"AVERAGE(Tableau14[Age du patient])","v":{"$error":"#DIV/0!"}}]
[null,"Onco-hématologie :",null,{"$f":"COUNTIF('2.GRILLE DE RECUEIL'!$B:$B,\"Onco-hématologie\")","v":0},"Autre :",null,{"$f":"COUNTIF('2.GRILLE DE RECUEIL'!$B:$B,\"Autre\")","v":0},"Maxi :",null,{"$f":"MAX(Tableau14[Age du patient])","v":0}]
[]
[null,"ÉVALUATION AU JOUR 1"]
[]
[null,null,null,null,null,null,null,{"$f":"'5. ANALYSE APPROFONDIE'!J178","v":{"$error":"#DIV/0!"}},"de prescriptions \"utiles\" après évaluation de la démarche diagnostique à J1"]
[null,null,null,null,null,null,null,"parmi les dossiers applicables"]
[null,null,null,null,null,null,null,{"$f":"'5. ANALYSE APPROFONDIE'!J184","v":{"$error":"#DIV/0!"}},"de prescriptions avec toutes les molécules appropriées à J1"]
[null,null,null,null,null,null,null,"parmi les dossiers applicables"]
[null,null,null,null,null,null,null,{"$f":"'5. ANALYSE APPROFONDIE'!J190","v":{"$error":"#DIV/0!"}},"de prescriptions avec toutes les voies d'administration appropriées à J1"]
[null,null,null,null,null,null,null,"parmi les dossiers applicables"]
[null,null,null,null,null,null,null,{"$f":"'5. ANALYSE APPROFONDIE'!J196","v":{"$error":"#DIV/0!"}},"de prescriptions appropriées (molécule + voie d'administration) à J1"]
[null,null,null,null,null,null,null,"parmi les dossiers applicables"]
[null,"ÉVALUATION AUX JOURS 2 - 4"]
[]
[null,null,null,null,null,null,null,{"$f":"'5. ANALYSE APPROFONDIE'!J371","v":{"$error":"#DIV/0!"}},"de poursuites de l'antibiothérapie \"utiles\" après évaluation de la démarche diagnostique à J2-J4"]
[null,null,null,null,null,null,null,"parmi les dossiers applicables"]
[null,null,null,null,null,null,null,{"$f":"'5. ANALYSE APPROFONDIE'!J377","v":{"$error":"#DIV/0!"}},"de prescriptions avec toutes les molécules appropriées à J2-J4"]
[null,null,null,null,null,null,null,"parmi les dossiers applicables"]
[null,null,null,null,null,null,null,{"$f":"'5. ANALYSE APPROFONDIE'!J383","v":{"$error":"#DIV/0!"}},"de prescriptions avec toutes les voies d'administration appropriées à J2-J4"]
[null,null,null,null,null,null,null,"parmi les dossiers applicables"]
[null,null,null,null,null,null,null,{"$f":"'5. ANALYSE APPROFONDIE'!J395","v":{"$error":"#DIV/0!"}},"de prescriptions dont la durée de traitement prévue à la réévaluation est appropriée à J2-J4"]
[null,null,null,null,null,null,null,"parmi les dossiers applicables"]
[null,null,null,null,null,null,null,{"$f":"'5. ANALYSE APPROFONDIE'!J395","v":{"$error":"#DIV/0!"}},"de prescriptions appropriées (molécule + voie d'administration + durée) à J2 - J4"]
[null,null,null,null,null,null,null,"parmi les dossiers applicables"]
[null,"ÉVALUATION COMPLÉMENTAIRE"]
[]
[]
[]
[]
[]
[]
[]
[]
[]
[]
[]
[null,"Durée moyenne de traitement :",null,null,{"$f":"'5. ANALYSE APPROFONDIE'!D354","v":0},"jours","Min : ",{"$f":"'5. ANALYSE APPROFONDIE'!D356","v":0},"jours","Max :",{"$f":"'5. ANALYSE APPROFONDIE'!D355","v":0},"jours"]
[]
[null,"RÉCAPITULATIF ANALYSE GLOBALE"]
[null,"J1","Indication de l'antibiothérapie tracée",null,null,null,null,null,null,null,0.66666666666666663]
[null,null,"Prescriptions \"utiles\" après évaluation de la démarche diagnostique\nparmi les dossiers applicables",null,null,null,null,null,null,null,{"$error":"#DIV/0!"}]
[null,null,"Toutes les molécules appropriées\nparmi les dossiers applicables",null,null,null,null,null,null,null,0.8]
[null,null,"Toutes les voies d'administration appropriées\nparmi les dossiers applicables",null,null,null,null,null,null,null,0.66666666666666663]
[null,null,"Prescriptions appropriées (molécule + voie d'administration)\nparmi les dossiers applicables",null,null,null,null,null,null,null,0.4]
[null,"J2-J4","Réévaluation de l'antibiothérapie tracée\nparmi les dossiers applicables",null,null,null,null,null,null,null,0.66666666666666663]
[null,null,"Poursuite de l'antibiothérapie \"utile\" après évaluation de la démarche diagnostique\nparmi les dossiers applicables",null,null,null,null,null,null,null,{"$error":"#DIV/0!"}]
[null,null,"Toutes les molécules appropriées\nparmi les dossiers applicables",null,null,null,null,null,null,null,0.5]
[null,null,"Toutes les voies d'administration appropriées\nparmi les dossiers applicables",null,null,null,null,null,null,null,0.375]
[null,null,"Durée de traitement prévue à la réévaluation appropriée\nparmi les dossiers applicables",null,null,null,null,null,null,null,0.33333333333333331]
[null,null,"Prescriptions appropriées (molécule + voie d'administration + durée)\nparmi les dossiers applicables",null,null,null,null,null,null,null,0.2]
[null,"Evaluation complémentaire","Durée moyenne de traitement",null,null,null,null,null,null,null,{"$f":"'5. ANALYSE APPROFONDIE'!D422","v":{"$error":"#DIV/0!"}},"jours"]
[null,null,"Justification pour les traitements de plus de 7 jours \nparmi les dossiers applicables",null,null,null,null,null,null,null,0.33333333333333331]
[]
[null,"ÉVOLUTION TEMPORELLE"]
[null,"Renseignez ci-dessous les 2 derniers pourcentages obtenus (N-1 et N-2) avant ceux que vous venez d'obtenir pour vous comparer dans le temps."]
[]
[null,null,null,"N-2","N-1","Valeur du"]
[null,null,null,null,null,{"$f":"'2.GRILLE DE RECUEIL'!D2","v":"00:00:00"}]
[null,"Indication de l'antibiothérapie tracée",null,null,null,0.66666666666666663]
[null,"Réévaluation de l'antibiothérapie tracée",null,null,null,0.66666666666666663]
[null,"Justification pour les traitements de plus de 7 jours ",null,null,null,0.33333333333333331]
[null,null,null,null,null,null,null,"      N-2","            N-1",null,"Valeur actuelle"]
[]
[null,"MESSAGES-CLÉS DE L'ÉVALUATEUR - RÉSULTATS ET SUITES A DONNER"]

{"sheet":"5. ANALYSE APPROFONDIE","index":4,"n_rows":432,"n_cols":32,"rows_kept":432,"cut":false,"hidden":false,"merged":[[430,4,430,9],[431,2,431,9],[427,2,427,3],[427,5,427,6],[3,2,3,9],[418,3,418,5],[419,3,419,5],[418,6,419,8],[389,2,389,5],[401,2,401,5],[428,2,428,3],[429,2,429,3],[425,1,425,9],[400,2,400,5],[403,1,403,9],[412,2,412,3],[413,2,413,3],[406,2,406,5],[412,4,413,8],[409,1,409,9],[200,5,200,6],[200,8,200,9],[407,2,407,5],[373,1,373,9],[0,2,1,5],[206,1,206,9],[54,1,54,9],[176,8,176,9],[177,2,177,5],[183,2,183,5],[189,2,189,5],[176,2,176,3],[192,1,192,9],[180,1,180,9],[10,3,10,4],[11,3,11,4],[204,7,204,9],[203,7,203,9],[203,2,204,5],[169,5,172,8],[184,2,184,5],[200,2,200,3],[178,2,178,5],[174,1,174,9],[186,1,186,9],[198,1,198,9],[2,1,2,2],[2,3,2,9],[393,2,393,3],[393,5,393,6],[393,8,393,9],[394,2,394,4],[367,1,367,9],[201,6,202,8],[201,2,202,3],[201,4,201,5],[202,4,202,5],[208,6,208,9],[375,5,375,6],[375,8,375,9],[376,5,377,8],[376,2,376,4],[377,2,377,4],[203,1,204,1],[249,6,249,9],[387,5,387,6],[387,8,387,9],[247,1,247,9],[379,1,379,9],[369,2,369,3],[369,5,369,6],[381,8,381,9],[382,5,383,8],[382,2,382,4],[383,2,383,4],[190,2,190,5],[361,2,361,9],[196,2,196,4],[195,5,196,8],[392,2,392,9],[8,30,8,31],[8,25,8,27],[8,28,8,29],[10,6,11,6],[8,1,8,9],[10,5,11,5],[13,1,13,9],[169,4,172,4],[169,3,172,3],[10,7,11,8],[10,2,11,2],[167,1,167,9],[370,2,370,4],[371,2,371,4],[375,2,375,3],[360,1,360,9],[362,3,365,3],[362,4,365,4],[395,2,395,4],[394,5,395,8],[5,5,5,9],[6,4,6,9],[6,1,6,3],[15,6,15,9],[56,6,56,9],[176,5,176,6],[177,6,178,8],[182,2,182,3],[182,5,182,6],[182,8,182,9],[9,2,9,9],[175,2,175,9],[385,1,385,9],[362,5,365,8],[381,2,381,3],[381,5,381,6],[398,2,398,9],[181,2,181,9],[187,2,187,9],[199,2,199,9],[374,2,374,9],[380,2,380,9],[368,2,368,9],[386,2,386,9],[193,2,193,9],[194,2,194,3],[194,5,194,6],[194,8,194,9],[195,2,195,4],[388,6,389,8],[388,2,388,5],[397,1,397,9],[387,2,387,3],[183,6,184,8],[188,2,188,3],[188,5,188,6],[188,8,188,9],[189,6,190,8],[369,8,369,9],[370,5,371,8],[422,1,422,2],[423,1,423,2],[411,8,411,9],[428,4,429,8],[417,2,417,9],[410,2,410,9],[416,2,416,9],[404,2,404,9],[168,2,168,9],[426,2,426,9],[411,5,411,6],[411,2,411,3],[427,8,427,9],[399,2,399,3],[399,5,399,6],[399,8,399,9],[400,6,401,8],[405,2,405,3],[405,5,405,6],[405,8,405,9],[406,6,407,8],[415,1,415,9],[421,1,421,2],[391,1,391,9]]}
[null,null,"ANALYSE APPROFONDIE \n\nDocumentation et pertinence de la prescription d'antibiothérapies par rapport au référentiel de l'établissement de santé"]
[]
[null,"SOMMAIRE",null,"UTILISATION\n\nCet onglet est verrouillé. Vous ne pouvez pas le modifier. Il vous permet de consulter des données complémentaires à celles reportées dans les RAPPORT STANDARD et RAPPORT COURT. \n\n­ Veuillez le consulter après l'avoir actualisé en cliquant sur le bouton en haut à droite.\n¬ Utilisez le sommaire à gauche ou défilez vers le bas pour afficher les jeux de données.\n\n                             Indiquent le N° de la question."]
[null,null,"Pensez à vérifier que vos dénominateurs correspondent bien au nombre de lignes remplies, sinon, revérifiez votre grille de recueil. Le nombre de patients peut y être inférieur, car vous avez la possibilité de remplir plusieurs lignes par patient si vous souhaitez évaluer chaque antibiothérapie individuellement."]
[]
[null,{"$f":"COUNTIF('2.GRILLE DE RECUEIL'!$E:$E,\"M\")+COUNTIF('2.GRILLE DE RECUEIL'!$E:$E,\"F\")","v":0},"patients inclus*",null,{"$f":"COUNTIF('2.GRILLE DE RECUEIL'!$F:$F,\"Oui\")+COUNTIF('2.GRILLE DE RECUEIL'!$F:$F,\"Non\")","v":0},"infections évaluées** \n(possiblement ≠ du nombre de patients selon l'unité d'évaluation choisie)"]
[null,"* calculé à partir du nombre de réponses (homme ou femme) renseignées pour l'item N°4. ",null,null,"** calculé à partir du nombre de réponses renseignées pour l'item N°5."]
[]
[null,"Indication de l'antibiothérapie tracée",null,null,null,null,null,null,null,null,null,null,null,null,null,null,null,null,null,null,null,null,null,null,null,"Calcul de la proportion d'ATB administrés PO à J2-J4 (% affiché dans le rapport automatisé)",null,null,"Durée > 7 jours",null,"Parmi les traitements de plus de 7 jours, dossiers avec justification ttt > 7 jours"]
[null,null,"Nombre et taux de cas où l'indication de l'antibiothérapie est tracée dans le dossier patient.\n- Les dossiers applicables correspondent à ceux pour lesquels l'évaluateur a rempli \"Oui\" ou \"Non\" à l'item N°5.\n- Pas de dossier inapplicable."]
[null,{"$f":"COUNTIF('2.GRILLE DE RECUEIL'!$F:$F,\"Oui\")","v":0},"antibiothérapie(s) dont l'indication est","tracée dans le dossier",null,"parmi",{"$f":"COUNTIF('2.GRILLE DE RECUEIL'!$F:$F,\"Oui\")+COUNTIF('2.GRILLE DE RECUEIL'!$F:$F,\"Non\")","v":0},"dossier(s) applicable(s), soit",null,{"$f":"B11/G11","v":{"$error":"#DIV/0!"}},null,null,null,null,null,null,null,null,null,null,null,null,null,null,null,"Nombre d'antibiotiques administrés par voie PO à J2-J4","Nombre d'antibiotiques administrés par IV, SC ou IM à J2-J4","Total","Durée de traitement supérieure à 7 jours",{"$f":"COUNTIF(#REF!,\">7\")","v":{"$error":"#REF!"}},"Avec justification concernant la durée de traitement",{"$f":"COUNTIF('2.GRILLE DE RECUEIL'!#REF!,\"Oui\")/AD11","v":{"$error":"#REF!"}}]
[null,{"$f":"COUNTIF('2.GRILLE DE RECUEIL'!$F:$F,\"Non\")","v":0},null,"non-tracée dans le dossier",null,null,null,null,null,{"$f":"B12/G11","v":{"$error":"#DIV/0!"}},null,null,null,null,null,null,null,null,null,null,null,null,null,null,null,{"$f":"COUNTIF('2.GRILLE DE RECUEIL'!$T:$T,\"PO\")+COUNTIF('2.GRILLE DE RECUEIL'!$V:$V,\"PO\")+COUNTIF('2.GRILLE DE RECUEIL'!$X:$X,\"PO\")","v":0},{"$f":"COUNTIF('2.GRILLE DE RECUEIL'!$T:$T,\"IV\")+COUNTIF('2.GRILLE DE RECUEIL'!$V:$V,\"IV\")+COUNTIF('2.GRILLE DE RECUEIL'!$X:$X,\"IV\")+COUNTIF('2.GRILLE DE RECUEIL'!$T:$T,\"IM\")+COUNTIF('2.GRILLE DE RECUEIL'!$V:$V,\"IM\")+COUNTIF('2.GRILLE DE RECUEIL'!$X:$X,\"IM\")+COUNTIF('2.GRILLE DE RECUEIL'!$T:$T,\"SC\")+COUNTIF('2.GRILLE DE RECUEIL'!$V:$V,\"SC\")+COUNTIF('2.GRILLE DE RECUEIL'!$X:$X,\"SC\")","v":0},{"$f":"Z12+AA12","v":0},"Durée de traitement inférieure ou égale à 7 jours",{"$f":"COUNTIFS(#REF!,\"<=7\",#REF!,\"<>0\")","v":{"$error":"#REF!"}},"Sans justification concernant la durée de traitement",{"$f":"COUNTIF('2.GRILLE DE RECUEIL'!#REF!,\"Non\")/AD11","v":{"$error":"#REF!"}}]
[]
[null,"Catégorie d'infection suspectée"]
[]
[null,null,"Catégorie d'infection","Nombre d'infections",null,null,"Catégories d'infections renseignées et nombre associé, affichées par ordre décroissant si > 0."]
[null,null,"Abcès cérébral",{"$f":"COUNTIF(Tableau14[Catégorie d''infection suspectée], Tableau1[[#This Row],[Catégorie d''infection]])","v":0}]
[null,null,"Angines et pharyngites",{"$f":"COUNTIF(Tableau14[Catégorie d''infection suspectée], Tableau1[[#This Row],[Catégorie d''infection]])","v":0}]
[null,null,"Aucun foyer infectieux identifié",{"$f":"COUNTIF(Tableau14[Catégorie d''infection suspectée], Tableau1[[#This Row],[Catégorie d''infection]])","v":0}]
[null,null,"Autre infection",{"$f":"COUNTIF(Tableau14[Catégorie d''infection suspectée], Tableau1[[#This Row],[Catégorie d''infection]])","v":0}]
[null,null,"Péritonites",{"$f":"COUNTIF(Tableau14[Catégorie d''infection suspectée], Tableau1[[#This Row],[Catégorie d''infection]])","v":0}]
[null,null,"Bronchites infectieuses",{"$f":"COUNTIF(Tableau14[Catégorie d''infection suspectée], Tableau1[[#This Row],[Catégorie d''infection]])","v":0}]
[null,null,"Dermohypodermites aiguës bactériennes",{"$f":"COUNTIF(Tableau14[Catégorie d''infection suspectée], Tableau1[[#This Row],[Catégorie d''infection]])","v":0}]
[null,null,"Encéphalites d'origine infectieuse",{"$f":"COUNTIF(Tableau14[Catégorie d''infection suspectée], Tableau1[[#This Row],[Catégorie d''infection]])","v":0}]
[null,null,"Bactériémies",{"$f":"COUNTIF(Tableau14[Catégorie d''infection suspectée], Tableau1[[#This Row],[Catégorie d''infection]])","v":0}]
[null,null,"Infections cutanées à pyogènes",{"$f":"COUNTIF(Tableau14[Catégorie d''infection suspectée], Tableau1[[#This Row],[Catégorie d''infection]])","v":0}]
[null,null,"Infections de dispositif électronique cardiaque implantable",{"$f":"COUNTIF(Tableau14[Catégorie d''infection suspectée], Tableau1[[#This Row],[Catégorie d''infection]])","v":0}]
[null,null,"Infections de l'appareil génital féminin haut",{"$f":"COUNTIF(Tableau14[Catégorie d''infection suspectée], Tableau1[[#This Row],[Catégorie d''infection]])","v":0}]
[null,null,"Infections des voies biliaires",{"$f":"COUNTIF(Tableau14[Catégorie d''infection suspectée], Tableau1[[#This Row],[Catégorie d''infection]])","v":0}]
[null,null,"Infections du liquide d'ascite",{"$f":"COUNTIF(Tableau14[Catégorie d''infection suspectée], Tableau1[[#This Row],[Catégorie d''infection]])","v":0}]
[null,null,"Infections de prothèse vasculaire",{"$f":"COUNTIF(Tableau14[Catégorie d''infection suspectée], Tableau1[[#This Row],[Catégorie d''infection]])","v":0}]
[null,null,"Infections dentaires et parodontales",{"$f":"COUNTIF(Tableau14[Catégorie d''infection suspectée], Tableau1[[#This Row],[Catégorie d''infection]])","v":0}]
[null,null,"Infections du pied diabétique",{"$f":"COUNTIF(Tableau14[Catégorie d''infection suspectée], Tableau1[[#This Row],[Catégorie d''infection]])","v":0}]
[null,null,"Infections intra-abdominales",{"$f":"COUNTIF(Tableau14[Catégorie d''infection suspectée], Tableau1[[#This Row],[Catégorie d''infection]])","v":0}]
[null,null,"Infections liées aux cathéters",{"$f":"COUNTIF(Tableau14[Catégorie d''infection suspectée], Tableau1[[#This Row],[Catégorie d''infection]])","v":0}]
[null,null,"Infections oculaires",{"$f":"COUNTIF(Tableau14[Catégorie d''infection suspectée], Tableau1[[#This Row],[Catégorie d''infection]])","v":0}]
[null,null,"Infections ostéoarticulaires",{"$f":"COUNTIF(Tableau14[Catégorie d''infection suspectée], Tableau1[[#This Row],[Catégorie d''infection]])","v":0}]
[null,null,"Infections sexuellement transmissibles",{"$f":"COUNTIF(Tableau14[Catégorie d''infection suspectée], Tableau1[[#This Row],[Catégorie d''infection]])","v":0}]
[null,null,"Infections sur matériel étranger",{"$f":"COUNTIF(Tableau14[Catégorie d''infection suspectée], Tableau1[[#This Row],[Catégorie d''infection]])","v":0}]
[null,null,"Infections urinaires",{"$f":"COUNTIF(Tableau14[Catégorie d''infection suspectée], Tableau1[[#This Row],[Catégorie d''infection]])","v":0}]
[null,null,"Laryngites et épiglottites",{"$f":"COUNTIF(Tableau14[Catégorie d''infection suspectée], Tableau1[[#This Row],[Catégorie d''infection]])","v":0}]
[null,null,"Méningites infectieuses",{"$f":"COUNTIF(Tableau14[Catégorie d''infection suspectée], Tableau1[[#This Row],[Catégorie d''infection]])","v":0}]
[null,null,"Myocardites, péricardites",{"$f":"COUNTIF(Tableau14[Catégorie d''infection suspectée], Tableau1[[#This Row],[Catégorie d''infection]])","v":0}]
[null,null,"Orchi-épidydimites",{"$f":"COUNTIF(Tableau14[Catégorie d''infection suspectée], Tableau1[[#This Row],[Catégorie d''infection]])","v":0}]
[null,null,"Otites",{"$f":"COUNTIF(Tableau14[Catégorie d''infection suspectée], Tableau1[[#This Row],[Catégorie d''infection]])","v":0}]
[null,null,"Pathologies d'inoculation",{"$f":"COUNTIF(Tableau14[Catégorie d''infection suspectée], Tableau1[[#This Row],[Catégorie d''infection]])","v":0}]
[null,null,"Endocardites infectieuses",{"$f":"COUNTIF(Tableau14[Catégorie d''infection suspectée], Tableau1[[#This Row],[Catégorie d''infection]])","v":0}]
[null,null,"Pleurésies infectieuses",{"$f":"COUNTIF(Tableau14[Catégorie d''infection suspectée], Tableau1[[#This Row],[Catégorie d''infection]])","v":0}]
[null,null,"Plusieurs foyers infectieux",{"$f":"COUNTIF(Tableau14[Catégorie d''infection suspectée], Tableau1[[#This Row],[Catégorie d''infection]])","v":0}]
[null,null,"Pneumonies aigues communautaires",{"$f":"COUNTIF(Tableau14[Catégorie d''infection suspectée], Tableau1[[#This Row],[Catégorie d''infection]])","v":0}]
[null,null,"Pneumonies associées aux soins",{"$f":"COUNTIF(Tableau14[Catégorie d''infection suspectée], Tableau1[[#This Row],[Catégorie d''infection]])","v":0}]
[null,null,"Sinusites",{"$f":"COUNTIF(Tableau14[Catégorie d''infection suspectée], Tableau1[[#This Row],[Catégorie d''infection]])","v":0}]
[null,null,"Stomatites et parotidites infectieuses",{"$f":"COUNTIF(Tableau14[Catégorie d''infection suspectée], Tableau1[[#This Row],[Catégorie d''infection]])","v":0}]
[]
[null,"Antibiotiques prescrits"]
[]
[null,null,"Noms des antibiotiques prescrits","Nombre d'antibiotiques",null,null,"Nombre d'antibiotiques, par molécule, prescrits en mono, bi et tri-thérapie à J1, affichés par ordre décroissant si > 0."]
[null,null,"Acide fusidique",{"$f":"COUNTIF(Tableau14[[Antibiotique prescrit à J1]:[Si tri-antibiothérapie : antibiotique associé ]],Tableau25[[#This Row],[Noms des antibiotiques prescrits]])","v":0}]
[null,null,"Amikacine sulfate",{"$f":"COUNTIF(Tableau14[[Antibiotique prescrit à J1]:[Si tri-antibiothérapie : antibiotique associé ]],Tableau25[[#This Row],[Noms des antibiotiques prescrits]])","v":0}]
[null,null,"Amoxicilline + acide clavulanique",{"$f":"COUNTIF(Tableau14[[Antibiotique prescrit à J1]:[Si tri-antibiothérapie : antibiotique associé ]],Tableau25[[#This Row],[Noms des antibiotiques prescrits]])","v":0}]
[null,null,"Amoxicilline",{"$f":"COUNTIF(Tableau14[[Antibiotique prescrit à J1]:[Si tri-antibiothérapie : antibiotique associé ]],Tableau25[[#This Row],[Noms des antibiotiques prescrits]])","v":0}]
[null,null,"Vancomycine",{"$f":"COUNTIF(Tableau14[[Antibiotique prescrit à J1]:[Si tri-antibiothérapie : antibiotique associé ]],Tableau25[[#This Row],[Noms des antibiotiques prescrits]])","v":0}]
[null,null,"Amphotéricine B non lipidique",{"$f":"COUNTIF(Tableau14[[Antibiotique prescrit à J1]:[Si tri-antibiothérapie : antibiotique associé ]],Tableau25[[#This Row],[Noms des antibiotiques prescrits]])","v":0}]
[null,null,"Amphotéricine B liposomale",{"$f":"COUNTIF(Tableau14[[Antibiotique prescrit à J1]:[Si tri-antibiothérapie : antibiotique associé ]],Tableau25[[#This Row],[Noms des antibiotiques prescrits]])","v":0}]
[null,null,"Ampicilline + Sulbactam",{"$f":"COUNTIF(Tableau14[[Antibiotique prescrit à J1]:[Si tri-antibiothérapie : antibiotique associé ]],Tableau25[[#This Row],[Noms des antibiotiques prescrits]])","v":0}]
[null,null,"Anidulafungine",{"$f":"COUNTIF(Tableau14[[Antibiotique prescrit à J1]:[Si tri-antibiothérapie : antibiotique associé ]],Tableau25[[#This Row],[Noms des antibiotiques prescrits]])","v":0}]
[null,null,"Autre",{"$f":"COUNTIF(Tableau14[[Antibiotique prescrit à J1]:[Si tri-antibiothérapie : antibiotique associé ]],Tableau25[[#This Row],[Noms des antibiotiques prescrits]])","v":0}]
[null,null,"Azithromycine",{"$f":"COUNTIF(Tableau14[[Antibiotique prescrit à J1]:[Si tri-antibiothérapie : antibiotique associé ]],Tableau25[[#This Row],[Noms des antibiotiques prescrits]])","v":0}]
[null,null,"Aztréonam",{"$f":"COUNTIF(Tableau14[[Antibiotique prescrit à J1]:[Si tri-antibiothérapie : antibiotique associé ]],Tableau25[[#This Row],[Noms des antibiotiques prescrits]])","v":0}]
[null,null,"Aztréonam-avibactam",{"$f":"COUNTIF(Tableau14[[Antibiotique prescrit à J1]:[Si tri-antibiothérapie : antibiotique associé ]],Tableau25[[#This Row],[Noms des antibiotiques prescrits]])","v":0}]
[null,null,"Benzathine benzylpenicilline",{"$f":"COUNTIF(Tableau14[[Antibiotique prescrit à J1]:[Si tri-antibiothérapie : antibiotique associé ]],Tableau25[[#This Row],[Noms des antibiotiques prescrits]])","v":0}]
[null,null,"Benzathine pénicilline (forme long retard)",{"$f":"COUNTIF(Tableau14[[Antibiotique prescrit à J1]:[Si tri-antibiothérapie : antibiotique associé ]],Tableau25[[#This Row],[Noms des antibiotiques prescrits]])","v":0}]
[null,null,"Benzathine phenoxymethylpenicilline",{"$f":"COUNTIF(Tableau14[[Antibiotique prescrit à J1]:[Si tri-antibiothérapie : antibiotique associé ]],Tableau25[[#This Row],[Noms des antibiotiques prescrits]])","v":0}]
[null,null,"Caspofungine",{"$f":"COUNTIF(Tableau14[[Antibiotique prescrit à J1]:[Si tri-antibiothérapie : antibiotique associé ]],Tableau25[[#This Row],[Noms des antibiotiques prescrits]])","v":0}]
[null,null,"Céfaclor",{"$f":"COUNTIF(Tableau14[[Antibiotique prescrit à J1]:[Si tri-antibiothérapie : antibiotique associé ]],Tableau25[[#This Row],[Noms des antibiotiques prescrits]])","v":0}]
[null,null,"Céfadroxil",{"$f":"COUNTIF(Tableau14[[Antibiotique prescrit à J1]:[Si tri-antibiothérapie : antibiotique associé ]],Tableau25[[#This Row],[Noms des antibiotiques prescrits]])","v":0}]
[null,null,"Céfalexine",{"$f":"COUNTIF(Tableau14[[Antibiotique prescrit à J1]:[Si tri-antibiothérapie : antibiotique associé ]],Tableau25[[#This Row],[Noms des antibiotiques prescrits]])","v":0}]
[null,null,"Céfalotine",{"$f":"COUNTIF(Tableau14[[Antibiotique prescrit à J1]:[Si tri-antibiothérapie : antibiotique associé ]],Tableau25[[#This Row],[Noms des antibiotiques prescrits]])","v":0}]
[null,null,"Céfamandole",{"$f":"COUNTIF(Tableau14[[Antibiotique prescrit à J1]:[Si tri-antibiothérapie : antibiotique associé ]],Tableau25[[#This Row],[Noms des antibiotiques prescrits]])","v":0}]
[null,null,"Céfazoline",{"$f":"COUNTIF(Tableau14[[Antibiotique prescrit à J1]:[Si tri-antibiothérapie : antibiotique associé ]],Tableau25[[#This Row],[Noms des antibiotiques prescrits]])","v":0}]
[null,null,"Céfépime",{"$f":"COUNTIF(Tableau14[[Antibiotique prescrit à J1]:[Si tri-antibiothérapie : antibiotique associé ]],Tableau25[[#This Row],[Noms des antibiotiques prescrits]])","v":0}]
[null,null,"Céfidérocol",{"$f":"COUNTIF(Tableau14[[Antibiotique prescrit à J1]:[Si tri-antibiothérapie : antibiotique associé ]],Tableau25[[#This Row],[Noms des antibiotiques prescrits]])","v":0}]
[null,null,"Céfixime",{"$f":"COUNTIF(Tableau14[[Antibiotique prescrit à J1]:[Si tri-antibiothérapie : antibiotique associé ]],Tableau25[[#This Row],[Noms des antibiotiques prescrits]])","v":0}]
[null,null,"Céfodiam hexétil",{"$f":"COUNTIF(Tableau14[[Antibiotique prescrit à J1]:[Si tri-antibiothérapie : antibiotique associé ]],Tableau25[[#This Row],[Noms des antibiotiques prescrits]])","v":0}]
[null,null,"Céfotaxime",{"$f":"COUNTIF(Tableau14[[Antibiotique prescrit à J1]:[Si tri-antibiothérapie : antibiotique associé ]],Tableau25[[#This Row],[Noms des antibiotiques prescrits]])","v":0}]
[null,null,"Céfoxitine",{"$f":"COUNTIF(Tableau14[[Antibiotique prescrit à J1]:[Si tri-antibiothérapie : antibiotique associé ]],Tableau25[[#This Row],[Noms des antibiotiques prescrits]])","v":0}]
[null,null,"Cefpodoxime proxétil",{"$f":"COUNTIF(Tableau14[[Antibiotique prescrit à J1]:[Si tri-antibiothérapie : antibiotique associé ]],Tableau25[[#This Row],[Noms des antibiotiques prescrits]])","v":0}]
[null,null,"Céfradine",{"$f":"COUNTIF(Tableau14[[Antibiotique prescrit à J1]:[Si tri-antibiothérapie : antibiotique associé ]],Tableau25[[#This Row],[Noms des antibiotiques prescrits]])","v":0}]
[null,null,"Ceftaroline",{"$f":"COUNTIF(Tableau14[[Antibiotique prescrit à J1]:[Si tri-antibiothérapie : antibiotique associé ]],Tableau25[[#This Row],[Noms des antibiotiques prescrits]])","v":0}]
[null,null,"Ceftazidime",{"$f":"COUNTIF(Tableau14[[Antibiotique prescrit à J1]:[Si tri-antibiothérapie : antibiotique associé ]],Tableau25[[#This Row],[Noms des antibiotiques prescrits]])","v":0}]
[null,null,"Ceftazidime-avibactam",{"$f":"COUNTIF(Tableau14[[Antibiotique prescrit à J1]:[Si tri-antibiothérapie : antibiotique associé ]],Tableau25[[#This Row],[Noms des antibiotiques prescrits]])","v":0}]
[null,null,"Ceftobiprole",{"$f":"COUNTIF(Tableau14[[Antibiotique prescrit à J1]:[Si tri-antibiothérapie : antibiotique associé ]],Tableau25[[#This Row],[Noms des antibiotiques prescrits]])","v":0}]
[null,null,"Ceftolozane-tazobactam",{"$f":"COUNTIF(Tableau14[[Antibiotique prescrit à J1]:[Si tri-antibiothérapie : antibiotique associé ]],Tableau25[[#This Row],[Noms des antibiotiques prescrits]])","v":0}]
[null,null,"Ceftriaxone",{"$f":"COUNTIF(Tableau14[[Antibiotique prescrit à J1]:[Si tri-antibiothérapie : antibiotique associé ]],Tableau25[[#This Row],[Noms des antibiotiques prescrits]])","v":0}]
[null,null,"Céfuroxime axétil",{"$f":"COUNTIF(Tableau14[[Antibiotique prescrit à J1]:[Si tri-antibiothérapie : antibiotique associé ]],Tableau25[[#This Row],[Noms des antibiotiques prescrits]])","v":0}]
[null,null,"Céfuroxime sodique",{"$f":"COUNTIF(Tableau14[[Antibiotique prescrit à J1]:[Si tri-antibiothérapie : antibiotique associé ]],Tableau25[[#This Row],[Noms des antibiotiques prescrits]])","v":0}]
[null,null,"Ciprofloxacine",{"$f":"COUNTIF(Tableau14[[Antibiotique prescrit à J1]:[Si tri-antibiothérapie : antibiotique associé ]],Tableau25[[#This Row],[Noms des antibiotiques prescrits]])","v":0}]
[null,null,"Clarithromycine",{"$f":"COUNTIF(Tableau14[[Antibiotique prescrit à J1]:[Si tri-antibiothérapie : antibiotique associé ]],Tableau25[[#This Row],[Noms des antibiotiques prescrits]])","v":0}]
[null,null,"Clindamycine",{"$f":"COUNTIF(Tableau14[[Antibiotique prescrit à J1]:[Si tri-antibiothérapie : antibiotique associé ]],Tableau25[[#This Row],[Noms des antibiotiques prescrits]])","v":0}]
[null,null,"Cloxacilline",{"$f":"COUNTIF(Tableau14[[Antibiotique prescrit à J1]:[Si tri-antibiothérapie : antibiotique associé ]],Tableau25[[#This Row],[Noms des antibiotiques prescrits]])","v":0}]
[null,null,"Colistine",{"$f":"COUNTIF(Tableau14[[Antibiotique prescrit à J1]:[Si tri-antibiothérapie : antibiotique associé ]],Tableau25[[#This Row],[Noms des antibiotiques prescrits]])","v":0}]
[null,null,"Dalbavancine",{"$f":"COUNTIF(Tableau14[[Antibiotique prescrit à J1]:[Si tri-antibiothérapie : antibiotique associé ]],Tableau25[[#This Row],[Noms des antibiotiques prescrits]])","v":0}]
[null,null,"Daptomycine",{"$f":"COUNTIF(Tableau14[[Antibiotique prescrit à J1]:[Si tri-antibiothérapie : antibiotique associé ]],Tableau25[[#This Row],[Noms des antibiotiques prescrits]])","v":0}]
[null,null,"Délafloxacine",{"$f":"COUNTIF(Tableau14[[Antibiotique prescrit à J1]:[Si tri-antibiothérapie : antibiotique associé ]],Tableau25[[#This Row],[Noms des antibiotiques prescrits]])","v":0}]
[null,null,"Doxycycline",{"$f":"COUNTIF(Tableau14[[Antibiotique prescrit à J1]:[Si tri-antibiothérapie : antibiotique associé ]],Tableau25[[#This Row],[Noms des antibiotiques prescrits]])","v":0}]
[null,null,"Ertapénem",{"$f":"COUNTIF(Tableau14[[Antibiotique prescrit à J1]:[Si tri-antibiothérapie : antibiotique associé ]],Tableau25[[#This Row],[Noms des antibiotiques prescrits]])","v":0}]
[null,null,"Érythromycine",{"$f":"COUNTIF(Tableau14[[Antibiotique prescrit à J1]:[Si tri-antibiothérapie : antibiotique associé ]],Tableau25[[#This Row],[Noms des antibiotiques prescrits]])","v":0}]
[null,null,"Éthambutol",{"$f":"COUNTIF(Tableau14[[Antibiotique prescrit à J1]:[Si tri-antibiothérapie : antibiotique associé ]],Tableau25[[#This Row],[Noms des antibiotiques prescrits]])","v":0}]
[null,null,"Fidaxomicine",{"$f":"COUNTIF(Tableau14[[Antibiotique prescrit à J1]:[Si tri-antibiothérapie : antibiotique associé ]],Tableau25[[#This Row],[Noms des antibiotiques prescrits]])","v":0}]
[null,null,"Fluconazole",{"$f":"COUNTIF(Tableau14[[Antibiotique prescrit à J1]:[Si tri-antibiothérapie : antibiotique associé ]],Tableau25[[#This Row],[Noms des antibiotiques prescrits]])","v":0}]
[null,null,"Flucytosine",{"$f":"COUNTIF(Tableau14[[Antibiotique prescrit à J1]:[Si tri-antibiothérapie : antibiotique associé ]],Tableau25[[#This Row],[Noms des antibiotiques prescrits]])","v":0}]
[null,null,"Fosfomycine",{"$f":"COUNTIF(Tableau14[[Antibiotique prescrit à J1]:[Si tri-antibiothérapie : antibiotique associé ]],Tableau25[[#This Row],[Noms des antibiotiques prescrits]])","v":0}]
[null,null,"Fosfomycine trométamol",{"$f":"COUNTIF(Tableau14[[Antibiotique prescrit à J1]:[Si tri-antibiothérapie : antibiotique associé ]],Tableau25[[#This Row],[Noms des antibiotiques prescrits]])","v":0}]
[null,null,"Gentamicine",{"$f":"COUNTIF(Tableau14[[Antibiotique prescrit à J1]:[Si tri-antibiothérapie : antibiotique associé ]],Tableau25[[#This Row],[Noms des antibiotiques prescrits]])","v":0}]
[null,null,"Imipénem + Cilastatine",{"$f":"COUNTIF(Tableau14[[Antibiotique prescrit à J1]:[Si tri-antibiothérapie : antibiotique associé ]],Tableau25[[#This Row],[Noms des antibiotiques prescrits]])","v":0}]
[null,null,"Imipénème-relebactam",{"$f":"COUNTIF(Tableau14[[Antibiotique prescrit à J1]:[Si tri-antibiothérapie : antibiotique associé ]],Tableau25[[#This Row],[Noms des antibiotiques prescrits]])","v":0}]
[null,null,"Isavuconazole",{"$f":"COUNTIF(Tableau14[[Antibiotique prescrit à J1]:[Si tri-antibiothérapie : antibiotique associé ]],Tableau25[[#This Row],[Noms des antibiotiques prescrits]])","v":0}]
[null,null,"Isoniazide",{"$f":"COUNTIF(Tableau14[[Antibiotique prescrit à J1]:[Si tri-antibiothérapie : antibiotique associé ]],Tableau25[[#This Row],[Noms des antibiotiques prescrits]])","v":0}]
[null,null,"Itraconazole",{"$f":"COUNTIF(Tableau14[[Antibiotique prescrit à J1]:[Si tri-antibiothérapie : antibiotique associé ]],Tableau25[[#This Row],[Noms des antibiotiques prescrits]])","v":0}]
[null,null,"Josamycine",{"$f":"COUNTIF(Tableau14[[Antibiotique prescrit à J1]:[Si tri-antibiothérapie : antibiotique associé ]],Tableau25[[#This Row],[Noms des antibiotiques prescrits]])","v":0}]
[null,null,"Lévofloxacine",{"$f":"COUNTIF(Tableau14[[Antibiotique prescrit à J1]:[Si tri-antibiothérapie : antibiotique associé ]],Tableau25[[#This Row],[Noms des antibiotiques prescrits]])","v":0}]
[null,null,"Ampicilline",{"$f":"COUNTIF(Tableau14[[Antibiotique prescrit à J1]:[Si tri-antibiothérapie : antibiotique associé ]],Tableau25[[#This Row],[Noms des antibiotiques prescrits]])","v":0}]
[null,null,"Loméfloxacine",{"$f":"COUNTIF(Tableau14[[Antibiotique prescrit à J1]:[Si tri-antibiothérapie : antibiotique associé ]],Tableau25[[#This Row],[Noms des antibiotiques prescrits]])","v":0}]
[null,null,"Méropénème",{"$f":"COUNTIF(Tableau14[[Antibiotique prescrit à J1]:[Si tri-antibiothérapie : antibiotique associé ]],Tableau25[[#This Row],[Noms des antibiotiques prescrits]])","v":0}]
[null,null,"Méropénème-vaborbactam",{"$f":"COUNTIF(Tableau14[[Antibiotique prescrit à J1]:[Si tri-antibiothérapie : antibiotique associé ]],Tableau25[[#This Row],[Noms des antibiotiques prescrits]])","v":0}]
[null,null,"Métronidazole",{"$f":"COUNTIF(Tableau14[[Antibiotique prescrit à J1]:[Si tri-antibiothérapie : antibiotique associé ]],Tableau25[[#This Row],[Noms des antibiotiques prescrits]])","v":0}]
[null,null,"Micafungine",{"$f":"COUNTIF(Tableau14[[Antibiotique prescrit à J1]:[Si tri-antibiothérapie : antibiotique associé ]],Tableau25[[#This Row],[Noms des antibiotiques prescrits]])","v":0}]
[null,null,"Minocycline",{"$f":"COUNTIF(Tableau14[[Antibiotique prescrit à J1]:[Si tri-antibiothérapie : antibiotique associé ]],Tableau25[[#This Row],[Noms des antibiotiques prescrits]])","v":0}]
[null,null,"Moxifloxacine",{"$f":"COUNTIF(Tableau14[[Antibiotique prescrit à J1]:[Si tri-antibiothérapie : antibiotique associé ]],Tableau25[[#This Row],[Noms des antibiotiques prescrits]])","v":0}]
[null,null,"Neomycine (associée)",{"$f":"COUNTIF(Tableau14[[Antibiotique prescrit à J1]:[Si tri-antibiothérapie : antibiotique associé ]],Tableau25[[#This Row],[Noms des antibiotiques prescrits]])","v":0}]
[null,null,"Nétilmycine",{"$f":"COUNTIF(Tableau14[[Antibiotique prescrit à J1]:[Si tri-antibiothérapie : antibiotique associé ]],Tableau25[[#This Row],[Noms des antibiotiques prescrits]])","v":0}]
[null,null,"Nitrofurantoïne",{"$f":"COUNTIF(Tableau14[[Antibiotique prescrit à J1]:[Si tri-antibiothérapie : antibiotique associé ]],Tableau25[[#This Row],[Noms des antibiotiques prescrits]])","v":0}]
[null,null,"Norfloxacine",{"$f":"COUNTIF(Tableau14[[Antibiotique prescrit à J1]:[Si tri-antibiothérapie : antibiotique associé ]],Tableau25[[#This Row],[Noms des antibiotiques prescrits]])","v":0}]
[null,null,"Ofloxacine",{"$f":"COUNTIF(Tableau14[[Antibiotique prescrit à J1]:[Si tri-antibiothérapie : antibiotique associé ]],Tableau25[[#This Row],[Noms des antibiotiques prescrits]])","v":0}]
[null,null,"Oritavancine",{"$f":"COUNTIF(Tableau14[[Antibiotique prescrit à J1]:[Si tri-antibiothérapie : antibiotique associé ]],Tableau25[[#This Row],[Noms des antibiotiques prescrits]])","v":0}]
[null,null,"Oxacilline",{"$f":"COUNTIF(Tableau14[[Antibiotique prescrit à J1]:[Si tri-antibiothérapie : antibiotique associé ]],Tableau25[[#This Row],[Noms des antibiotiques prescrits]])","v":0}]
[null,null,"Péfloxacine",{"$f":"COUNTIF(Tableau14[[Antibiotique prescrit à J1]:[Si tri-antibiothérapie : antibiotique associé ]],Tableau25[[#This Row],[Noms des antibiotiques prescrits]])","v":0}]
[null,null,"Pénicilline V",{"$f":"COUNTIF(Tableau14[[Antibiotique prescrit à J1]:[Si tri-antibiothérapie : antibiotique associé ]],Tableau25[[#This Row],[Noms des antibiotiques prescrits]])","v":0}]
[null,null,"Pénicillines G = benzylpénicilline sodique",{"$f":"COUNTIF(Tableau14[[Antibiotique prescrit à J1]:[Si tri-antibiothérapie : antibiotique associé ]],Tableau25[[#This Row],[Noms des antibiotiques prescrits]])","v":0}]
[null,null,"Linézolide",{"$f":"COUNTIF(Tableau14[[Antibiotique prescrit à J1]:[Si tri-antibiothérapie : antibiotique associé ]],Tableau25[[#This Row],[Noms des antibiotiques prescrits]])","v":0}]
[null,null,"Pipéracilline + Tazobactam",{"$f":"COUNTIF(Tableau14[[Antibiotique prescrit à J1]:[Si tri-antibiothérapie : antibiotique associé ]],Tableau25[[#This Row],[Noms des antibiotiques prescrits]])","v":0}]
[null,null,"Pivmécillinam",{"$f":"COUNTIF(Tableau14[[Antibiotique prescrit à J1]:[Si tri-antibiothérapie : antibiotique associé ]],Tableau25[[#This Row],[Noms des antibiotiques prescrits]])","v":0}]
[null,null,"Posaconazole",{"$f":"COUNTIF(Tableau14[[Antibiotique prescrit à J1]:[Si tri-antibiothérapie : antibiotique associé ]],Tableau25[[#This Row],[Noms des antibiotiques prescrits]])","v":0}]
[null,null,"Pristinamycine",{"$f":"COUNTIF(Tableau14[[Antibiotique prescrit à J1]:[Si tri-antibiothérapie : antibiotique associé ]],Tableau25[[#This Row],[Noms des antibiotiques prescrits]])","v":0}]
[null,null,"Pyrazinamide",{"$f":"COUNTIF(Tableau14[[Antibiotique prescrit à J1]:[Si tri-antibiothérapie : antibiotique associé ]],Tableau25[[#This Row],[Noms des antibiotiques prescrits]])","v":0}]
[null,null,"Rifabutine",{"$f":"COUNTIF(Tableau14[[Antibiotique prescrit à J1]:[Si tri-antibiothérapie : antibiotique associé ]],Tableau25[[#This Row],[Noms des antibiotiques prescrits]])","v":0}]
[null,null,"Rifampicine",{"$f":"COUNTIF(Tableau14[[Antibiotique prescrit à J1]:[Si tri-antibiothérapie : antibiotique associé ]],Tableau25[[#This Row],[Noms des antibiotiques prescrits]])","v":0}]
[null,null,"Roxithromycine",{"$f":"COUNTIF(Tableau14[[Antibiotique prescrit à J1]:[Si tri-antibiothérapie : antibiotique associé ]],Tableau25[[#This Row],[Noms des antibiotiques prescrits]])","v":0}]
[null,null,"Spectinomycine",{"$f":"COUNTIF(Tableau14[[Antibiotique prescrit à J1]:[Si tri-antibiothérapie : antibiotique associé ]],Tableau25[[#This Row],[Noms des antibiotiques prescrits]])","v":0}]
[null,null,"Spiramycine",{"$f":"COUNTIF(Tableau14[[Antibiotique prescrit à J1]:[Si tri-antibiothérapie : antibiotique associé ]],Tableau25[[#This Row],[Noms des antibiotiques prescrits]])","v":0}]
[null,null,"Spiramycine-métronidazole",{"$f":"COUNTIF(Tableau14[[Antibiotique prescrit à J1]:[Si tri-antibiothérapie : antibiotique associé ]],Tableau25[[#This Row],[Noms des antibiotiques prescrits]])","v":0}]
[null,null,"Streptomycine",{"$f":"COUNTIF(Tableau14[[Antibiotique prescrit à J1]:[Si tri-antibiothérapie : antibiotique associé ]],Tableau25[[#This Row],[Noms des antibiotiques prescrits]])","v":0}]
[null,null,"Sulfadiazine",{"$f":"COUNTIF(Tableau14[[Antibiotique prescrit à J1]:[Si tri-antibiothérapie : antibiotique associé ]],Tableau25[[#This Row],[Noms des antibiotiques prescrits]])","v":0}]
[null,null,"Sulfadiazine + Pyriméthamine",{"$f":"COUNTIF(Tableau14[[Antibiotique prescrit à J1]:[Si tri-antibiothérapie : antibiotique associé ]],Tableau25[[#This Row],[Noms des antibiotiques prescrits]])","v":0}]
[null,null,"Pipéracilline",{"$f":"COUNTIF(Tableau14[[Antibiotique prescrit à J1]:[Si tri-antibiothérapie : antibiotique associé ]],Tableau25[[#This Row],[Noms des antibiotiques prescrits]])","v":0}]
[null,null,"Tédizolide",{"$f":"COUNTIF(Tableau14[[Antibiotique prescrit à J1]:[Si tri-antibiothérapie : antibiotique associé ]],Tableau25[[#This Row],[Noms des antibiotiques prescrits]])","v":0}]
[null,null,"Teicoplanine",{"$f":"COUNTIF(Tableau14[[Antibiotique prescrit à J1]:[Si tri-antibiothérapie : antibiotique associé ]],Tableau25[[#This Row],[Noms des antibiotiques prescrits]])","v":0}]
[null,null,"Témocilline",{"$f":"COUNTIF(Tableau14[[Antibiotique prescrit à J1]:[Si tri-antibiothérapie : antibiotique associé ]],Tableau25[[#This Row],[Noms des antibiotiques prescrits]])","v":0}]
[null,null,"Thiamphénicol",{"$f":"COUNTIF(Tableau14[[Antibiotique prescrit à J1]:[Si tri-antibiothérapie : antibiotique associé ]],Tableau25[[#This Row],[Noms des antibiotiques prescrits]])","v":0}]
[null,null,"Ticarcilline",{"$f":"COUNTIF(Tableau14[[Antibiotique prescrit à J1]:[Si tri-antibiothérapie : antibiotique associé ]],Tableau25[[#This Row],[Noms des antibiotiques prescrits]])","v":0}]
[null,null,"Ticarcilline + Acide clavulanique",{"$f":"COUNTIF(Tableau14[[Antibiotique prescrit à J1]:[Si tri-antibiothérapie : antibiotique associé ]],Tableau25[[#This Row],[Noms des antibiotiques prescrits]])","v":0}]
[null,null,"Tigécycline",{"$f":"COUNTIF(Tableau14[[Antibiotique prescrit à J1]:[Si tri-antibiothérapie : antibiotique associé ]],Tableau25[[#This Row],[Noms des antibiotiques prescrits]])","v":0}]
[null,null,"Tobramycine",{"$f":"COUNTIF(Tableau14[[Antibiotique prescrit à J1]:[Si tri-antibiothérapie : antibiotique associé ]],Tableau25[[#This Row],[Noms des antibiotiques prescrits]])","v":0}]
[null,null,"Triméthoprime",{"$f":"COUNTIF(Tableau14[[Antibiotique prescrit à J1]:[Si tri-antibiothérapie : antibiotique associé ]],Tableau25[[#This Row],[Noms des antibiotiques prescrits]])","v":0}]
[null,null,"Sulfaméthoxazole + Triméthoprime (Cotrimoxazole)",{"$f":"COUNTIF(Tableau14[[Antibiotique prescrit à J1]:[Si tri-antibiothérapie : antibiotique associé ]],Tableau25[[#This Row],[Noms des antibiotiques prescrits]])","v":0}]
[null,null,"Voriconazole",{"$f":"COUNTIF(Tableau14[[Antibiotique prescrit à J1]:[Si tri-antibiothérapie : antibiotique associé ]],Tableau25[[#This Row],[Noms des antibiotiques prescrits]])","v":0}]
[]
[null,"Voies d'administration"]
[null,null,"Type de voies d'administration et nombre / taux d'antibiotiques associés à ces voies, à J1.\n- Le dénominateur correspond au nombre total de voies d'administration renseignées aux items N°8, 10 et 12.\n- Pas de dossier inapplicable."]
[null,{"$f":"COUNTIF('2.GRILLE DE RECUEIL'!$I:$I,\"PO\")+COUNTIF('2.GRILLE DE RECUEIL'!$K:$K,\"PO\")+COUNTIF('2.GRILLE DE RECUEIL'!$M:$M,\"PO\")","v":0},"antibiotique(s) administré(s) PO","parmi",{"$f":"B170+B171+B172+B173","v":0},"voies d'administration renseignées, soit",null,null,null,{"$f":"B170/E170","v":{"$error":"#DIV/0!"}}]
[null,{"$f":"COUNTIF('2.GRILLE DE RECUEIL'!$I:$I,\"IV\")+COUNTIF('2.GRILLE DE RECUEIL'!$K:$K,\"IV\")+COUNTIF('2.GRILLE DE RECUEIL'!$M:$M,\"IV\")","v":0},"antibiotique(s) administré(s) en IV",null,null,null,null,null,null,{"$f":"B171/E170","v":{"$error":"#DIV/0!"}}]
[null,{"$f":"COUNTIF('2.GRILLE DE RECUEIL'!$I:$I,\"SC\")+COUNTIF('2.GRILLE DE RECUEIL'!$K:$K,\"SC\")+COUNTIF('2.GRILLE DE RECUEIL'!$M:$M,\"SC\")","v":0},"antibiotique(s) administré(s) en SC",null,null,null,null,null,null,{"$f":"B172/E170","v":{"$error":"#DIV/0!"}}]
[null,{"$f":"COUNTIF('2.GRILLE DE RECUEIL'!$I:$I,\"IM\")+COUNTIF('2.GRILLE DE RECUEIL'!$K:$K,\"IM\")+COUNTIF('2.GRILLE DE RECUEIL'!$M:$M,\"IM\")","v":0},"antibiotique(s) administré(s) en IM",null,null,null,null,null,null,{"$f":"B173/E170","v":{"$error":"#DIV/0!"}}]
[]
[null,"Prescriptions jugées \"utiles\""]
[null,null,"Nombre et taux de prescriptions jugées utiles ou inutiles après évaluation de la démarche diagnostique, à J1.\n- Les dossiers applicables correspondent à ceux pour lesquels l'évaluateur a rempli \"Oui\" ou \"Non\" à l'item N°13.\n- Les dossiers inapplicables correspondent à ceux pour lesquels \"Inapplicable\" a été renseigné à l'item N°13."]
[null,{"$f":"(COUNTIF('2.GRILLE DE RECUEIL'!$N:$N,\"Oui\")+COUNTIF('2.GRILLE DE RECUEIL'!$N:$N,\"Non\")+COUNTIF('2.GRILLE DE RECUEIL'!$N:$N,\"Inapplicable\"))","v":0},"prescription(s) évaluée(s) lors de cette question, dont",null,{"$f":"(COUNTIF('2.GRILLE DE RECUEIL'!$N:$N,\"Oui\")+COUNTIF('2.GRILLE DE RECUEIL'!$N:$N,\"Non\"))","v":0},"applicables et",null,{"$f":"COUNTIF('2.GRILLE DE RECUEIL'!$N:$N,\"Inapplicable\")","v":0},"inapplicables."]
[null,{"$f":"COUNTIF('2.GRILLE DE RECUEIL'!$N:$N,\"Oui\")","v":0},"prescription(s) utile(s) après évaluation de la démarche diagnostique",null,null,null,"parmi les dossiers applicables, soit",null,null,{"$f":"B178/E177","v":{"$error":"#DIV/0!"}}]
[null,{"$f":"COUNTIF('2.GRILLE DE RECUEIL'!$N:$N,\"Non\")","v":0},"prescription(s) inutile(s) après évaluation de la démarche diagnostique",null,null,null,null,null,null,{"$f":"B179/E177","v":{"$error":"#DIV/0!"}}]
[]
[null,"Choix des molécules"]
[null,null,"Nombre et taux de prescriptions dont toutes les molécules sont appropriées et celles dont au moins une molécule ne l'est pas, à J1.\n- Les dossiers applicables correspondent à ceux pour lesquels l'évaluateur a rempli \"Oui\" ou \"Non\" à l'item N°14.\n- Les dossiers inapplicables correspondent à ceux pour lesquels \"Inapplicable\" a été renseigné à l'item N°14."]
[null,{"$f":"(COUNTIF('2.GRILLE DE RECUEIL'!$O:$O,\"Oui\")+COUNTIF('2.GRILLE DE RECUEIL'!$O:$O,\"Non\")+COUNTIF('2.GRILLE DE RECUEIL'!$O:$O,\"Inapplicable\"))","v":0},"prescription(s) évaluée(s) lors de cette question, dont",null,{"$f":"(COUNTIF('2.GRILLE DE RECUEIL'!$O:$O,\"Oui\")+COUNTIF('2.GRILLE DE RECUEIL'!$O:$O,\"Non\"))","v":0},"applicables et",null,{"$f":"COUNTIF('2.GRILLE DE RECUEIL'!$O:$O,\"Inapplicable\")","v":0},"inapplicables."]
[null,{"$f":"COUNTIF('2.GRILLE DE RECUEIL'!$O:$O,\"Oui\")","v":0},"prescription(s) avec toutes les molécules appropriées",null,null,null,"parmi les dossiers applicables, soit",null,null,{"$f":"B184/E183","v":{"$error":"#DIV/0!"}}]
[null,{"$f":"COUNTIF('2.GRILLE DE RECUEIL'!$O:$O,\"Non\")","v":0},"prescription(s) avec au moins une molécule inappropriée",null,null,null,null,null,null,{"$f":"B185/E183","v":{"$error":"#DIV/0!"}}]
[]
[null,"Choix des voies d'administration"]
[null,null,"Nombre et taux de prescriptions dont toutes les voies d'administration sont appropriées et celles dont au moins une voie ne l'est pas, à J1.\n- Les dossiers applicables correspondent à ceux pour lesquels l'évaluateur a rempli \"Oui\" ou \"Non\" à l'item N°15.\n- Les dossiers inapplicables correspondent à ceux pour lesquels \"Inapplicable\" a été renseigné à l'item N°15."]
[null,{"$f":"(COUNTIF('2.GRILLE DE RECUEIL'!$P:$P,\"Oui\")+COUNTIF('2.GRILLE DE RECUEIL'!$P:$P,\"Non\")+COUNTIF('2.GRILLE DE RECUEIL'!$P:$P,\"Inapplicable\"))","v":0},"prescription(s) évaluée(s) lors de cette question, dont",null,{"$f":"(COUNTIF('2.GRILLE DE RECUEIL'!$P:$P,\"Oui\")+COUNTIF('2.GRILLE DE RECUEIL'!$P:$P,\"Non\"))","v":0},"applicables et",null,{"$f":"COUNTIF('2.GRILLE DE RECUEIL'!$P:$P,\"Inapplicable\")","v":0},"inapplicables."]
[null,{"$f":"COUNTIF('2.GRILLE DE RECUEIL'!$P:$P,\"Oui\")","v":0},"prescription(s) avec toutes les voies d'administration appropriées",null,null,null,"parmi les dossiers applicables, soit",null,null,{"$f":"B190/E189","v":{"$error":"#DIV/0!"}}]
[null,{"$f":"COUNTIF('2.GRILLE DE RECUEIL'!$P:$P,\"Non\")","v":0},"prescription(s) avec au moins une voie d'administration inappropriée",null,null,null,null,null,null,{"$f":"B191/E189","v":{"$error":"#DIV/0!"}}]
[]
[null,"Prescriptions appropriées"]
[null,null,"Combinaison des questions N°14 et 15. \nNombre et taux de prescriptions appropriées (soit celles dont toutes les voies d'administration et toutes les molécules à J1 le sont) ou inappropriées (toutes les autres).\n- Les dossiers applicables correspondent à ceux pour lesquels soit \"Oui\", soit \"Non\" ont été renseignés pour les items 14 et 15.\n- Les dossiers inapplicables correspondent à ceux pour lesquels au moins une réponse à l'un des items 14 et 15 était \"Inapplicable\".\nSeuls les dossiers avec ces deux items remplis sont comptabilisés."]
[null,{"$f":"SUMPRODUCT((ISNUMBER(MATCH('2.GRILLE DE RECUEIL'!O7:O10000,'listes déroulantes (masqué)'!$C$96:$C$98,0)))*(ISNUMBER(MATCH('2.GRILLE DE RECUEIL'!P7:P10000,'listes déroulantes (masqué)'!$C$96:$C$98,0))))","v":0},"prescription(s) évaluée(s) lors de cette question, dont",null,{"$f":"SUMPRODUCT((ISNUMBER(MATCH('2.GRILLE DE RECUEIL'!O7:O10000,'listes déroulantes (masqué)'!$C$96:$C$97,0)))*(ISNUMBER(MATCH('2.GRILLE DE RECUEIL'!P7:P10000,'listes déroulantes (masqué)'!$C$96:$C$97,0))))","v":0},"applicables et",null,{"$f":"B195-E195","v":0},"inapplicables."]
[null,{"$f":"SUMPRODUCT((ISNUMBER(MATCH('2.GRILLE DE RECUEIL'!O7:O10000,'listes déroulantes (masqué)'!$C$96,0)))*(ISNUMBER(MATCH('2.GRILLE DE RECUEIL'!P7:P10000,'listes déroulantes (masqué)'!$C$96,0))))","v":0},"prescription(s) appropriée(s)",null,null,"parmi les dossiers applicables, soit",null,null,null,{"$f":"B196/E195","v":{"$error":"#DIV/0!"}}]
[null,{"$f":"E195-B196","v":0},"prescription(s) inappropriée(s)",null,null,null,null,null,null,{"$f":"B197/E195","v":{"$error":"#DIV/0!"}}]
[]
[null,"Réévaluation de l'antibiothérapie tracée"]
[null,null,"Nombre et taux de cas où la réévaluation de l'antibiothérapie est tracée dans le dossier patient.\n- Les dossiers applicables correspondent à ceux pour lesquels l'évaluateur a rempli \"Oui, partielle\", \"Oui, totale\" ou \"Non\" à l'item N°16.\n- Les dossiers inapplicables correspondent à ceux pour lesquels l'évaluateur a rempli \"Inapplicable\" à l'item N°16."]
[null,{"$f":"((COUNTIF('2.GRILLE DE RECUEIL'!$Q:$Q,\"Oui, totale\"))+(COUNTIF('2.GRILLE DE RECUEIL'!$Q:$Q,\"Oui, partielle\"))+(COUNTIF('2.GRILLE DE RECUEIL'!$Q:$Q,\"Non\"))+(COUNTIF('2.GRILLE DE RECUEIL'!$Q:$Q,\"Inapplicable\")))","v":0},"prescription(s) évaluée(s) lors de cette question, dont",null,{"$f":"((COUNTIF('2.GRILLE DE RECUEIL'!$Q:$Q,\"Oui, totale\"))+(COUNTIF('2.GRILLE DE RECUEIL'!$Q:$Q,\"Oui, partielle\"))+(COUNTIF('2.GRILLE DE RECUEIL'!$Q:$Q,\"Non\")))","v":0},"applicables et",null,{"$f":"(COUNTIF('2.GRILLE DE RECUEIL'!$Q:$Q,\"Inapplicable\"))","v":0},"inapplicables."]
[null,{"$f":"((COUNTIF('2.GRILLE DE RECUEIL'!$Q:$Q,\"Oui, totale\"))+(COUNTIF('2.GRILLE DE RECUEIL'!$Q:$Q,\"Oui, partielle\")))","v":0},"antibiothérapie(s) dont la réévaluation est",null,"tracée dans le dossier",null,"parmi les dossiers applicables, soit",null,null,{"$f":"B202/E201","v":{"$error":"#DIV/0!"}}]
[null,{"$f":"(COUNTIF('2.GRILLE DE RECUEIL'!$Q:$Q,\"Non\"))","v":0},null,null,"non-tracée dans le dossier",null,null,null,null,{"$f":"B203/E201","v":{"$error":"#DIV/0!"}}]
[null,null,"Parmi les antibiothérapies dont la réévaluation est tracée dans le dossier,",null,null,null,{"$f":"COUNTIF('2.GRILLE DE RECUEIL'!$Q:$Q,\"Oui, partielle\")","v":0},"réévaluation(s) l'est (le sont) totalement."]
[null,null,null,null,null,null,{"$f":"COUNTIF('2.GRILLE DE RECUEIL'!$Q:$Q,\"Oui, totale\")","v":0},"réévaluation(s) l'est (le sont) partiellement."]
[]
[null,"Catégorie d'infection suspectée"]
[]
[null,null,"Catégorie d'infections","Nombre d'infections à J2-J4",null,null,"Catégories d'infections renseignées et nombre associé, affichées par ordre décroissant si > 0."]
[null,null,"Abcès cérébral",{"$f":"COUNTIF(Tableau14[Catégorie d''infection suspectée à J2-J4], Tableau7[[#This Row],[Catégorie d''infections]])","v":0}]
[null,null,"Angines et pharyngites",{"$f":"COUNTIF(Tableau14[Catégorie d''infection suspectée à J2-J4], Tableau7[[#This Row],[Catégorie d''infections]])","v":0}]
[null,null,"Aucun foyer infectieux identifié",{"$f":"COUNTIF(Tableau14[Catégorie d''infection suspectée à J2-J4], Tableau7[[#This Row],[Catégorie d''infections]])","v":0}]
[null,null,"Autre infection",{"$f":"COUNTIF(Tableau14[Catégorie d''infection suspectée à J2-J4], Tableau7[[#This Row],[Catégorie d''infections]])","v":0}]
[null,null,"Bactériémies",{"$f":"COUNTIF(Tableau14[Catégorie d''infection suspectée à J2-J4], Tableau7[[#This Row],[Catégorie d''infections]])","v":0}]
[null,null,"Bronchites infectieuses",{"$f":"COUNTIF(Tableau14[Catégorie d''infection suspectée à J2-J4], Tableau7[[#This Row],[Catégorie d''infections]])","v":0}]
[null,null,"Dermohypodermites aiguës bactériennes",{"$f":"COUNTIF(Tableau14[Catégorie d''infection suspectée à J2-J4], Tableau7[[#This Row],[Catégorie d''infections]])","v":0}]
[null,null,"Encéphalites d'origine infectieuse",{"$f":"COUNTIF(Tableau14[Catégorie d''infection suspectée à J2-J4], Tableau7[[#This Row],[Catégorie d''infections]])","v":0}]
[null,null,"Endocardites infectieuses",{"$f":"COUNTIF(Tableau14[Catégorie d''infection suspectée à J2-J4], Tableau7[[#This Row],[Catégorie d''infections]])","v":0}]
[null,null,"Infections des voies biliaires",{"$f":"COUNTIF(Tableau14[Catégorie d''infection suspectée à J2-J4], Tableau7[[#This Row],[Catégorie d''infections]])","v":0}]
[null,null,"Infections du liquide d'ascite",{"$f":"COUNTIF(Tableau14[Catégorie d''infection suspectée à J2-J4], Tableau7[[#This Row],[Catégorie d''infections]])","v":0}]
[null,null,"Infections cutanées à pyogènes",{"$f":"COUNTIF(Tableau14[Catégorie d''infection suspectée à J2-J4], Tableau7[[#This Row],[Catégorie d''infections]])","v":0}]
[null,null,"Infections de dispositif électronique cardiaque implantable",{"$f":"COUNTIF(Tableau14[Catégorie d''infection suspectée à J2-J4], Tableau7[[#This Row],[Catégorie d''infections]])","v":0}]
[null,null,"Infections de l'appareil génital féminin haut",{"$f":"COUNTIF(Tableau14[Catégorie d''infection suspectée à J2-J4], Tableau7[[#This Row],[Catégorie d''infections]])","v":0}]
[null,null,"Infections de prothèse vasculaire",{"$f":"COUNTIF(Tableau14[Catégorie d''infection suspectée à J2-J4], Tableau7[[#This Row],[Catégorie d''infections]])","v":0}]
[null,null,"Infections dentaires et parodontales",{"$f":"COUNTIF(Tableau14[Catégorie d''infection suspectée à J2-J4], Tableau7[[#This Row],[Catégorie d''infections]])","v":0}]
[null,null,"Infections du pied diabétique",{"$f":"COUNTIF(Tableau14[Catégorie d''infection suspectée à J2-J4], Tableau7[[#This Row],[Catégorie d''infections]])","v":0}]
[null,null,"Infections intra-abdominales",{"$f":"COUNTIF(Tableau14[Catégorie d''infection suspectée à J2-J4], Tableau7[[#This Row],[Catégorie d''infections]])","v":0}]
[null,null,"Infections liées aux cathéters",{"$f":"COUNTIF(Tableau14[Catégorie d''infection suspectée à J2-J4], Tableau7[[#This Row],[Catégorie d''infections]])","v":0}]
[null,null,"Infections oculaires",{"$f":"COUNTIF(Tableau14[Catégorie d''infection suspectée à J2-J4], Tableau7[[#This Row],[Catégorie d''infections]])","v":0}]
[null,null,"Infections ostéoarticulaires",{"$f":"COUNTIF(Tableau14[Catégorie d''infection suspectée à J2-J4], Tableau7[[#This Row],[Catégorie d''infections]])","v":0}]
[null,null,"Infections sexuellement transmissibles",{"$f":"COUNTIF(Tableau14[Catégorie d''infection suspectée à J2-J4], Tableau7[[#This Row],[Catégorie d''infections]])","v":0}]
[null,null,"Infections sur matériel étranger",{"$f":"COUNTIF(Tableau14[Catégorie d''infection suspectée à J2-J4], Tableau7[[#This Row],[Catégorie d''infections]])","v":0}]
[null,null,"Infections urinaires",{"$f":"COUNTIF(Tableau14[Catégorie d''infection suspectée à J2-J4], Tableau7[[#This Row],[Catégorie d''infections]])","v":0}]
[null,null,"Laryngites et épiglottites",{"$f":"COUNTIF(Tableau14[Catégorie d''infection suspectée à J2-J4], Tableau7[[#This Row],[Catégorie d''infections]])","v":0}]
[null,null,"Méningites infectieuses",{"$f":"COUNTIF(Tableau14[Catégorie d''infection suspectée à J2-J4], Tableau7[[#This Row],[Catégorie d''infections]])","v":0}]
[null,null,"Myocardites, péricardites",{"$f":"COUNTIF(Tableau14[Catégorie d''infection suspectée à J2-J4], Tableau7[[#This Row],[Catégorie d''infections]])","v":0}]
[null,null,"Orchi-épidydimites",{"$f":"COUNTIF(Tableau14[Catégorie d''infection suspectée à J2-J4], Tableau7[[#This Row],[Catégorie d''infections]])","v":0}]
[null,null,"Otites",{"$f":"COUNTIF(Tableau14[Catégorie d''infection suspectée à J2-J4], Tableau7[[#This Row],[Catégorie d''infections]])","v":0}]
[null,null,"Pathologies d'inoculation",{"$f":"COUNTIF(Tableau14[Catégorie d''infection suspectée à J2-J4], Tableau7[[#This Row],[Catégorie d''infections]])","v":0}]
[null,null,"Pleurésies infectieuses",{"$f":"COUNTIF(Tableau14[Catégorie d''infection suspectée à J2-J4], Tableau7[[#This Row],[Catégorie d''infections]])","v":0}]
[null,null,"Plusieurs foyers infectieux",{"$f":"COUNTIF(Tableau14[Catégorie d''infection suspectée à J2-J4], Tableau7[[#This Row],[Catégorie d''infections]])","v":0}]
[null,null,"Pneumonies aigues communautaires",{"$f":"COUNTIF(Tableau14[Catégorie d''infection suspectée à J2-J4], Tableau7[[#This Row],[Catégorie d''infections]])","v":0}]
[null,null,"Péritonites",{"$f":"COUNTIF(Tableau14[Catégorie d''infection suspectée à J2-J4], Tableau7[[#This Row],[Catégorie d''infections]])","v":0}]
[null,null,"Pneumonies associées aux soins",{"$f":"COUNTIF(Tableau14[Catégorie d''infection suspectée à J2-J4], Tableau7[[#This Row],[Catégorie d''infections]])","v":0}]
[null,null,"Sinusites",{"$f":"COUNTIF(Tableau14[Catégorie d''infection suspectée à J2-J4], Tableau7[[#This Row],[Catégorie d''infections]])","v":0}]
[null,null,"Stomatites et parotidites infectieuses",{"$f":"COUNTIF(Tableau14[Catégorie d''infection suspectée à J2-J4], Tableau7[[#This Row],[Catégorie d''infections]])","v":0}]
[]
[null,"Antibiotiques prescrits"]
[]
[null,null,"Noms des antibiotiques prescrits","Nombre d'antibiotiques",null,null,"Nombre d'antibiotiques, par molécule, prescrits en mono, bi et tri-thérapie à J2, affichés par ordre décroissant si > 0."]
[null,null,"Acide fusidique",{"$f":"COUNTIF(Tableau14[[Antibiotique prescrit à J2-J4]:[Si tri-antibiothérapie : antibiotique associé]], Tableau26[[#This Row],[Noms des antibiotiques prescrits]])","v":0}]
[null,null,"Amikacine sulfate",{"$f":"COUNTIF(Tableau14[[Antibiotique prescrit à J2-J4]:[Si tri-antibiothérapie : antibiotique associé]], Tableau26[[#This Row],[Noms des antibiotiques prescrits]])","v":0}]
[null,null,"Amoxicilline",{"$f":"COUNTIF(Tableau14[[Antibiotique prescrit à J2-J4]:[Si tri-antibiothérapie : antibiotique associé]], Tableau26[[#This Row],[Noms des antibiotiques prescrits]])","v":0}]
[null,null,"Amoxicilline + acide clavulanique",{"$f":"COUNTIF(Tableau14[[Antibiotique prescrit à J2-J4]:[Si tri-antibiothérapie : antibiotique associé]], Tableau26[[#This Row],[Noms des antibiotiques prescrits]])","v":0}]
[null,null,"Amphotéricine B liposomale",{"$f":"COUNTIF(Tableau14[[Antibiotique prescrit à J2-J4]:[Si tri-antibiothérapie : antibiotique associé]], Tableau26[[#This Row],[Noms des antibiotiques prescrits]])","v":0}]
[null,null,"Amphotéricine B non lipidique",{"$f":"COUNTIF(Tableau14[[Antibiotique prescrit à J2-J4]:[Si tri-antibiothérapie : antibiotique associé]], Tableau26[[#This Row],[Noms des antibiotiques prescrits]])","v":0}]
[null,null,"Ampicilline",{"$f":"COUNTIF(Tableau14[[Antibiotique prescrit à J2-J4]:[Si tri-antibiothérapie : antibiotique associé]], Tableau26[[#This Row],[Noms des antibiotiques prescrits]])","v":0}]
[null,null,"Ampicilline + Sulbactam",{"$f":"COUNTIF(Tableau14[[Antibiotique prescrit à J2-J4]:[Si tri-antibiothérapie : antibiotique associé]], Tableau26[[#This Row],[Noms des antibiotiques prescrits]])","v":0}]
[null,null,"Anidulafungine",{"$f":"COUNTIF(Tableau14[[Antibiotique prescrit à J2-J4]:[Si tri-antibiothérapie : antibiotique associé]], Tableau26[[#This Row],[Noms des antibiotiques prescrits]])","v":0}]
[null,null,"Autre",{"$f":"COUNTIF(Tableau14[[Antibiotique prescrit à J2-J4]:[Si tri-antibiothérapie : antibiotique associé]], Tableau26[[#This Row],[Noms des antibiotiques prescrits]])","v":0}]
[null,null,"Azithromycine",{"$f":"COUNTIF(Tableau14[[Antibiotique prescrit à J2-J4]:[Si tri-antibiothérapie : antibiotique associé]], Tableau26[[#This Row],[Noms des antibiotiques prescrits]])","v":0}]
[null,null,"Aztréonam",{"$f":"COUNTIF(Tableau14[[Antibiotique prescrit à J2-J4]:[Si tri-antibiothérapie : antibiotique associé]], Tableau26[[#This Row],[Noms des antibiotiques prescrits]])","v":0}]
[null,null,"Aztréonam-avibactam",{"$f":"COUNTIF(Tableau14[[Antibiotique prescrit à J2-J4]:[Si tri-antibiothérapie : antibiotique associé]], Tableau26[[#This Row],[Noms des antibiotiques prescrits]])","v":0}]
[null,null,"Benzathine benzylpenicilline",{"$f":"COUNTIF(Tableau14[[Antibiotique prescrit à J2-J4]:[Si tri-antibiothérapie : antibiotique associé]], Tableau26[[#This Row],[Noms des antibiotiques prescrits]])","v":0}]
[null,null,"Benzathine pénicilline (forme long retard)",{"$f":"COUNTIF(Tableau14[[Antibiotique prescrit à J2-J4]:[Si tri-antibiothérapie : antibiotique associé]], Tableau26[[#This Row],[Noms des antibiotiques prescrits]])","v":0}]
[null,null,"Benzathine phenoxymethylpenicilline",{"$f":"COUNTIF(Tableau14[[Antibiotique prescrit à J2-J4]:[Si tri-antibiothérapie : antibiotique associé]], Tableau26[[#This Row],[Noms des antibiotiques prescrits]])","v":0}]
[null,null,"Caspofungine",{"$f":"COUNTIF(Tableau14[[Antibiotique prescrit à J2-J4]:[Si tri-antibiothérapie : antibiotique associé]], Tableau26[[#This Row],[Noms des antibiotiques prescrits]])","v":0}]
[null,null,"Céfaclor",{"$f":"COUNTIF(Tableau14[[Antibiotique prescrit à J2-J4]:[Si tri-antibiothérapie : antibiotique associé]], Tableau26[[#This Row],[Noms des antibiotiques prescrits]])","v":0}]
[null,null,"Céfadroxil",{"$f":"COUNTIF(Tableau14[[Antibiotique prescrit à J2-J4]:[Si tri-antibiothérapie : antibiotique associé]], Tableau26[[#This Row],[Noms des antibiotiques prescrits]])","v":0}]
[null,null,"Céfalexine",{"$f":"COUNTIF(Tableau14[[Antibiotique prescrit à J2-J4]:[Si tri-antibiothérapie : antibiotique associé]], Tableau26[[#This Row],[Noms des antibiotiques prescrits]])","v":0}]
[null,null,"Céfalotine",{"$f":"COUNTIF(Tableau14[[Antibiotique prescrit à J2-J4]:[Si tri-antibiothérapie : antibiotique associé]], Tableau26[[#This Row],[Noms des antibiotiques prescrits]])","v":0}]
[null,null,"Céfamandole",{"$f":"COUNTIF(Tableau14[[Antibiotique prescrit à J2-J4]:[Si tri-antibiothérapie : antibiotique associé]], Tableau26[[#This Row],[Noms des antibiotiques prescrits]])","v":0}]
[null,null,"Céfazoline",{"$f":"COUNTIF(Tableau14[[Antibiotique prescrit à J2-J4]:[Si tri-antibiothérapie : antibiotique associé]], Tableau26[[#This Row],[Noms des antibiotiques prescrits]])","v":0}]
[null,null,"Céfépime",{"$f":"COUNTIF(Tableau14[[Antibiotique prescrit à J2-J4]:[Si tri-antibiothérapie : antibiotique associé]], Tableau26[[#This Row],[Noms des antibiotiques prescrits]])","v":0}]
[null,null,"Céfidérocol",{"$f":"COUNTIF(Tableau14[[Antibiotique prescrit à J2-J4]:[Si tri-antibiothérapie : antibiotique associé]], Tableau26[[#This Row],[Noms des antibiotiques prescrits]])","v":0}]
[null,null,"Céfixime",{"$f":"COUNTIF(Tableau14[[Antibiotique prescrit à J2-J4]:[Si tri-antibiothérapie : antibiotique associé]], Tableau26[[#This Row],[Noms des antibiotiques prescrits]])","v":0}]
[null,null,"Céfodiam hexétil",{"$f":"COUNTIF(Tableau14[[Antibiotique prescrit à J2-J4]:[Si tri-antibiothérapie : antibiotique associé]], Tableau26[[#This Row],[Noms des antibiotiques prescrits]])","v":0}]
[null,null,"Céfotaxime",{"$f":"COUNTIF(Tableau14[[Antibiotique prescrit à J2-J4]:[Si tri-antibiothérapie : antibiotique associé]], Tableau26[[#This Row],[Noms des antibiotiques prescrits]])","v":0}]
[null,null,"Céfoxitine",{"$f":"COUNTIF(Tableau14[[Antibiotique prescrit à J2-J4]:[Si tri-antibiothérapie : antibiotique associé]], Tableau26[[#This Row],[Noms des antibiotiques prescrits]])","v":0}]
[null,null,"Cefpodoxime proxétil",{"$f":"COUNTIF(Tableau14[[Antibiotique prescrit à J2-J4]:[Si tri-antibiothérapie : antibiotique associé]], Tableau26[[#This Row],[Noms des antibiotiques prescrits]])","v":0}]
[null,null,"Céfradine",{"$f":"COUNTIF(Tableau14[[Antibiotique prescrit à J2-J4]:[Si tri-antibiothérapie : antibiotique associé]], Tableau26[[#This Row],[Noms des antibiotiques prescrits]])","v":0}]
[null,null,"Ceftaroline",{"$f":"COUNTIF(Tableau14[[Antibiotique prescrit à J2-J4]:[Si tri-antibiothérapie : antibiotique associé]], Tableau26[[#This Row],[Noms des antibiotiques prescrits]])","v":0}]
[null,null,"Ceftazidime",{"$f":"COUNTIF(Tableau14[[Antibiotique prescrit à J2-J4]:[Si tri-antibiothérapie : antibiotique associé]], Tableau26[[#This Row],[Noms des antibiotiques prescrits]])","v":0}]
[null,null,"Ceftazidime-avibactam",{"$f":"COUNTIF(Tableau14[[Antibiotique prescrit à J2-J4]:[Si tri-antibiothérapie : antibiotique associé]], Tableau26[[#This Row],[Noms des antibiotiques prescrits]])","v":0}]
[null,null,"Ceftobiprole",{"$f":"COUNTIF(Tableau14[[Antibiotique prescrit à J2-J4]:[Si tri-antibiothérapie : antibiotique associé]], Tableau26[[#This Row],[Noms des antibiotiques prescrits]])","v":0}]
[null,null,"Ceftolozane-tazobactam",{"$f":"COUNTIF(Tableau14[[Antibiotique prescrit à J2-J4]:[Si tri-antibiothérapie : antibiotique associé]], Tableau26[[#This Row],[Noms des antibiotiques prescrits]])","v":0}]
[null,null,"Ceftriaxone",{"$f":"COUNTIF(Tableau14[[Antibiotique prescrit à J2-J4]:[Si tri-antibiothérapie : antibiotique associé]], Tableau26[[#This Row],[Noms des antibiotiques prescrits]])","v":0}]
[null,null,"Céfuroxime axétil",{"$f":"COUNTIF(Tableau14[[Antibiotique prescrit à J2-J4]:[Si tri-antibiothérapie : antibiotique associé]], Tableau26[[#This Row],[Noms des antibiotiques prescrits]])","v":0}]
[null,null,"Céfuroxime sodique",{"$f":"COUNTIF(Tableau14[[Antibiotique prescrit à J2-J4]:[Si tri-antibiothérapie : antibiotique associé]], Tableau26[[#This Row],[Noms des antibiotiques prescrits]])","v":0}]
[null,null,"Ciprofloxacine",{"$f":"COUNTIF(Tableau14[[Antibiotique prescrit à J2-J4]:[Si tri-antibiothérapie : antibiotique associé]], Tableau26[[#This Row],[Noms des antibiotiques prescrits]])","v":0}]
[null,null,"Clarithromycine",{"$f":"COUNTIF(Tableau14[[Antibiotique prescrit à J2-J4]:[Si tri-antibiothérapie : antibiotique associé]], Tableau26[[#This Row],[Noms des antibiotiques prescrits]])","v":0}]
[null,null,"Clindamycine",{"$f":"COUNTIF(Tableau14[[Antibiotique prescrit à J2-J4]:[Si tri-antibiothérapie : antibiotique associé]], Tableau26[[#This Row],[Noms des antibiotiques prescrits]])","v":0}]
[null,null,"Cloxacilline",{"$f":"COUNTIF(Tableau14[[Antibiotique prescrit à J2-J4]:[Si tri-antibiothérapie : antibiotique associé]], Tableau26[[#This Row],[Noms des antibiotiques prescrits]])","v":0}]
[null,null,"Colistine",{"$f":"COUNTIF(Tableau14[[Antibiotique prescrit à J2-J4]:[Si tri-antibiothérapie : antibiotique associé]], Tableau26[[#This Row],[Noms des antibiotiques prescrits]])","v":0}]
[null,null,"Dalbavancine",{"$f":"COUNTIF(Tableau14[[Antibiotique prescrit à J2-J4]:[Si tri-antibiothérapie : antibiotique associé]], Tableau26[[#This Row],[Noms des antibiotiques prescrits]])","v":0}]
[null,null,"Daptomycine",{"$f":"COUNTIF(Tableau14[[Antibiotique prescrit à J2-J4]:[Si tri-antibiothérapie : antibiotique associé]], Tableau26[[#This Row],[Noms des antibiotiques prescrits]])","v":0}]
[null,null,"Délafloxacine",{"$f":"COUNTIF(Tableau14[[Antibiotique prescrit à J2-J4]:[Si tri-antibiothérapie : antibiotique associé]], Tableau26[[#This Row],[Noms des antibiotiques prescrits]])","v":0}]
[null,null,"Doxycycline",{"$f":"COUNTIF(Tableau14[[Antibiotique prescrit à J2-J4]:[Si tri-antibiothérapie : antibiotique associé]], Tableau26[[#This Row],[Noms des antibiotiques prescrits]])","v":0}]
[null,null,"Ertapénem",{"$f":"COUNTIF(Tableau14[[Antibiotique prescrit à J2-J4]:[Si tri-antibiothérapie : antibiotique associé]], Tableau26[[#This Row],[Noms des antibiotiques prescrits]])","v":0}]
[null,null,"Érythromycine",{"$f":"COUNTIF(Tableau14[[Antibiotique prescrit à J2-J4]:[Si tri-antibiothérapie : antibiotique associé]], Tableau26[[#This Row],[Noms des antibiotiques prescrits]])","v":0}]
[null,null,"Éthambutol",{"$f":"COUNTIF(Tableau14[[Antibiotique prescrit à J2-J4]:[Si tri-antibiothérapie : antibiotique associé]], Tableau26[[#This Row],[Noms des antibiotiques prescrits]])","v":0}]
[null,null,"Fidaxomicine",{"$f":"COUNTIF(Tableau14[[Antibiotique prescrit à J2-J4]:[Si tri-antibiothérapie : antibiotique associé]], Tableau26[[#This Row],[Noms des antibiotiques prescrits]])","v":0}]
[null,null,"Fluconazole",{"$f":"COUNTIF(Tableau14[[Antibiotique prescrit à J2-J4]:[Si tri-antibiothérapie : antibiotique associé]], Tableau26[[#This Row],[Noms des antibiotiques prescrits]])","v":0}]
[null,null,"Flucytosine",{"$f":"COUNTIF(Tableau14[[Antibiotique prescrit à J2-J4]:[Si tri-antibiothérapie : antibiotique associé]], Tableau26[[#This Row],[Noms des antibiotiques prescrits]])","v":0}]
[null,null,"Fosfomycine",{"$f":"COUNTIF(Tableau14[[Antibiotique prescrit à J2-J4]:[Si tri-antibiothérapie : antibiotique associé]], Tableau26[[#This Row],[Noms des antibiotiques prescrits]])","v":0}]
[null,null,"Fosfomycine trométamol",{"$f":"COUNTIF(Tableau14[[Antibiotique prescrit à J2-J4]:[Si tri-antibiothérapie : antibiotique associé]], Tableau26[[#This Row],[Noms des antibiotiques prescrits]])","v":0}]
[null,null,"Gentamicine",{"$f":"COUNTIF(Tableau14[[Antibiotique prescrit à J2-J4]:[Si tri-antibiothérapie : antibiotique associé]], Tableau26[[#This Row],[Noms des antibiotiques prescrits]])","v":0}]
[null,null,"Imipénem + Cilastatine",{"$f":"COUNTIF(Tableau14[[Antibiotique prescrit à J2-J4]:[Si tri-antibiothérapie : antibiotique associé]], Tableau26[[#This Row],[Noms des antibiotiques prescrits]])","v":0}]
[null,null,"Imipénème-relebactam",{"$f":"COUNTIF(Tableau14[[Antibiotique prescrit à J2-J4]:[Si tri-antibiothérapie : antibiotique associé]], Tableau26[[#This Row],[Noms des antibiotiques prescrits]])","v":0}]
[null,null,"Isavuconazole",{"$f":"COUNTIF(Tableau14[[Antibiotique prescrit à J2-J4]:[Si tri-antibiothérapie : antibiotique associé]], Tableau26[[#This Row],[Noms des antibiotiques prescrits]])","v":0}]
[null,null,"Isoniazide",{"$f":"COUNTIF(Tableau14[[Antibiotique prescrit à J2-J4]:[Si tri-antibiothérapie : antibiotique associé]], Tableau26[[#This Row],[Noms des antibiotiques prescrits]])","v":0}]
[null,null,"Itraconazole",{"$f":"COUNTIF(Tableau14[[Antibiotique prescrit à J2-J4]:[Si tri-antibiothérapie : antibiotique associé]], Tableau26[[#This Row],[Noms des antibiotiques prescrits]])","v":0}]
[null,null,"Josamycine",{"$f":"COUNTIF(Tableau14[[Antibiotique prescrit à J2-J4]:[Si tri-antibiothérapie : antibiotique associé]], Tableau26[[#This Row],[Noms des antibiotiques prescrits]])","v":0}]
[null,null,"Lévofloxacine",{"$f":"COUNTIF(Tableau14[[Antibiotique prescrit à J2-J4]:[Si tri-antibiothérapie : antibiotique associé]], Tableau26[[#This Row],[Noms des antibiotiques prescrits]])","v":0}]
[null,null,"Linézolide",{"$f":"COUNTIF(Tableau14[[Antibiotique prescrit à J2-J4]:[Si tri-antibiothérapie : antibiotique associé]], Tableau26[[#This Row],[Noms des antibiotiques prescrits]])","v":0}]
[null,null,"Loméfloxacine",{"$f":"COUNTIF(Tableau14[[Antibiotique prescrit à J2-J4]:[Si tri-antibiothérapie : antibiotique associé]], Tableau26[[#This Row],[Noms des antibiotiques prescrits]])","v":0}]
[null,null,"Méropénème",{"$f":"COUNTIF(Tableau14[[Antibiotique prescrit à J2-J4]:[Si tri-antibiothérapie : antibiotique associé]], Tableau26[[#This Row],[Noms des antibiotiques prescrits]])","v":0}]
[null,null,"Méropénème-vaborbactam",{"$f":"COUNTIF(Tableau14[[Antibiotique prescrit à J2-J4]:[Si tri-antibiothérapie : antibiotique associé]], Tableau26[[#This Row],[Noms des antibiotiques prescrits]])","v":0}]
[null,null,"Métronidazole",{"$f":"COUNTIF(Tableau14[[Antibiotique prescrit à J2-J4]:[Si tri-antibiothérapie : antibiotique associé]], Tableau26[[#This Row],[Noms des antibiotiques prescrits]])","v":0}]
[null,null,"Micafungine",{"$f":"COUNTIF(Tableau14[[Antibiotique prescrit à J2-J4]:[Si tri-antibiothérapie : antibiotique associé]], Tableau26[[#This Row],[Noms des antibiotiques prescrits]])","v":0}]
[null,null,"Minocycline",{"$f":"COUNTIF(Tableau14[[Antibiotique prescrit à J2-J4]:[Si tri-antibiothérapie : antibiotique associé]], Tableau26[[#This Row],[Noms des antibiotiques prescrits]])","v":0}]
[null,null,"Moxifloxacine",{"$f":"COUNTIF(Tableau14[[Antibiotique prescrit à J2-J4]:[Si tri-antibiothérapie : antibiotique associé]], Tableau26[[#This Row],[Noms des antibiotiques prescrits]])","v":0}]
[null,null,"Neomycine (associée)",{"$f":"COUNTIF(Tableau14[[Antibiotique prescrit à J2-J4]:[Si tri-antibiothérapie : antibiotique associé]], Tableau26[[#This Row],[Noms des antibiotiques prescrits]])","v":0}]
[null,null,"Nétilmycine",{"$f":"COUNTIF(Tableau14[[Antibiotique prescrit à J2-J4]:[Si tri-antibiothérapie : antibiotique associé]], Tableau26[[#This Row],[Noms des antibiotiques prescrits]])","v":0}]
[null,null,"Nitrofurantoïne",{"$f":"COUNTIF(Tableau14[[Antibiotique prescrit à J2-J4]:[Si tri-antibiothérapie : antibiotique associé]], Tableau26[[#This Row],[Noms des antibiotiques prescrits]])","v":0}]
[null,null,"Norfloxacine",{"$f":"COUNTIF(Tableau14[[Antibiotique prescrit à J2-J4]:[Si tri-antibiothérapie : antibiotique associé]], Tableau26[[#This Row],[Noms des antibiotiques prescrits]])","v":0}]
[null,null,"Ofloxacine",{"$f":"COUNTIF(Tableau14[[Antibiotique prescrit à J2-J4]:[Si tri-antibiothérapie : antibiotique associé]], Tableau26[[#This Row],[Noms des antibiotiques prescrits]])","v":0}]
[null,null,"Oritavancine",{"$f":"COUNTIF(Tableau14[[Antibiotique prescrit à J2-J4]:[Si tri-antibiothérapie : antibiotique associé]], Tableau26[[#This Row],[Noms des antibiotiques prescrits]])","v":0}]
[null,null,"Oxacilline",{"$f":"COUNTIF(Tableau14[[Antibiotique prescrit à J2-J4]:[Si tri-antibiothérapie : antibiotique associé]], Tableau26[[#This Row],[Noms des antibiotiques prescrits]])","v":0}]
[null,null,"Péfloxacine",{"$f":"COUNTIF(Tableau14[[Antibiotique prescrit à J2-J4]:[Si tri-antibiothérapie : antibiotique associé]], Tableau26[[#This Row],[Noms des antibiotiques prescrits]])","v":0}]
[null,null,"Pénicilline V",{"$f":"COUNTIF(Tableau14[[Antibiotique prescrit à J2-J4]:[Si tri-antibiothérapie : antibiotique associé]], Tableau26[[#This Row],[Noms des antibiotiques prescrits]])","v":0}]
[null,null,"Pénicillines G = benzylpénicilline sodique",{"$f":"COUNTIF(Tableau14[[Antibiotique prescrit à J2-J4]:[Si tri-antibiothérapie : antibiotique associé]], Tableau26[[#This Row],[Noms des antibiotiques prescrits]])","v":0}]
[null,null,"Pipéracilline",{"$f":"COUNTIF(Tableau14[[Antibiotique prescrit à J2-J4]:[Si tri-antibiothérapie : antibiotique associé]], Tableau26[[#This Row],[Noms des antibiotiques prescrits]])","v":0}]
[null,null,"Pipéracilline + Tazobactam",{"$f":"COUNTIF(Tableau14[[Antibiotique prescrit à J2-J4]:[Si tri-antibiothérapie : antibiotique associé]], Tableau26[[#This Row],[Noms des antibiotiques prescrits]])","v":0}]
[null,null,"Pivmécillinam",{"$f":"COUNTIF(Tableau14[[Antibiotique prescrit à J2-J4]:[Si tri-antibiothérapie : antibiotique associé]], Tableau26[[#This Row],[Noms des antibiotiques prescrits]])","v":0}]
[null,null,"Posaconazole",{"$f":"COUNTIF(Tableau14[[Antibiotique prescrit à J2-J4]:[Si tri-antibiothérapie : antibiotique associé]], Tableau26[[#This Row],[Noms des antibiotiques prescrits]])","v":0}]
[null,null,"Pristinamycine",{"$f":"COUNTIF(Tableau14[[Antibiotique prescrit à J2-J4]:[Si tri-antibiothérapie : antibiotique associé]], Tableau26[[#This Row],[Noms des antibiotiques prescrits]])","v":0}]
[null,null,"Pyrazinamide",{"$f":"COUNTIF(Tableau14[[Antibiotique prescrit à J2-J4]:[Si tri-antibiothérapie : antibiotique associé]], Tableau26[[#This Row],[Noms des antibiotiques prescrits]])","v":0}]
[null,null,"Rifabutine",{"$f":"COUNTIF(Tableau14[[Antibiotique prescrit à J2-J4]:[Si tri-antibiothérapie : antibiotique associé]], Tableau26[[#This Row],[Noms des antibiotiques prescrits]])","v":0}]
[null,null,"Rifampicine",{"$f":"COUNTIF(Tableau14[[Antibiotique prescrit à J2-J4]:[Si tri-antibiothérapie : antibiotique associé]], Tableau26[[#This Row],[Noms des antibiotiques prescrits]])","v":0}]
[null,null,"Roxithromycine",{"$f":"COUNTIF(Tableau14[[Antibiotique prescrit à J2-J4]:[Si tri-antibiothérapie : antibiotique associé]], Tableau26[[#This Row],[Noms des antibiotiques prescrits]])","v":0}]
[null,null,"Spectinomycine",{"$f":"COUNTIF(Tableau14[[Antibiotique prescrit à J2-J4]:[Si tri-antibiothérapie : antibiotique associé]], Tableau26[[#This Row],[Noms des antibiotiques prescrits]])","v":0}]
[null,null,"Spiramycine",{"$f":"COUNTIF(Tableau14[[Antibiotique prescrit à J2-J4]:[Si tri-antibiothérapie : antibiotique associé]], Tableau26[[#This Row],[Noms des antibiotiques prescrits]])","v":0}]
[null,null,"Spiramycine-métronidazole",{"$f":"COUNTIF(Tableau14[[Antibiotique prescrit à J2-J4]:[Si tri-antibiothérapie : antibiotique associé]], Tableau26[[#This Row],[Noms des antibiotiques prescrits]])","v":0}]
[null,null,"Streptomycine",{"$f":"COUNTIF(Tableau14[[Antibiotique prescrit à J2-J4]:[Si tri-antibiothérapie : antibiotique associé]], Tableau26[[#This Row],[Noms des antibiotiques prescrits]])","v":0}]
[null,null,"Sulfadiazine",{"$f":"COUNTIF(Tableau14[[Antibiotique prescrit à J2-J4]:[Si tri-antibiothérapie : antibiotique associé]], Tableau26[[#This Row],[Noms des antibiotiques prescrits]])","v":0}]
[null,null,"Sulfadiazine + Pyriméthamine",{"$f":"COUNTIF(Tableau14[[Antibiotique prescrit à J2-J4]:[Si tri-antibiothérapie : antibiotique associé]], Tableau26[[#This Row],[Noms des antibiotiques prescrits]])","v":0}]
[null,null,"Sulfaméthoxazole + Triméthoprime (Cotrimoxazole)",{"$f":"COUNTIF(Tableau14[[Antibiotique prescrit à J2-J4]:[Si tri-antibiothérapie : antibiotique associé]], Tableau26[[#This Row],[Noms des antibiotiques prescrits]])","v":0}]
[null,null,"Tédizolide",{"$f":"COUNTIF(Tableau14[[Antibiotique prescrit à J2-J4]:[Si tri-antibiothérapie : antibiotique associé]], Tableau26[[#This Row],[Noms des antibiotiques prescrits]])","v":0}]
[null,null,"Teicoplanine",{"$f":"COUNTIF(Tableau14[[Antibiotique prescrit à J2-J4]:[Si tri-antibiothérapie : antibiotique associé]], Tableau26[[#This Row],[Noms des antibiotiques prescrits]])","v":0}]
[null,null,"Témocilline",{"$f":"COUNTIF(Tableau14[[Antibiotique prescrit à J2-J4]:[Si tri-antibiothérapie : antibiotique associé]], Tableau26[[#This Row],[Noms des antibiotiques prescrits]])","v":0}]
[null,null,"Thiamphénicol",{"$f":"COUNTIF(Tableau14[[Antibiotique prescrit à J2-J4]:[Si tri-antibiothérapie : antibiotique associé]], Tableau26[[#This Row],[Noms des antibiotiques prescrits]])","v":0}]
[null,null,"Ticarcilline",{"$f":"COUNTIF(Tableau14[[Antibiotique prescrit à J2-J4]:[Si tri-antibiothérapie : antibiotique associé]], Tableau26[[#This Row],[Noms des antibiotiques prescrits]])","v":0}]
[null,null,"Triméthoprime",{"$f":"COUNTIF(Tableau14[[Antibiotique prescrit à J2-J4]:[Si tri-antibiothérapie : antibiotique associé]], Tableau26[[#This Row],[Noms des antibiotiques prescrits]])","v":0}]
[null,null,"Ticarcilline + Acide clavulanique",{"$f":"COUNTIF(Tableau14[[Antibiotique prescrit à J2-J4]:[Si tri-antibiothérapie : antibiotique associé]], Tableau26[[#This Row],[Noms des antibiotiques prescrits]])","v":0}]
[null,null,"Tigécycline",{"$f":"COUNTIF(Tableau14[[Antibiotique prescrit à J2-J4]:[Si tri-antibiothérapie : antibiotique associé]], Tableau26[[#This Row],[Noms des antibiotiques prescrits]])","v":0}]
[null,null,"Tobramycine",{"$f":"COUNTIF(Tableau14[[Antibiotique prescrit à J2-J4]:[Si tri-antibiothérapie : antibiotique associé]], Tableau26[[#This Row],[Noms des antibiotiques prescrits]])","v":0}]
[null,null,"Voriconazole",{"$f":"COUNTIF(Tableau14[[Antibiotique prescrit à J2-J4]:[Si tri-antibiothérapie : antibiotique associé]], Tableau26[[#This Row],[Noms des antibiotiques prescrits]])","v":0}]
[null,null,"Vancomycine",{"$f":"COUNTIF(Tableau14[[Antibiotique prescrit à J2-J4]:[Si tri-antibiothérapie : antibiotique associé]], Tableau26[[#This Row],[Noms des antibiotiques prescrits]])","v":0}]
[]
[null,"Voies d'administration"]
[null,null,"Type de voies d'administration et nombre / taux d'antibiotiques associés à ces voies, à J2-J4.\n- Le dénominateur correspond au nombre total de voies d'administration renseignées aux items N°19, 21 et 23.\n- Pas de dossier inapplicable."]
[null,{"$f":"COUNTIF('2.GRILLE DE RECUEIL'!$T:$T,\"PO\")+COUNTIF('2.GRILLE DE RECUEIL'!$V:$V,\"PO\")+COUNTIF('2.GRILLE DE RECUEIL'!$X:$X,\"PO\")","v":0},"antibiotique(s) administré(s) PO","parmi",{"$f":"B363+B364+B365+B366","v":0},"voies d'administration renseignées, soit",null,null,null,{"$f":"B363/E363","v":{"$error":"#DIV/0!"}}]
[null,{"$f":"COUNTIF('2.GRILLE DE RECUEIL'!$T:$T,\"IV\")+COUNTIF('2.GRILLE DE RECUEIL'!$V:$V,\"IV\")+COUNTIF('2.GRILLE DE RECUEIL'!$X:$X,\"IV\")","v":0},"antibiotique(s) administré(s) en IV",null,null,null,null,null,null,{"$f":"B364/E363","v":{"$error":"#DIV/0!"}}]
[null,{"$f":"COUNTIF('2.GRILLE DE RECUEIL'!$T:$T,\"SC\")+COUNTIF('2.GRILLE DE RECUEIL'!$V:$V,\"SC\")+COUNTIF('2.GRILLE DE RECUEIL'!$X:$X,\"SC\")","v":0},"antibiotique(s) administré(s) en SC",null,null,null,null,null,null,{"$f":"B365/E363","v":{"$error":"#DIV/0!"}}]
[null,{"$f":"COUNTIF('2.GRILLE DE RECUEIL'!$T:$T,\"IM\")+COUNTIF('2.GRILLE DE RECUEIL'!$V:$V,\"IM\")+COUNTIF('2.GRILLE DE RECUEIL'!$X:$X,\"IM\")","v":0},"antibiotique(s) administré(s) en IM",null,null,null,null,null,null,{"$f":"B366/E363","v":{"$error":"#DIV/0!"}}]
[]
[null,"Poursuite de l'antibiothérapie jugée \"utile\" à la réévaluation"]
[null,null,"Nombre et taux de poursuites d'antibiothérapie jugées utiles ou inutiles après évaluation de la démarche diagnostique, à J2-J4.\n- Les dossiers applicables correspondent à ceux pour lesquels l'évaluateur a rempli \"Oui\" ou \"Non\" à l'item N°24.\n- Les dossiers inapplicables correspondent à ceux pour lesquels \"Inapplicable\" a été renseigné à l'item N°24."]
[null,{"$f":"(COUNTIF('2.GRILLE DE RECUEIL'!$Y:$Y,\"Oui\")+COUNTIF('2.GRILLE DE RECUEIL'!$Y:$Y,\"Non\")+COUNTIF('2.GRILLE DE RECUEIL'!$Y:$Y,\"Inapplicable\"))","v":0},"prescription(s) évaluée(s) lors de cette question, dont",null,{"$f":"(COUNTIF('2.GRILLE DE RECUEIL'!$Y:$Y,\"Oui\")+COUNTIF('2.GRILLE DE RECUEIL'!$Y:$Y,\"Non\"))","v":0},"applicables et",null,{"$f":"COUNTIF('2.GRILLE DE RECUEIL'!$Y:$Y,\"Inapplicable\")","v":0},"inapplicables."]
[null,{"$f":"COUNTIF('2.GRILLE DE RECUEIL'!$Y:$Y,\"Oui\")","v":0},"poursuite(s) de l'antibiothérapie jugée(s) utile(s)",null,null,"parmi les dossiers applicables, soit",null,null,null,{"$f":"B371/E370","v":{"$error":"#DIV/0!"}}]
[null,{"$f":"COUNTIF('2.GRILLE DE RECUEIL'!$Y:$Y,\"Non\")","v":0},"poursuite(s) de l'antibiothérapie jugée(s) inutile(s)",null,null,null,null,null,null,{"$f":"B372/E370","v":{"$error":"#DIV/0!"}}]
[]
[null,"Choix des molécules"]
[null,null,"Nombre et taux de prescriptions dont toutes les molécules sont appropriées et celles dont au moins une molécule ne l'est pas, à J2-J4.\n- Les dossiers applicables correspondent à ceux pour lesquels l'évaluateur a rempli \"Oui\" ou \"Non\" à l'item N°25.\n- Les dossiers inapplicables correspondent à ceux pour lesquels \"Inapplicable\" a été renseigné à l'item N°25."]
[null,{"$f":"(COUNTIF('2.GRILLE DE RECUEIL'!$Z:$Z,\"Oui\")+COUNTIF('2.GRILLE DE RECUEIL'!$Z:$Z,\"Non\")+COUNTIF('2.GRILLE DE RECUEIL'!$Z:$Z,\"Inapplicable\"))","v":0},"prescription(s) évaluée(s) lors de cette question, dont",null,{"$f":"(COUNTIF('2.GRILLE DE RECUEIL'!$Z:$Z,\"Oui\")+COUNTIF('2.GRILLE DE RECUEIL'!$Z:$Z,\"Non\"))","v":0},"applicables et",null,{"$f":"COUNTIF('2.GRILLE DE RECUEIL'!$Z:$Z,\"Inapplicable\")","v":0},"inapplicables."]
[null,{"$f":"COUNTIF('2.GRILLE DE RECUEIL'!$Z:$Z,\"Oui\")","v":0},"prescription(s) avec toutes les molécules appropriées",null,null,"parmi les dossiers applicables, soit",null,null,null,{"$f":"B377/E376","v":{"$error":"#DIV/0!"}}]
[null,{"$f":"COUNTIF('2.GRILLE DE RECUEIL'!$Z:$Z,\"Non\")","v":0},"prescription(s) avec au moins une molécule inappropriée",null,null,null,null,null,null,{"$f":"B378/E376","v":{"$error":"#DIV/0!"}}]
[]
[null,"Choix des voies d'administration"]
[null,null,"Nombre et taux de prescriptions dont toutes les voies d'administration sont appropriées et celles dont au moins une voie ne l'est pas, à J2-J4.\n- Les dossiers applicables correspondent à ceux pour lesquels l'évaluateur a rempli \"Oui\" ou \"Non\" à l'item N°26.\n- Les dossiers inapplicables correspondent à ceux pour lesquels \"Inapplicable\" a été renseigné à l'item N°26."]
[null,{"$f":"(COUNTIF('2.GRILLE DE RECUEIL'!$AA:$AA,\"Oui\")+COUNTIF('2.GRILLE DE RECUEIL'!$AA:$AA,\"Non\")+COUNTIF('2.GRILLE DE RECUEIL'!$AA:$AA,\"Inapplicable\"))","v":0},"prescription(s) évaluée(s) lors de cette question, dont",null,{"$f":"(COUNTIF('2.GRILLE DE RECUEIL'!$AA:$AA,\"Oui\")+COUNTIF('2.GRILLE DE RECUEIL'!$AA:$AA,\"Non\"))","v":0},"applicables et",null,{"$f":"COUNTIF('2.GRILLE DE RECUEIL'!$AA:$AA,\"Inapplicable\")","v":0},"inapplicables."]
[null,{"$f":"COUNTIF('2.GRILLE DE RECUEIL'!$AA:$AA,\"Oui\")","v":0},"prescription(s) avec toutes les voies d'administration appropriées",null,null,"parmi les dossiers applicables, soit",null,null,null,{"$f":"B383/E382","v":{"$error":"#DIV/0!"}}]
[null,{"$f":"COUNTIF('2.GRILLE DE RECUEIL'!$AA:$AA,\"Non\")","v":0},"prescription(s) avec au moins une voie d'administration inappropriée",null,null,null,null,null,null,{"$f":"B384/E382","v":{"$error":"#DIV/0!"}}]
[]
[null,"Durée prévue lors la réévaluation"]
[null,null,"Nombre et taux de prescriptions dont la durée de traitement est appropriée ou inappropriée, à J2-J4.\n- Les dossiers applicables correspondent à ceux pour lesquels l'évaluateur a rempli \"Oui\" ou \"Non\" à l'item N°27.\n- Les dossiers inapplicables correspondent à ceux pour lesquels \"Inapplicable\" a été renseigné à l'item N°27."]
[null,{"$f":"(COUNTIF('2.GRILLE DE RECUEIL'!$AB:$AB,\"Oui\")+COUNTIF('2.GRILLE DE RECUEIL'!$AB:$AB,\"Non\")+COUNTIF('2.GRILLE DE RECUEIL'!$AB:$AB,\"Inapplicable\"))","v":0},"prescription(s) évaluée(s) lors de cette question, dont",null,{"$f":"(COUNTIF('2.GRILLE DE RECUEIL'!$AB:$AB,\"Oui\")+COUNTIF('2.GRILLE DE RECUEIL'!$AB:$AB,\"Non\"))","v":0},"applicables et",null,{"$f":"COUNTIF('2.GRILLE DE RECUEIL'!$AB:$AB,\"Inapplicable\")","v":0},"inapplicables."]
[null,{"$f":"COUNTIF('2.GRILLE DE RECUEIL'!$AB:$AB,\"Oui\")","v":0},"prescription(s) dont la durée prévue lors de la réévaluation est appropriée",null,null,null,"parmi les dossiers applicables, soit",null,null,{"$f":"B389/E388","v":{"$error":"#DIV/0!"}}]
[null,{"$f":"COUNTIF('2.GRILLE DE RECUEIL'!$AB:$AB,\"Non\")","v":0},"prescription(s) dont la durée prévue lors de la réévaluation est inappropriée",null,null,null,null,null,null,{"$f":"B390/E388","v":{"$error":"#DIV/0!"}}]
[]
[null,"Prescriptions appropriées"]
[null,null,"Combinaison des questions N°25, 26 et 27. \nNombre et taux de prescriptions appropriées (soit celles dont toutes les voies d'administration, toutes les molécules et toutes les durées sont appropriées à J2-J4) ou inappropriées (toutes les autres).\n- Les dossiers applicables correspondent à ceux pour lesquels soit \"Oui\", soit \"Non\" ont été renseignés pour les items 25, 26 et 27.\n- Les dossiers inapplicables correspondent à ceux pour lesquels au moins une réponse à l'un des items 25, 26 et 27 était \"Inapplicable\".\nSeuls les dossiers avec ces trois items remplis sont comptabilisés."]
[null,{"$f":"SUMPRODUCT((ISNUMBER(MATCH('2.GRILLE DE RECUEIL'!Z7:Z10000,'listes déroulantes (masqué)'!$C$96:$C$98,0)))*(ISNUMBER(MATCH('2.GRILLE DE RECUEIL'!AA7:AA10000,'listes déroulantes (masqué)'!$C$96:$C$98,0)))*(ISNUMBER(MATCH('2.GRILLE DE RECUEIL'!AB7:AB10000,'listes déroulantes (masqué)'!$C$96:$C$98,0))))","v":0},"prescription(s) évaluée(s) lors de cette question, dont",null,{"$f":"SUMPRODUCT((ISNUMBER(MATCH('2.GRILLE DE RECUEIL'!Z7:Z10000,'listes déroulantes (masqué)'!$C$96:$C$97,0)))*(ISNUMBER(MATCH('2.GRILLE DE RECUEIL'!AA7:AA10000,'listes déroulantes (masqué)'!$C$96:$C$97,0)))*(ISNUMBER(MATCH('2.GRILLE DE RECUEIL'!AB7:AB10000,'listes déroulantes (masqué)'!$C$96:$C$97,0))))","v":0},"applicables et",null,{"$f":"B394-E394","v":0},"inapplicables."]
[null,{"$f":"SUMPRODUCT((ISNUMBER(MATCH('2.GRILLE DE RECUEIL'!Z7:Z10000,'listes déroulantes (masqué)'!$C$96,0)))*(ISNUMBER(MATCH('2.GRILLE DE RECUEIL'!AA7:AA10000,'listes déroulantes (masqué)'!$C$96,0)))*(ISNUMBER(MATCH('2.GRILLE DE RECUEIL'!AB7:AB10000,'listes déroulantes (masqué)'!$C$96,0))))","v":0},"prescription(s) appropriée(s) ",null,null,"parmi les dossiers applicables, soit",null,null,null,{"$f":"B395/E394","v":{"$error":"#DIV/0!"}}]
[null,{"$f":"E394-B395","v":0},"prescription(s) inappropriée(s)",null,null,null,null,null,null,{"$f":"B396/E394","v":{"$error":"#DIV/0!"}}]
[]
[null,"Analyse pharmaceutique réalisée"]
[null,null,"Nombre et taux d'analyses pharmaceutiques réalisées et non-réalisées.\n- Les dossiers applicables correspondent à ceux pour lesquels \"Oui\" ou \"Non\" ont été renseignés à l'item N°28.\n- Les dossiers inapplicables correspondent à ceux pour lesquels \"Inapplicable\" a été renseigné à l'item N°28."]
[null,{"$f":"(COUNTIF('2.GRILLE DE RECUEIL'!$AC:$AC,\"Oui\")+COUNTIF('2.GRILLE DE RECUEIL'!$AC:$AC,\"Non\")+COUNTIF('2.GRILLE DE RECUEIL'!$AC:$AC,\"Inapplicable\"))","v":0},"prescription(s) évaluée(s) lors de cette question, dont",null,{"$f":"(COUNTIF('2.GRILLE DE RECUEIL'!$AC:$AC,\"Oui\")+COUNTIF('2.GRILLE DE RECUEIL'!$AC:$AC,\"Non\"))","v":0},"applicables et",null,{"$f":"COUNTIF('2.GRILLE DE RECUEIL'!$AC:$AC,\"Inapplicable\")","v":0},"inapplicables."]
[null,{"$f":"COUNTIF('2.GRILLE DE RECUEIL'!$AC:$AC,\"Oui\")","v":0},"prescription(s) pour la(les)quelle(s) l'analyse pharmaceutique est réalisée",null,null,null,"parmi les dossiers applicables, soit",null,null,{"$f":"B401/E400","v":{"$error":"#DIV/0!"}}]
[null,{"$f":"COUNTIF('2.GRILLE DE RECUEIL'!$AC:$AC,\"Non\")","v":0},"prescription(s) pour la(les)quelle(s) l'analyse pharmaceutique n'est pas réalisée",null,null,null,null,null,null,{"$f":"B402/E400","v":{"$error":"#DIV/0!"}}]
[]
[null,"Intervention pharmaceutique réalisée"]
[null,null,"Nombre et taux d'interventions pharmaceutiques réalisées et non-réalisées en cas de prescription inappropriée.\n- Les dossiers applicables correspondent à ceux pour lesquels \"Oui\" ou \"Non\" ont été renseignés à l'item N°29.\n- Les dossiers inapplicables correspondent à ceux pour lesquels \"Inapplicable\" a été renseigné à l'item N°29."]
[null,{"$f":"(COUNTIF('2.GRILLE DE RECUEIL'!$AD:$AD,\"Oui\")+COUNTIF('2.GRILLE DE RECUEIL'!$AD:$AD,\"Non\")+COUNTIF('2.GRILLE DE RECUEIL'!$AD:$AD,\"Inapplicable\"))","v":0},"prescription(s) évaluée(s) lors de cette question, dont",null,{"$f":"(COUNTIF('2.GRILLE DE RECUEIL'!$AD:$AD,\"Oui\")+COUNTIF('2.GRILLE DE RECUEIL'!$AD:$AD,\"Non\"))","v":0},"applicables et",null,{"$f":"COUNTIF('2.GRILLE DE RECUEIL'!$AD:$AD,\"Inapplicable\")","v":0},"inapplicables."]
[null,{"$f":"COUNTIF('2.GRILLE DE RECUEIL'!$AD:$AD,\"Oui\")","v":0},"intervention(s) pharmaceutique(s) réalisée(s) en cas de prescription inappropriée",null,null,null,"parmi les dossiers applicables, soit",null,null,{"$f":"B407/E406","v":{"$error":"#DIV/0!"}}]
[null,{"$f":"COUNTIF('2.GRILLE DE RECUEIL'!$AD:$AD,\"Non\")","v":0},"intervention(s) pharmaceutique(s) non-réalisée(s) en cas de prescription inappropriée",null,null,null,null,null,null,{"$f":"B408/E406","v":{"$error":"#DIV/0!"}}]
[]
[null,"Intervention pharmaceutique acceptée"]
[null,null,"Nombre et taux d'interventions pharmaceutiques acceptées parmi les interventions réalisées.\n- Les dossiers applicables correspondent à ceux pour lesquels \"Oui\" ou \"Non\" ont été renseignés à l'item N°30.\n- Les dossiers inapplicables correspondent à ceux pour lesquels \"Inapplicable\" a été renseigné à l'item N°30."]
[null,{"$f":"(COUNTIF(Tableau14[Intervention pharmaceutique acceptée],\"Oui\")+COUNTIF(Tableau14[Intervention pharmaceutique acceptée],\"Non\")+COUNTIF(Tableau14[Intervention pharmaceutique acceptée],\"Inapplicable\"))","v":0},"prescription(s) évaluée(s) lors de cette question, dont",null,{"$f":"(COUNTIF(Tableau14[Intervention pharmaceutique acceptée],\"Oui\")+COUNTIF(Tableau14[Intervention pharmaceutique acceptée],\"Non\"))","v":0},"applicables et",null,{"$f":"COUNTIF(Tableau14[Intervention pharmaceutique acceptée],\"Inapplicable\")","v":0},"inapplicables."]
[null,{"$f":"(COUNTIF(Tableau14[Intervention pharmaceutique acceptée],\"Non\"))","v":0},"intervention(s) pharmaceutique(s) acceptée(s)",null,"parmi le(s) dossier(s) applicable(s), soit",null,null,null,null,{"$f":"B413/E412","v":{"$error":"#DIV/0!"}}]
[null,{"$f":"(COUNTIF(Tableau14[Intervention pharmaceutique acceptée],\"Oui\"))","v":0},"intervention(s) pharmaceutique(s) rejetée(s)",null,null,null,null,null,null,{"$f":"B414/E412","v":{"$error":"#DIV/0!"}}]
[]
[null,"Durées de traitement"]
[null,null,"Calcul des durées de traitement sur la base des dates renseignées aux items N°31 et 32.\n- Les dossiers applicables correspondent à ceux pour lesquels une date de fin et de début ont été renseignées aux items N°31 et 32.\n- Pas de dossier inapplicable.\nSeuls les dossiers avec les items N°31 et 32 remplis sont comptabilisés."]
[null,{"$f":"(COUNTIF(Tableau14[Durée calculée en jours\nVerrouillé],\">7\"))+(COUNTIFS(Tableau14[Durée calculée en jours\nVerrouillé],\"<=7\",Tableau14[Durée calculée en jours\nVerrouillé],\"<>0\"))","v":0},"dossier(s) applicable(s)"]
[null,{"$f":"COUNTIF(Tableau14[Durée calculée en jours\nVerrouillé],\">7\")","v":0},"dossier(s) avec une durée de","traitement de plus de 7 jours",null,null,"parmi les dossiers applicables, soit",null,null,{"$f":"B419/B418","v":{"$error":"#DIV/0!"}}]
[null,{"$f":"COUNTIFS(Tableau14[Durée calculée en jours\nVerrouillé],\"<=7\",Tableau14[Durée calculée en jours\nVerrouillé],\"<>0\")","v":0},"dossier(s) avec une durée de","traitement inférieur ou égal à 7 jours",null,null,null,null,null,{"$f":"B420/B418","v":{"$error":"#DIV/0!"}}]
[]
[null,"Durée moyenne :",null,{"$f":"AVERAGEIF(Tableau14[Durée calculée en jours\nVerrouillé],\"<>0\")","v":{"$error":"#DIV/0!"}},"jour(s)"]
[null,"Durée max :",null,{"$f":"MAX(Tableau14[Durée calculée en jours\nVerrouillé])","v":0},"jour(s)"]
[null,"Durée min :\n(hors zéro)",null,{"$f":"_xlfn.MINIFS(Tableau14[Durée calculée en jours\nVerrouillé],Tableau14[Durée calculée en jours\nVerrouillé],\"<>0\")","v":0},"jour(s)"]
[]
[null,"Traitement de plus de 7 jours justifié"]
[null,null,"Estimation du nombre et du taux de traitements de plus de 7 jours justifiés et non-justifiés.\n- Les dossiers applicables correspondent à ceux pour lesquels \"Oui\" ou \"Non\" ont été renseignés à l'item N°33.\n- Les dossiers inapplicables correspondent à ceux pour lesquels \"Inapplicable\" a été renseigné à l'item N°33."]
[null,{"$f":"(COUNTIF(Tableau14[Justification d''un traitement de plus de 7 jours],\"Oui\")+COUNTIF(Tableau14[Justification d''un traitement de plus de 7 jours],\"Non\")+COUNTIF(Tableau14[Justification d''un traitement de plus de 7 jours],\"Inapplicable\"))","v":0},"prescription(s) évaluée(s) lors de cette question, dont",null,{"$f":"(COUNTIF(Tableau14[Justification d''un traitement de plus de 7 jours],\"Oui\")+COUNTIF(Tableau14[Justification d''un traitement de plus de 7 jours],\"Non\"))","v":0},"applicables et",null,{"$f":"B428-E428","v":0},"dossiers inapplicables."]
[null,{"$f":"(COUNTIF(Tableau14[Justification d''un traitement de plus de 7 jours],\"Non\"))","v":0},"traitement(s) de plus de 7 jours justifié(s)",null,"parmi les dossiers applicables, soit",null,null,null,null,{"$f":"B429/E428","v":{"$error":"#DIV/0!"}}]
[null,{"$f":"(COUNTIF(Tableau14[Justification d''un traitement de plus de 7 jours],\"Oui\"))","v":0},"traitement(s) de plus de 7 jours non-justifié(s)",null,null,null,null,null,null,{"$f":"B430/E428","v":{"$error":"#DIV/0!"}}]
[null,null,"En complément, veuillez noter que ",{"$f":"B419","v":0},"dossier(s) avec traitement de plus de 7 jours a(ont) été calculé(s) \ngrâce aux réponses des items N°31 et 32."]
[null,null,"Vérifiez que ce nombre correspond bien au nombre de dossiers applicables (cellule E426) pour cette question. Sinon, revérifiez votre grille de recueil."]

{"sheet":"listes déroulantes (masqué)","index":5,"n_rows":243,"n_cols":4,"rows_kept":243,"cut":false,"hidden":true,"merged":[]}
[]
[]
[]
[]
[]
[]
[]
[]
[]
[]
[]
[]
[]
[]
[]
[]
[]
[]
[]
[]
[]
[]
[]
[]
[]
[]
[]
[]
[]
[]
[]
[]
[]
[]
[]
[]
[]
[]
[]
[]
[]
[]
[]
[]
[]
[]
[]
[]
[]
[]
[]
[]
[]
[]
[]
[]
[]
[]
[]
[]
[]
[]
[]
[]
[]
[]
[]
[]
[]
[]
[]
[]
[]
[]
[]
[]
[]
[]
[]
[]
[]
[]
[]
[]
[]
[]
[]
[null,null,"IV"]
[null,null,"PO"]
[null,null,"SC"]
[null,null,"IM"]
[]
[null,null,"Oui"]
[null,null,"Non"]
[]
[null,null,"Oui"]
[null,null,"Non"]
[null,null,"Inapplicable"]
[]
[null,null,"M","Abcès cérébral"]
[null,null,"F","Angines et pharyngites"]
[null,null,null,"Bactériémies"]
[null,null,"Oui, totale","Bronchites infectieuses"]
[null,null,"Oui, partielle","Dermohypodermites aiguës bactériennes"]
[null,null,"Non","Encéphalites d'origine infectieuse"]
[null,null,"Inapplicable","Endocardites infectieuses"]
[null,null,null,"Infections cutanées à pyogènes"]
[null,null,null,"Infections de dispositif électronique cardiaque implantable"]
[null,null,null,"Infections de l'appareil génital féminin haut"]
[null,null,null,"Infections de prothèse vasculaire"]
[null,null,null,"Infections dentaires et parodontales"]
[null,null,null,"Infections des voies biliaires"]
[null,null,null,"Infections du liquide d'ascite"]
[null,null,null,"Infections du pied diabétique"]
[null,null,null,"Infections intra-abdominales"]
[null,null,null,"Infections liées aux cathéters"]
[null,null,null,"Infections oculaires"]
[null,null,null,"Infections ostéoarticulaires"]
[null,null,null,"Infections sexuellement transmissibles"]
[null,null,null,"Infections sur matériel étranger"]
[null,null,null,"Infections urinaires"]
[null,null,null,"Laryngites et épiglottites"]
[null,null,null,"Méningites infectieuses"]
[null,null,"Chirurgie","Myocardites, péricardites"]
[null,null,"Médecine","Orchi-épidydimites"]
[null,null,"Onco-hématologie","Otites"]
[null,null,"Réanimation","Pathologies d'inoculation"]
[null,null,"Urgences","Péritonites"]
[null,null,"Autre","Pleurésies infectieuses"]
[null,null,null,"Pneumonies aigues communautaires"]
[null,null,null,"Pneumonies associées aux soins"]
[null,null,null,"Sinusites"]
[null,null,null,"Stomatites et parotidites infectieuses"]
[null,"Antibiotique",null,"Autre infection"]
[null,"Acide fusidique",null,"Plusieurs foyers infectieux"]
[null,"Amikacine sulfate",null,"Aucun foyer infectieux identifié"]
[null,"Amoxicilline"]
[null,"Amoxicilline + acide clavulanique"]
[null,"Amphotéricine B liposomale"]
[null,"Amphotéricine B non lipidique"]
[null,"Ampicilline"]
[null,"Ampicilline + Sulbactam"]
[null,"Anidulafungine"]
[null,"Azithromycine"]
[null,"Aztréonam"]
[null,"Aztréonam-avibactam"]
[null,"Benzathine benzylpenicilline"]
[null,"Benzathine pénicilline (forme long retard)"]
[null,"Benzathine phenoxymethylpenicilline"]
[null,"Caspofungine"]
[null,"Céfaclor"]
[null,"Céfadroxil"]
[null,"Céfalexine"]
[null,"Céfalotine"]
[null,"Céfamandole"]
[null,"Céfazoline"]
[null,"Céfépime"]
[null,"Céfidérocol"]
[null,"Céfixime"]
[null,"Céfodiam hexétil"]
[null,"Céfotaxime"]
[null,"Céfoxitine"]
[null,"Cefpodoxime proxétil"]
[null,"Céfradine"]
[null,"Ceftaroline"]
[null,"Ceftazidime"]
[null,"Ceftazidime-avibactam"]
[null,"Ceftobiprole"]
[null,"Ceftolozane-tazobactam"]
[null,"Ceftriaxone"]
[null,"Céfuroxime axétil"]
[null,"Céfuroxime sodique"]
[null,"Ciprofloxacine"]
[null,"Clarithromycine"]
[null,"Clindamycine"]
[null,"Cloxacilline"]
[null,"Colistine"]
[null,"Dalbavancine"]
[null,"Daptomycine"]
[null,"Délafloxacine"]
[null,"Doxycycline"]
[null,"Ertapénem"]
[null,"Érythromycine"]
[null,"Éthambutol"]
[null,"Fidaxomicine"]
[null,"Fluconazole"]
[null,"Flucytosine"]
[null,"Fosfomycine"]
[null,"Fosfomycine trométamol"]
[null,"Gentamicine"]
[null,"Imipénem + Cilastatine"]
[null,"Imipénème-relebactam"]
[null,"Isavuconazole"]
[null,"Isoniazide"]
[null,"Itraconazole"]
[null,"Josamycine"]
[null,"Lévofloxacine"]
[null,"Linézolide"]
[null,"Loméfloxacine"]
[null,"Méropénème"]
[null,"Méropénème-vaborbactam"]
[null,"Métronidazole"]
[null,"Micafungine"]
[null,"Minocycline"]
[null,"Moxifloxacine"]
[null,"Neomycine (associée)"]
[null,"Nétilmycine"]
[null,"Nitrofurantoïne"]
[null,"Norfloxacine"]
[null,"Ofloxacine"]
[null,"Oritavancine"]
[null,"Oxacilline"]
[null,"Péfloxacine"]
[null,"Pénicilline V"]
[null,"Pénicillines G = benzylpénicilline sodique"]
[null,"Pipéracilline"]
[null,"Pipéracilline + Tazobactam"]
[null,"Pivmécillinam"]
[null,"Posaconazole"]
[null,"Pristinamycine"]
[null,"Pyrazinamide"]
[null,"Rifabutine"]
[null,"Rifampicine"]
[null,"Roxithromycine"]
[null,"Spectinomycine"]
[null,"Spiramycine"]
[null,"Spiramycine-métronidazole"]
[null,"Streptomycine"]
[null,"Sulfadiazine"]
[null,"Sulfadiazine + Pyriméthamine"]
[null,"Sulfaméthoxazole + Triméthoprime (Cotrimoxazole)"]
[null,"Tédizolide"]
[null,"Teicoplanine"]
[null,"Témocilline"]
[null,"Thiamphénicol"]
[null,"Ticarcilline"]
[null,"Ticarcilline + Acide clavulanique"]
[null,"Tigécycline"]
[null,"Tobramycine"]
[null,"Triméthoprime"]
[null,"Vancomycine"]
[null,"Voriconazole"]
[null,"Autre"]